Workbook

Sheet Dashboard
B1: Excel Salary Survey Dashboard
B2: Parameters | I2: Headline | N2: Comparison by Country: Salary by Years of Experience
E4: Select Country | F4: USA | I4: =IF(selectCountry="All",CONCATENATE("The average respondant makes ",TEXT(Analysis!$CH$7,"$#,##0")," and has ",TEXT(Analysis!$CI$7,"0.00")," years of experience."),CONCATENATE("Excel jobs in ",selectCountry," make an avg of ",TEXT(Analysis!$CH$7,"$#,##0")," (",TEXT(Analysis!CH9,"0.00%")," ",Analysis!CH10," than avg),"," and have ",TEXT(Analysis!$CI$7,"0.00")," years of experience (",TEXT(Analysis!CI9,"0.00%")," ",Analysis!CI10," than avg).")) -> Excel jobs in USA make an avg of $72,738 (31.52% higher than avg), and have 10.29 years of experience (15.89% higher than avg). | O4: Select Country | P4: Netherlands | Q4: VS. | R4: UK
E5: Show Countries with >15 Responses Only | O5: Symbol | P5: l | R5: u
E6: Show Benchmarks
B8: Avg Salary Rank | E8: Salary by Job Type
B9: 0
B10: =IF(flagCountries=FALSE,CONCATENATE(OFFSET(Analysis!AB4,Dashboard!$B$9,0,1,1),". ",OFFSET(Analysis!AC4,Dashboard!$B$9,0,1,1)),IF(OFFSET(Analysis!AC4,Dashboard!$B$9,2,1,1)="","",CONCATENATE(OFFSET(Analysis!AB4,Dashboard!$B$9,0,1,1),". ",OFFSET(Analysis!AC4,Dashboard!$B$9,2,1,1)))) -> 1. Australia | C10: =IF(flagCountries=FALSE,OFFSET(Analysis!AD4,Dashboard!$B$9,0,1,1),IF(OFFSET(Analysis!AD4,Dashboard!$B$9,2,1,1)="","",OFFSET(Analysis!AD4,Dashboard!$B$9,2,1,1))) -> 92857.62985
B11: =IF(flagCountries=FALSE,CONCATENATE(OFFSET(Analysis!AB5,Dashboard!$B$9,0,1,1),". ",OFFSET(Analysis!AC5,Dashboard!$B$9,0,1,1)),IF(OFFSET(Analysis!AC5,Dashboard!$B$9,2,1,1)="","",CONCATENATE(OFFSET(Analysis!AB5,Dashboard!$B$9,0,1,1),". ",OFFSET(Analysis!AC5,Dashboard!$B$9,2,1,1)))) -> 2. Canada | C11: =IF(flagCountries=FALSE,OFFSET(Analysis!AD5,Dashboard!$B$9,0,1,1),IF(OFFSET(Analysis!AD5,Dashboard!$B$9,2,1,1)="","",OFFSET(Analysis!AD5,Dashboard!$B$9,2,1,1))) -> 89799.52684
B12: =IF(flagCountries=FALSE,CONCATENATE(OFFSET(Analysis!AB6,Dashboard!$B$9,0,1,1),". ",OFFSET(Analysis!AC6,Dashboard!$B$9,0,1,1)),IF(OFFSET(Analysis!AC6,Dashboard!$B$9,2,1,1)="","",CONCATENATE(OFFSET(Analysis!AB6,Dashboard!$B$9,0,1,1),". ",OFFSET(Analysis!AC6,Dashboard!$B$9,2,1,1)))) -> 3. Germany | C12: =IF(flagCountries=FALSE,OFFSET(Analysis!AD6,Dashboard!$B$9,0,1,1),IF(OFFSET(Analysis!AD6,Dashboard!$B$9,2,1,1)="","",OFFSET(Analysis!AD6,Dashboard!$B$9,2,1,1))) -> 79637.14702
B13: =IF(flagCountries=FALSE,CONCATENATE(OFFSET(Analysis!AB7,Dashboard!$B$9,0,1,1),". ",OFFSET(Analysis!AC7,Dashboard!$B$9,0,1,1)),IF(OFFSET(Analysis!AC7,Dashboard!$B$9,2,1,1)="","",CONCATENATE(OFFSET(Analysis!AB7,Dashboard!$B$9,0,1,1),". ",OFFSET(Analysis!AC7,Dashboard!$B$9,2,1,1)))) -> 4. Netherlands | C13: =IF(flagCountries=FALSE,OFFSET(Analysis!AD7,Dashboard!$B$9,0,1,1),IF(OFFSET(Analysis!AD7,Dashboard!$B$9,2,1,1)="","",OFFSET(Analysis!AD7,Dashboard!$B$9,2,1,1))) -> 73006.4312
B14: =IF(flagCountries=FALSE,CONCATENATE(OFFSET(Analysis!AB8,Dashboard!$B$9,0,1,1),". ",OFFSET(Analysis!AC8,Dashboard!$B$9,0,1,1)),IF(OFFSET(Analysis!AC8,Dashboard!$B$9,2,1,1)="","",CONCATENATE(OFFSET(Analysis!AB8,Dashboard!$B$9,0,1,1),". ",OFFSET(Analysis!AC8,Dashboard!$B$9,2,1,1)))) -> 5. USA | C14: =IF(flagCountries=FALSE,OFFSET(Analysis!AD8,Dashboard!$B$9,0,1,1),IF(OFFSET(Analysis!AD8,Dashboard!$B$9,2,1,1)="","",OFFSET(Analysis!AD8,Dashboard!$B$9,2,1,1))) -> 72738.12966
B15: =IF(flagCountries=FALSE,CONCATENATE(OFFSET(Analysis!AB9,Dashboard!$B$9,0,1,1),". ",OFFSET(Analysis!AC9,Dashboard!$B$9,0,1,1)),IF(OFFSET(Analysis!AC9,Dashboard!$B$9,2,1,1)="","",CONCATENATE(OFFSET(Analysis!AB9,Dashboard!$B$9,0,1,1),". ",OFFSET(Analysis!AC9,Dashboard!$B$9,2,1,1)))) -> 6. New Zealand | C15: =IF(flagCountries=FALSE,OFFSET(Analysis!AD9,Dashboard!$B$9,0,1,1),IF(OFFSET(Analysis!AD9,Dashboard!$B$9,2,1,1)="","",OFFSET(Analysis!AD9,Dashboard!$B$9,2,1,1))) -> 70287.55497
B16: =IF(flagCountries=FALSE,CONCATENATE(OFFSET(Analysis!AB10,Dashboard!$B$9,0,1,1),". ",OFFSET(Analysis!AC10,Dashboard!$B$9,0,1,1)),IF(OFFSET(Analysis!AC10,Dashboard!$B$9,2,1,1)="","",CONCATENATE(OFFSET(Analysis!AB10,Dashboard!$B$9,0,1,1),". ",OFFSET(Analysis!AC10,Dashboard!$B$9,2,1,1)))) -> 7. UK | C16: =IF(flagCountries=FALSE,OFFSET(Analysis!AD10,Dashboard!$B$9,0,1,1),IF(OFFSET(Analysis!AD10,Dashboard!$B$9,2,1,1)="","",OFFSET(Analysis!AD10,Dashboard!$B$9,2,1,1))) -> 67240.73011
B17: =IF(flagCountries=FALSE,CONCATENATE(OFFSET(Analysis!AB11,Dashboard!$B$9,0,1,1),". ",OFFSET(Analysis!AC11,Dashboard!$B$9,0,1,1)),IF(OFFSET(Analysis!AC11,Dashboard!$B$9,2,1,1)="","",CONCATENATE(OFFSET(Analysis!AB11,Dashboard!$B$9,0,1,1),". ",OFFSET(Analysis!AC11,Dashboard!$B$9,2,1,1)))) -> 8. South Africa | C17: =IF(flagCountries=FALSE,OFFSET(Analysis!AD11,Dashboard!$B$9,0,1,1),IF(OFFSET(Analysis!AD11,Dashboard!$B$9,2,1,1)="","",OFFSET(Analysis!AD11,Dashboard!$B$9,2,1,1))) -> 49555.62499
B18: =IF(flagCountries=FALSE,CONCATENATE(OFFSET(Analysis!AB12,Dashboard!$B$9,0,1,1),". ",OFFSET(Analysis!AC12,Dashboard!$B$9,0,1,1)),IF(OFFSET(Analysis!AC12,Dashboard!$B$9,2,1,1)="","",CONCATENATE(OFFSET(Analysis!AB12,Dashboard!$B$9,0,1,1),". ",OFFSET(Analysis!AC12,Dashboard!$B$9,2,1,1)))) -> 9. UAE | C18: =IF(flagCountries=FALSE,OFFSET(Analysis!AD12,Dashboard!$B$9,0,1,1),IF(OFFSET(Analysis!AD12,Dashboard!$B$9,2,1,1)="","",OFFSET(Analysis!AD12,Dashboard!$B$9,2,1,1))) -> 43014.90019
B19: =IF(flagCountries=FALSE,CONCATENATE(OFFSET(Analysis!AB13,Dashboard!$B$9,0,1,1),". ",OFFSET(Analysis!AC13,Dashboard!$B$9,0,1,1)),IF(OFFSET(Analysis!AC13,Dashboard!$B$9,2,1,1)="","",CONCATENATE(OFFSET(Analysis!AB13,Dashboard!$B$9,0,1,1),". ",OFFSET(Analysis!AC13,Dashboard!$B$9,2,1,1)))) -> 10. Brazil | C19: =IF(flagCountries=FALSE,OFFSET(Analysis!AD13,Dashboard!$B$9,0,1,1),IF(OFFSET(Analysis!AD13,Dashboard!$B$9,2,1,1)="","",OFFSET(Analysis!AD13,Dashboard!$B$9,2,1,1))) -> 42672.03657 | N19: SALARY
B20: =IF(flagCountries=FALSE,CONCATENATE(OFFSET(Analysis!AB14,Dashboard!$B$9,0,1,1),". ",OFFSET(Analysis!AC14,Dashboard!$B$9,0,1,1)),IF(OFFSET(Analysis!AC14,Dashboard!$B$9,2,1,1)="","",CONCATENATE(OFFSET(Analysis!AB14,Dashboard!$B$9,0,1,1),". ",OFFSET(Analysis!AC14,Dashboard!$B$9,2,1,1)))) -> 11. India | C20: =IF(flagCountries=FALSE,OFFSET(Analysis!AD14,Dashboard!$B$9,0,1,1),IF(OFFSET(Analysis!AD14,Dashboard!$B$9,2,1,1)="","",OFFSET(Analysis!AD14,Dashboard!$B$9,2,1,1))) -> 13529.43089 | O20: Highest Earners (top 10%) | P20: =AVERAGE(Analysis!$D$3:$D$1337) -> 98244.22328 | R20: =AVERAGE(Analysis!$M$3:$M$1337) -> 133007.511
B21: =IF(flagCountries=FALSE,CONCATENATE(OFFSET(Analysis!AB15,Dashboard!$B$9,0,1,1),". ",OFFSET(Analysis!AC15,Dashboard!$B$9,0,1,1)),IF(OFFSET(Analysis!AC15,Dashboard!$B$9,2,1,1)="","",CONCATENATE(OFFSET(Analysis!AB15,Dashboard!$B$9,0,1,1),". ",OFFSET(Analysis!AC15,Dashboard!$B$9,2,1,1)))) -> 12. Pakistan | C21: =IF(flagCountries=FALSE,OFFSET(Analysis!AD15,Dashboard!$B$9,0,1,1),IF(OFFSET(Analysis!AD15,Dashboard!$B$9,2,1,1)="","",OFFSET(Analysis!AD15,Dashboard!$B$9,2,1,1))) -> 11873.55259 | O21: Average Salary | P21: =AVERAGE(Analysis!C3:C1337) -> 66161.06552 | R21: =AVERAGE(Analysis!L3:L1337) -> 62818.38257
B22: =IF(flagCountries=FALSE,CONCATENATE(OFFSET(Analysis!AB16,Dashboard!$B$9,0,1,1),". ",OFFSET(Analysis!AC16,Dashboard!$B$9,0,1,1)),IF(OFFSET(Analysis!AC16,Dashboard!$B$9,2,1,1)="","",CONCATENATE(OFFSET(Analysis!AB16,Dashboard!$B$9,0,1,1),". ",OFFSET(Analysis!AC16,Dashboard!$B$9,2,1,1)))) ->  | C22: =IF(flagCountries=FALSE,OFFSET(Analysis!AD16,Dashboard!$B$9,0,1,1),IF(OFFSET(Analysis!AD16,Dashboard!$B$9,2,1,1)="","",OFFSET(Analysis!AD16,Dashboard!$B$9,2,1,1))) ->  | O22: Lowest Earners (bottom 10%) | P22: =AVERAGE(Analysis!$E$3:$E$1337) -> 37159.18359 | R22: =AVERAGE(Analysis!$N$3:$N$1337) -> 26691.12738
B23: =IF(flagCountries=FALSE,CONCATENATE(OFFSET(Analysis!AB17,Dashboard!$B$9,0,1,1),". ",OFFSET(Analysis!AC17,Dashboard!$B$9,0,1,1)),IF(OFFSET(Analysis!AC17,Dashboard!$B$9,2,1,1)="","",CONCATENATE(OFFSET(Analysis!AB17,Dashboard!$B$9,0,1,1),". ",OFFSET(Analysis!AC17,Dashboard!$B$9,2,1,1)))) ->  | C23: =IF(flagCountries=FALSE,OFFSET(Analysis!AD17,Dashboard!$B$9,0,1,1),IF(OFFSET(Analysis!AD17,Dashboard!$B$9,2,1,1)="","",OFFSET(Analysis!AD17,Dashboard!$B$9,2,1,1))) -> 
B24: =IF(flagCountries=FALSE,CONCATENATE(OFFSET(Analysis!AB18,Dashboard!$B$9,0,1,1),". ",OFFSET(Analysis!AC18,Dashboard!$B$9,0,1,1)),IF(OFFSET(Analysis!AC18,Dashboard!$B$9,2,1,1)="","",CONCATENATE(OFFSET(Analysis!AB18,Dashboard!$B$9,0,1,1),". ",OFFSET(Analysis!AC18,Dashboard!$B$9,2,1,1)))) ->  | C24: =IF(flagCountries=FALSE,OFFSET(Analysis!AD18,Dashboard!$B$9,0,1,1),IF(OFFSET(Analysis!AD18,Dashboard!$B$9,2,1,1)="","",OFFSET(Analysis!AD18,Dashboard!$B$9,2,1,1))) ->  | N24: EXPERIENCE
O25: Avg Yrs of Experience | P25: =AVERAGE(Analysis!F3:F1337) -> 9.842105263 | R25: =AVERAGE(Analysis!O3:O1337) -> 10.38288288
B27: Salary by Hours Working in Excel Per Day | N27: JOB TITLES | P27: 0 | R27: 0
P28: =IF(OFFSET(Analysis!G5,0+Dashboard!$P$27,0,1,1)=0,"-",OFFSET(Analysis!G5,0+Dashboard!$P$27,0,1,1)) -> Accounting analyst | Q28: . | R28: =OFFSET(Analysis!P5,0+Dashboard!$R$27,0,1,1) -> Accountant
P29: =IF(OFFSET(Analysis!G6,0+Dashboard!$P$27,0,1,1)=0,"-",OFFSET(Analysis!G6,0+Dashboard!$P$27,0,1,1)) -> Analyst | R29: =OFFSET(Analysis!P6,0+Dashboard!$R$27,0,1,1) -> Administration Officer
P30: =IF(OFFSET(Analysis!G7,0+Dashboard!$P$27,0,1,1)=0,"-",OFFSET(Analysis!G7,0+Dashboard!$P$27,0,1,1)) -> busines analist | R30: =OFFSET(Analysis!P7,0+Dashboard!$R$27,0,1,1) -> Analysis & insight consultant
P31: =IF(OFFSET(Analysis!G8,0+Dashboard!$P$27,0,1,1)=0,"-",OFFSET(Analysis!G8,0+Dashboard!$P$27,0,1,1)) -> business analyst | R31: =OFFSET(Analysis!P8,0+Dashboard!$R$27,0,1,1) -> Analyst
P32: =IF(OFFSET(Analysis!G9,0+Dashboard!$P$27,0,1,1)=0,"-",OFFSET(Analysis!G9,0+Dashboard!$P$27,0,1,1)) -> Business Engineer | R32: =OFFSET(Analysis!P9,0+Dashboard!$R$27,0,1,1) -> assistant account manager
P33: =IF(OFFSET(Analysis!G10,0+Dashboard!$P$27,0,1,1)=0,"-",OFFSET(Analysis!G10,0+Dashboard!$P$27,0,1,1)) -> consultant bi | R33: =OFFSET(Analysis!P10,0+Dashboard!$R$27,0,1,1) -> Assistant Accountant

Sheet Analysis (hidden)
B1: First Choice in Comparison | K1: Second Choice in Comparison | AC1: rankCountries | AE1: rankCountries2
B2: C1 | C2: C1 clean | D2: C1 highest | E2: C1 lowest | F2: C1 exp | G2: C1 Job Title | K2: C2 | L2: C2 clean | M2: C2 highest | N2: C2 lowest | O2: C2 exp | P2: C2 Job Title | T2: Non-choices | W2: listCountries | X2: listCountries2 | AC2: =COUNTA($AC$4:$AC$111)-15 -> 88 | AE2: =COUNTA(AE4:AE15)-15 -> -3 | AI2: Job Type Box and Whisker | BQ2: Hours Per Day Box and Whisker | CA2: Source: BLS
B3: =IF(Dashboard!$P$4="All",Data!G554,IF(Data!K554=Dashboard!$P$4,Data!G554,NA())) ->  | C3: =IF(ISNA(B3),"",B3) ->  | D3: =IF(C3>=PERCENTILE($C$3:$C$1337,0.9),C3,"") ->  | E3: =IF(C3<=PERCENTILE($C$3:$C$1337,0.1),C3,"") ->  | F3: =IF(C3<>"",Data!$M554,"") ->  | G3: clean Country | H3: Netherlands | K3: =IF(Dashboard!$R$4="All",Data!G554,IF(Data!K554=Dashboard!$R$4,Data!G554,NA())) ->  | L3: =IF(ISNA(K3),"",K3) ->  | M3: =IF(L3>=PERCENTILE($L$3:$L$1337,0.9),L3,"") ->  | N3: =IF(L3<=PERCENTILE($L$3:$L$1337,0.1),L3,"") ->  | O3: =IF(L3<>"",Data!$M554,"") ->  | P3: clean Country | Q3: UK | T3: =IF(OR(Dashboard!$P$4="All",Dashboard!$R$4="All"),NA(),IF(OR(Data!K554<>Dashboard!$P$4,Data!K554<>Dashboard!$R$4),Data!G554,NA())) -> 54000 | W3: All | X3: All | Y3: 1883 | AD3: Average of Salary in USD | AE3: country | AF3: avg salary | CA3: Salary Benchmarks | CE3: clean Country | CF3: (All) | CH3: clean Country | CI3: USA
B4: =IF(Dashboard!$P$4="All",Data!G555,IF(Data!K555=Dashboard!$P$4,Data!G555,NA())) ->  | C4: =IF(ISNA(B4),"",B4) ->  | D4: =IF(C4>=PERCENTILE($C$3:$C$1337,0.9),C4,"") ->  | E4: =IF(C4<=PERCENTILE($C$3:$C$1337,0.1),C4,"") ->  | F4: =IF(C4<>"",Data!$M555,"") ->  | G4: =COUNTA(G5:G1337)-6 -> 16 | K4: =IF(Dashboard!$R$4="All",Data!G555,IF(Data!K555=Dashboard!$R$4,Data!G555,NA())) ->  | L4: =IF(ISNA(K4),"",K4) ->  | M4: =IF(L4>=PERCENTILE($L$3:$L$1337,0.9),L4,"") ->  | N4: =IF(L4<=PERCENTILE($L$3:$L$1337,0.1),L4,"") ->  | O4: =IF(L4<>"",Data!$M555,"") ->  | P4: =COUNTA(P5:P1337)-6 -> 109 | T4: =IF(OR(Dashboard!$P$4="All",Dashboard!$R$4="All"),NA(),IF(OR(Data!K555<>Dashboard!$P$4,Data!K555<>Dashboard!$R$4),Data!G555,NA())) -> 15600 | W4: Albania | X4: Australia | Y4: 81 | AB4: =1 -> 1 | AC4: Lesotho | AD4: 177600 | AE4: Australia | AF4: 92857.62985 | BD4: dummy | BE4: =IF(ISNA(BE6),NA(),0) -> 0 | BF4: =IF(ISNA(BF6),NA(),0) -> 0 | BG4: 0 | BH4: 0 | BI4: 0 | BJ4: 0 | BK4: 0 | BL4: 0 | BM4: 0 | BN4: 0 | BQ4: dummy | BR4: =IF(ISNA(BR5),NA(),0) -> 0 | BS4: =IF(ISNA(BS5),NA(),0) -> 0 | BT4: 0 | BU4: 0 | BV4: 0 | CA4: Hourly | CB4: Annual
B5: =IF(Dashboard!$P$4="All",Data!G556,IF(Data!K556=Dashboard!$P$4,Data!G556,NA())) ->  | F5: =IF(C5<>"",Data!$M556,"") ->  | G5: Accounting analyst | K5: =IF(Dashboard!$R$4="All",Data!G556,IF(Data!K556=Dashboard!$R$4,Data!G556,NA())) ->  | O5: =IF(L5<>"",Data!$M556,"") ->  | P5: Accountant | T5: =IF(OR(Dashboard!$P$4="All",Dashboard!$R$4="All"),NA(),IF(OR(Data!K556<>Dashboard!$P$4,Data!K556<>Dashboard!$R$4),Data!G556,NA())) -> 35000 | W5: Arabian Gulf | X5: Brazil | Y5: 20 | AB5: =AB4+1 -> 2 | AC5: Switzerland | AD5: 137525.5572 | AE5: Canada | AF5: 89799.52684 | AJ5: =IF(AJ23="",NA(),AJ23) -> Analyst | AL5: =IF(AL23="",NA(),AL23) -> Manager | AN5: Accountant | AP5: CXO or Top Mgmt. | AR5: Engineer | AT5: Specialist | AV5: Consultant | AX5: Controller | AZ5: Reporting | BB5: Misc. | BD5: Job Type | BE5: =AJ5 -> Analyst | BF5: =AL5 -> Manager | BG5: =AN5 -> Accountant | BH5: =AP5 -> CXO or Top Mgmt. | BI5: =AR5 -> Engineer | BJ5: =AT5 -> Specialist | BK5: =AV5 -> Consultant | BL5: =AX5 -> Controller | BM5: =AZ5 -> Reporting | BN5: =BB5 -> Misc. | BQ5: Hours Per Day | BR5: =IF(BR24="",NA(),BR24) -> 1 or 2 hours a day | BS5: =IF(BS24="",NA(),BS24) -> 2 to 3 hours per day | BT5: 4 to 6 hours a day | BU5: All the 8 hours baby, all the 8! | BV5: Excel ?!? What Excel? | BZ5: Accountant | CA5: 29.33 | CB5: =CA5*2088 -> 61241.04 | CE5: Values | CH5: Values
B6: =IF(Dashboard!$P$4="All",Data!G557,IF(Data!K557=Dashboard!$P$4,Data!G557,NA())) ->  | F6: =IF(C6<>"",Data!$M557,"") ->  | G6: Analyst | K6: =IF(Dashboard!$R$4="All",Data!G557,IF(Data!K557=Dashboard!$R$4,Data!G557,NA())) ->  | O6: =IF(L6<>"",Data!$M557,"") ->  | P6: Administration Officer | T6: =IF(OR(Dashboard!$P$4="All",Dashboard!$R$4="All"),NA(),IF(OR(Data!K557<>Dashboard!$P$4,Data!K557<>Dashboard!$R$4),Data!G557,NA())) -> 188000 | W6: Argentina | X6: Canada | Y6: 58 | AB6: =AB5+1 -> 3 | AC6: Europe | AD6: 123889.3533 | AE6: Germany | AF6: 79637.14702 | AI6: Count | AJ6: =IF(AJ24="",NA(),COUNT(AJ25:AJ2005)) -> 297 | AL6: =IF(AL24="",NA(),COUNT(AL25:AL2005)) -> 145 | AN6: =IF(AN24="",NA(),COUNT(AN25:AN2005)) -> 42 | AP6: 39 | AR6: 26 | AT6: 25 | AV6: 18 | AX6: 17 | AZ6: 5 | BB6: 3 | BD6: Count | BE6: =AJ6 -> 297 | BF6: =AL6 -> 145 | BG6: =AN6 -> 42 | BH6: =AP6 -> 39 | BI6: =AR6 -> 26 | BJ6: =AT6 -> 25 | BK6: =AV6 -> 18 | BL6: =AX6 -> 17 | BM6: =AZ6 -> 5 | BN6: =BB6 -> 3 | BQ6: Count | BR6: =IF(COUNT(BR$25:BR$1907)=0,"",COUNT(BR$25:BR$1907)) -> 43 | BS6: =IF(COUNT(BS$25:BS$1907)=0,"",COUNT(BS$25:BS$1907)) -> 155 | BT6: 282 | BU6: 134 | BV6: 3 | BZ6: Analyst | CA6: 34.88 | CB6: =CA6*2088 -> 72829.44 | CE6: Average of Salary in USD | CF6: Average of Years of Experience | CH6: Average of Salary in USD | CI6: Average of Years of Experience
B7: =IF(Dashboard!$P$4="All",Data!G558,IF(Data!K558=Dashboard!$P$4,Data!G558,NA())) ->  | F7: =IF(C7<>"",Data!$M558,"") ->  | G7: busines analist | K7: =IF(Dashboard!$R$4="All",Data!G558,IF(Data!K558=Dashboard!$R$4,Data!G558,NA())) ->  | O7: =IF(L7<>"",Data!$M558,"") ->  | P7: Analysis & insight consultant | T7: =IF(OR(Dashboard!$P$4="All",Dashboard!$R$4="All"),NA(),IF(OR(Data!K558<>Dashboard!$P$4,Data!K558<>Dashboard!$R$4),Data!G558,NA())) -> 27500 | W7: Armenia | X7: Germany | Y7: 17 | AB7: 4 | AC7: Oman | AD7: 100800 | AE7: Netherlands | AF7: 73006.4312 | AI7: Mean | AJ7: =IF(AJ24="",NA(),AVERAGE(AJ25:AJ2005)) -> 62583.73737 | AL7: =IF(AL24="",NA(),AVERAGE(AL25:AL2005)) -> 77581.71034 | AN7: =IF(AN24="",NA(),AVERAGE(AN25:AN2005)) -> 64737.19048 | AP7: =IF(AP24="",NA(),AVERAGE(AP25:AP2005)) -> 125615.3846 | AR7: =IF(AR24="",NA(),AVERAGE(AR25:AR2005)) -> 72056.15385 | AT7: =IF(AT24="",NA(),AVERAGE(AT25:AT2005)) -> 69800 | AV7: =IF(AV24="",NA(),AVERAGE(AV25:AV2005)) -> 98388.88889 | AX7: 87813.23529 | AZ7: 58200 | BB7: 83820.33333 | BD7: Mean | BE7: =AJ7 -> 62583.73737 | BF7: =AL7 -> 77581.71034 | BG7: =AN7 -> 64737.19048 | BH7: =AP7 -> 125615.3846 | BI7: =AR7 -> 72056.15385 | BJ7: =AT7 -> 69800 | BK7: =AV7 -> 98388.88889 | BL7: =AX7 -> 87813.23529 | BM7: =AZ7 -> 58200 | BN7: =BB7 -> 83820.33333 | BQ7: Mean | BR7: =IF(OR(BR6<1,BR6=""),NA(),AVERAGE(BR$25:BR$1907)) -> 80399.09302 | BS7: =IF(OR(BS6<1,BS6=""),NA(),AVERAGE(BS$25:BS$1907)) -> 76343.6129 | BT7: 69667.65603 | BU7: 73087.50746 | BV7: 49666.66667 | BZ7: CXO & Top Mgmt | CA7: 76.48 | CB7: =CA7*2088 -> 159690.24 | CE7: 49814.59826 | CF7: 8.656629213 | CH7: 72738.12966 | CI7: 10.2920354
B8: =IF(Dashboard!$P$4="All",Data!G559,IF(Data!K559=Dashboard!$P$4,Data!G559,NA())) ->  | F8: =IF(C8<>"",Data!$M559,"") ->  | G8: business analyst | K8: =IF(Dashboard!$R$4="All",Data!G559,IF(Data!K559=Dashboard!$R$4,Data!G559,NA())) ->  | O8: =IF(L8<>"",Data!$M559,"") ->  | P8: Analyst | T8: =IF(OR(Dashboard!$P$4="All",Dashboard!$R$4="All"),NA(),IF(OR(Data!K559<>Dashboard!$P$4,Data!K559<>Dashboard!$R$4),Data!G559,NA())) -> 140000 | W8: Aruba | X8: India | Y8: 565 | AB8: 5 | AC8: Uganda | AD8: 100000 | AE8: USA | AF8: 72738.12966 | AI8: SD | AJ8: =IF(AJ6=1,0,IF(AJ24="",NA(),STDEV(AJ25:AJ2005))) -> 22359.03686 | AL8: =IF(AL6=1,0,IF(AL24="",NA(),STDEV(AL25:AL2005))) -> 40819.50074 | AN8: 27012.97332 | AP8: 58163.50157 | AR8: 22977.66708 | AT8: 70881.9441 | AV8: 66415.92553 | AX8: 45831.52753 | AZ8: 28154.92852 | BB8: 8243.048 | BD8: SD | BE8: 22359.03686 | BF8: 40819.50074 | BG8: 27012.97332 | BH8: 58163.50157 | BI8: 22977.66708 | BJ8: 70881.9441 | BK8: 66415.92553 | BL8: 45831.52753 | BM8: 28154.92852 | BN8: 8243.048 | BQ8: SD | BR8: =STDEV(BR$25:BR$1907) -> 61176.62207 | BS8: =STDEV(BS$25:BS$1907) -> 40875.64367 | BT8: 28316.25935 | BU8: 47957.07154 | BV8: 18610.03314 | BZ8: Engineer | CA8: 41.99 | CB8: =CA8*2088 -> 87675.12
B9: =IF(Dashboard!$P$4="All",Data!G560,IF(Data!K560=Dashboard!$P$4,Data!G560,NA())) -> 69871.96914 | C9: 69871.96914 | F9: =IF(C9<>"",Data!$M560,"") -> 6 | G9: Business Engineer | K9: =IF(Dashboard!$R$4="All",Data!G560,IF(Data!K560=Dashboard!$R$4,Data!G560,NA())) ->  | O9: =IF(L9<>"",Data!$M560,"") ->  | P9: assistant account manager | T9: =IF(OR(Dashboard!$P$4="All",Dashboard!$R$4="All"),NA(),IF(OR(Data!K560<>Dashboard!$P$4,Data!K560<>Dashboard!$R$4),Data!G560,NA())) -> 69871.96914 | W9: Asia | X9: Netherlands | Y9: 23 | AB9: 6 | AC9: Norway | AD9: 99016.17437 | AE9: New Zealand | AF9: 70287.55497 | AI9: Min | AJ9: =IF(AJ24="",NA(),MIN(AJ25:AJ2005)) -> 10000 | AL9: =IF(AL24="",NA(),MIN(AL25:AL2005)) -> 15000 | AN9: 22880 | AP9: 16000 | AR9: 24000 | AT9: 31000 | AV9: 12000 | AX9: 24000 | AZ9: 32000 | BB9: 74461 | BD9: Min | BE9: 10000 | BF9: 15000 | BG9: 22880 | BH9: 16000 | BI9: 24000 | BJ9: 31000 | BK9: 12000 | BL9: 24000 | BM9: 32000 | BN9: 74461 | BQ9: Min | BR9: =MIN(BR$25:BR$1907) -> 12000 | BS9: =MIN(BS$25:BS$1907) -> 12000 | BT9: 10000 | BU9: 15000 | BV9: 30000 | CH9: =ABS(CH7-CE7)/MAX((CH7,CE7)) -> 0.3151515101 | CI9: =ABS(CI7-CF7)/MAX((CI7,CF7)) -> 0.158900171
B10: =IF(Dashboard!$P$4="All",Data!G561,IF(Data!K561=Dashboard!$P$4,Data!G561,NA())) ->  | F10: =IF(C10<>"",Data!$M561,"") ->  | G10: consultant bi | K10: =IF(Dashboard!$R$4="All",Data!G561,IF(Data!K561=Dashboard!$R$4,Data!G561,NA())) ->  | O10: =IF(L10<>"",Data!$M561,"") ->  | P10: Assistant Accountant | T10: =IF(OR(Dashboard!$P$4="All",Dashboard!$R$4="All"),NA(),IF(OR(Data!K561<>Dashboard!$P$4,Data!K561<>Dashboard!$R$4),Data!G561,NA())) -> 45000 | W10: Australia | X10: Pakistan | Y10: 29 | AB10: 7 | AC10: Central America | AD10: 95000 | AE10: UK | AF10: 67240.73011 | AI10: Q1 | AJ10: =IF(AJ24="",NA(),QUARTILE(AJ25:AJ2005,1)) -> 46000 | AL10: =IF(AL24="",NA(),QUARTILE(AL25:AL2005,1)) -> 52500 | AN10: 45750 | AP10: 90000 | AR10: 57750 | AT10: 45000 | AV10: 69750 | AX10: 65000 | AZ10: 37000 | BB10: 80730.5 | BD10: Q1 | BE10: 46000 | BF10: 52500 | BG10: 45750 | BH10: 90000 | BI10: 57750 | BJ10: 45000 | BK10: 69750 | BL10: 65000 | BM10: 37000 | BN10: 80730.5 | BQ10: Q1 | BR10: =QUARTILE(BR$25:BR$1907,1) -> 51500 | BS10: =QUARTILE(BS$25:BS$1907,1) -> 50000 | BT10: 50000 | BU10: 47875 | BV10: 41000 | CH10: =IF(CH7>CE7,"higher","lower") -> higher | CI10: =IF(CI7>CF7,"higher","lower") -> higher
B11: =IF(Dashboard!$P$4="All",Data!G562,IF(Data!K562=Dashboard!$P$4,Data!G562,NA())) ->  | F11: =IF(C11<>"",Data!$M562,"") ->  | G11: controller | K11: =IF(Dashboard!$R$4="All",Data!G562,IF(Data!K562=Dashboard!$R$4,Data!G562,NA())) ->  | O11: =IF(L11<>"",Data!$M562,"") ->  | P11: Assistant Director - Performance Information | T11: =IF(OR(Dashboard!$P$4="All",Dashboard!$R$4="All"),NA(),IF(OR(Data!K562<>Dashboard!$P$4,Data!K562<>Dashboard!$R$4),Data!G562,NA())) -> 95000 | W11: Austria | X11: South Africa | Y11: 19 | AB11: 8 | AC11: Australia | AD11: 92857.62985 | AE11: South Africa | AF11: 49555.62499 | AI11: Median | AJ11: =IF(AJ24="",NA(),MEDIAN(AJ25:AJ2005)) -> 60000 | AL11: =IF(AL24="",NA(),MEDIAN(AL25:AL2005)) -> 70000 | AN11: 59000 | AP11: 114000 | AR11: 73250 | AT11: 50000 | AV11: 87500 | AX11: 80000 | AZ11: 45000 | BB11: 87000 | BD11: Median | BE11: 60000 | BF11: 70000 | BG11: 59000 | BH11: 114000 | BI11: 73250 | BJ11: 50000 | BK11: 87500 | BL11: 80000 | BM11: 45000 | BN11: 87000 | BQ11: Median | BR11: =MEDIAN(BR$25:BR$1907) -> 75000 | BS11: =MEDIAN(BS$25:BS$1907) -> 69960 | BT11: 65000 | BU11: 62000 | BV11: 52000
B12: =IF(Dashboard!$P$4="All",Data!G563,IF(Data!K563=Dashboard!$P$4,Data!G563,NA())) ->  | F12: =IF(C12<>"",Data!$M563,"") ->  | G12: data analist | K12: =IF(Dashboard!$R$4="All",Data!G563,IF(Data!K563=Dashboard!$R$4,Data!G563,NA())) ->  | O12: =IF(L12<>"",Data!$M563,"") ->  | P12: Assistant Financial Accountant | T12: =IF(OR(Dashboard!$P$4="All",Dashboard!$R$4="All"),NA(),IF(OR(Data!K563<>Dashboard!$P$4,Data!K563<>Dashboard!$R$4),Data!G563,NA())) -> 158085.9967 | W12: Azerbaijan | X12: UAE | Y12: 19 | AB12: 9 | AC12: Canada | AD12: 89799.52684 | AE12: UAE | AF12: 43014.90019 | AI12: Q3 | AJ12: =IF(AJ24="",NA(),QUARTILE(AJ25:AJ2005,3)) -> 75000 | AL12: =IF(AL24="",NA(),QUARTILE(AL25:AL2005,3)) -> 90000 | AN12: 75000 | AP12: 150000 | AR12: 85000 | AT12: 73000 | AV12: 113250 | AX12: 99000 | AZ12: 85000 | BB12: 88500 | BD12: Q3 | BE12: 75000 | BF12: 90000 | BG12: 75000 | BH12: 150000 | BI12: 85000 | BJ12: 73000 | BK12: 113250 | BL12: 99000 | BM12: 85000 | BN12: 88500 | BQ12: Q3 | BR12: =QUARTILE(BR$25:BR$1907,3) -> 90500 | BS12: =QUARTILE(BS$25:BS$1907,3) -> 90000 | BT12: 85000 | BU12: 76750 | BV12: 59500
B13: =IF(Dashboard!$P$4="All",Data!G564,IF(Data!K564=Dashboard!$P$4,Data!G564,NA())) ->  | F13: =IF(C13<>"",Data!$M564,"") ->  | G13: education advisor | K13: =IF(Dashboard!$R$4="All",Data!G564,IF(Data!K564=Dashboard!$R$4,Data!G564,NA())) ->  | O13: =IF(L13<>"",Data!$M564,"") ->  | P13: Associate | T13: =IF(OR(Dashboard!$P$4="All",Dashboard!$R$4="All"),NA(),IF(OR(Data!K564<>Dashboard!$P$4,Data!K564<>Dashboard!$R$4),Data!G564,NA())) -> 63807.04749 | W13: Baltic | X13: UK | Y13: 154 | AB13: 10 | AC13: CEE | AD13: 87167.97475 | AE13: Brazil | AF13: 42672.03657 | AI13: Max | AJ13: =IF(AJ24="",NA(),MAX(AJ25:AJ2005)) -> 160000 | AL13: =IF(AL24="",NA(),MAX(AL25:AL2005)) -> 400000 | AN13: 150000 | AP13: 300000 | AR13: 130000 | AT13: 400000 | AV13: 250000 | AX13: 214000 | AZ13: 92000 | BB13: 90000 | BD13: Max | BE13: 160000 | BF13: 400000 | BG13: 150000 | BH13: 300000 | BI13: 130000 | BJ13: 400000 | BK13: 250000 | BL13: 214000 | BM13: 92000 | BN13: 90000 | BQ13: Max | BR13: =MAX(BR$25:BR$1907) -> 400000 | BS13: =MAX(BS$25:BS$1907) -> 300000 | BT13: 225000 | BU13: 400000 | BV13: 67000
B14: =IF(Dashboard!$P$4="All",Data!G565,IF(Data!K565=Dashboard!$P$4,Data!G565,NA())) ->  | F14: =IF(C14<>"",Data!$M565,"") ->  | G14: Finance Project Manager | K14: =IF(Dashboard!$R$4="All",Data!G565,IF(Data!K565=Dashboard!$R$4,Data!G565,NA())) ->  | O14: =IF(L14<>"",Data!$M565,"") ->  | P14: Building Design and Performance Researcher | T14: =IF(OR(Dashboard!$P$4="All",Dashboard!$R$4="All"),NA(),IF(OR(Data!K565<>Dashboard!$P$4,Data!K565<>Dashboard!$R$4),Data!G565,NA())) -> 38000 | W14: Bangladesh | X14: USA | Y14: 617 | AB14: 11 | AC14: Sweden | AD14: 84477.26009 | AE14: India | AF14: 13529.43089 | AI14: Bottom | AJ14: =IF(AJ5="",NA(),IF(COUNT(AJ25:AJ2005)<=15,0,IF(AJ24="",NA(),AJ10))) -> 46000 | AL14: =IF(AL5="",NA(),IF(COUNT(AL25:AL2005)<=15,0,IF(AL24="",NA(),AL10))) -> 52500 | AN14: 45750 | AP14: 90000 | AR14: 57750 | AT14: 45000 | AV14: 69750 | AX14: 65000 | AZ14: 0 | BB14: 0 | BD14: Bottom | BE14: 46000 | BF14: 52500 | BG14: 45750 | BH14: 90000 | BI14: 57750 | BJ14: =AT14 -> 45000 | BK14: 69750 | BL14: 65000 | BM14: 0 | BN14: 0 | BQ14: Bottom | BR14: =IF(BR6<=15,0,BR10) -> 51500 | BS14: =IF(BS6<=15,0,BS10) -> 50000 | BT14: 50000 | BU14: 47875 | BV14: 0
B15: =IF(Dashboard!$P$4="All",Data!G566,IF(Data!K566=Dashboard!$P$4,Data!G566,NA())) ->  | F15: =IF(C15<>"",Data!$M566,"") ->  | G15: Financial Advisor | K15: =IF(Dashboard!$R$4="All",Data!G566,IF(Data!K566=Dashboard!$R$4,Data!G566,NA())) ->  | O15: =IF(L15<>"",Data!$M566,"") ->  | P15: business analyst | T15: =IF(OR(Dashboard!$P$4="All",Dashboard!$R$4="All"),NA(),IF(OR(Data!K566<>Dashboard!$P$4,Data!K566<>Dashboard!$R$4),Data!G566,NA())) -> 90000 | W15: Belgium | AB15: 12 | AC15: Denmark | AD15: 82525.5254 | AE15: Pakistan | AF15: 11873.55259 | AI15: 2Q Box | AJ15: =IF(AJ5="",NA(),IF(COUNT(AJ25:AJ2005)<=15,0,IF(AJ24="",NA(),AJ11-AJ10))) -> 14000 | AL15: =IF(AL5="",NA(),IF(COUNT(AL25:AL2005)<=15,0,IF(AL24="",NA(),AL11-AL10))) -> 17500 | AN15: 13250 | AP15: 24000 | AR15: 15500 | AT15: 5000 | AV15: 17750 | AX15: 15000 | AZ15: 0 | BB15: 0 | BD15: 2Q Box | BE15: 14000 | BF15: 17500 | BG15: 13250 | BH15: 24000 | BI15: 15500 | BJ15: 5000 | BK15: 17750 | BL15: 15000 | BM15: 0 | BN15: 0 | BQ15: 2Q Box | BR15: =IF(BR6<=15,0,BR11-BR10) -> 23500 | BS15: =IF(BS6<=15,0,BS11-BS10) -> 19960 | BT15: 15000 | BU15: 14125 | BV15: 0
B16: =IF(Dashboard!$P$4="All",Data!G567,IF(Data!K567=Dashboard!$P$4,Data!G567,NA())) ->  | F16: =IF(C16<>"",Data!$M567,"") ->  | G16: Financial Analyst | K16: =IF(Dashboard!$R$4="All",Data!G567,IF(Data!K567=Dashboard!$R$4,Data!G567,NA())) -> 45393.93424 | L16: 45393.93424 | O16: =IF(L16<>"",Data!$M567,"") -> 27 | P16: Business Analyst - Central Finance | T16: =IF(OR(Dashboard!$P$4="All",Dashboard!$R$4="All"),NA(),IF(OR(Data!K567<>Dashboard!$P$4,Data!K567<>Dashboard!$R$4),Data!G567,NA())) -> 45393.93424 | W16: Bermuda | X16: TRUE | AB16: 13 | AC16: Germany | AD16: 79637.14702 | AI16: 3Q Box | AJ16: =IF(AJ5="",NA(),IF(COUNT(AJ25:AJ2005)<=15,0,IF(AJ24="",NA(),AJ12-AJ11))) -> 15000 | AL16: =IF(AL5="",NA(),IF(COUNT(AL25:AL2005)<=15,0,IF(AL24="",NA(),AL12-AL11))) -> 20000 | AN16: 16000 | AP16: 36000 | AR16: 11750 | AT16: 23000 | AV16: 25750 | AX16: 19000 | AZ16: 0 | BB16: 0 | BD16: 3Q Box | BE16: 15000 | BF16: 20000 | BG16: 16000 | BH16: 36000 | BI16: 11750 | BJ16: 23000 | BK16: 25750 | BL16: 19000 | BM16: 0 | BN16: 0 | BQ16: 3Q Box | BR16: =IF(BR6<=15,0,BR12-BR11) -> 15500 | BS16: =IF(BS6<=15,0,BS12-BS11) -> 20040 | BT16: 20000 | BU16: 14750 | BV16: 0
B17: =IF(Dashboard!$P$4="All",Data!G568,IF(Data!K568=Dashboard!$P$4,Data!G568,NA())) ->  | F17: =IF(C17<>"",Data!$M568,"") ->  | G17: Information Analyst | K17: =IF(Dashboard!$R$4="All",Data!G568,IF(Data!K568=Dashboard!$R$4,Data!G568,NA())) -> 33099.74371 | L17: 33099.74371 | N17: 33099.74371 | O17: =IF(L17<>"",Data!$M568,"") -> 10 | P17: business data analyst | T17: =IF(OR(Dashboard!$P$4="All",Dashboard!$R$4="All"),NA(),IF(OR(Data!K568<>Dashboard!$P$4,Data!K568<>Dashboard!$R$4),Data!G568,NA())) -> 33099.74371 | W17: Bhutan | AB17: 14 | AC17: Bermuda | AD17: 78000 | AI17: Whisker- | AJ17: =IF(AJ5="",NA(),IF(COUNT(AJ25:AJ2005)<=15,0,IF(AJ24="",NA(),AJ10-AJ9))) -> 36000 | AL17: =IF(AL5="",NA(),IF(COUNT(AL25:AL2005)<=15,0,IF(AL24="",NA(),AL10-AL9))) -> 37500 | AN17: 22870 | AP17: 74000 | AR17: 33750 | AT17: 14000 | AV17: 57750 | AX17: 41000 | AZ17: 0 | BB17: 0 | BD17: Whisker- | BE17: 36000 | BF17: 37500 | BG17: 22870 | BH17: 74000 | BI17: 33750 | BJ17: 14000 | BK17: 57750 | BL17: 41000 | BM17: 0 | BN17: 0 | BQ17: Whisker- | BR17: =IF(BR6<=15,0,BR10-BR9) -> 39500 | BS17: =IF(BS6<=15,0,BS10-BS9) -> 38000 | BT17: 40000 | BU17: 32875 | BV17: 0
B18: =IF(Dashboard!$P$4="All",Data!G569,IF(Data!K569=Dashboard!$P$4,Data!G569,NA())) ->  | F18: =IF(C18<>"",Data!$M569,"") ->  | G18: IT Trainer | K18: =IF(Dashboard!$R$4="All",Data!G569,IF(Data!K569=Dashboard!$R$4,Data!G569,NA())) ->  | O18: =IF(L18<>"",Data!$M569,"") ->  | P18: Business Improvement Specialist | T18: =IF(OR(Dashboard!$P$4="All",Dashboard!$R$4="All"),NA(),IF(OR(Data!K569<>Dashboard!$P$4,Data!K569<>Dashboard!$R$4),Data!G569,NA())) -> 4285 | W18: Bolivia | AB18: 15 | AC18: Somalia | AD18: 78000 | AI18: Whisker+ | AJ18: =IF(AJ5="",NA(),IF(COUNT(AJ25:AJ2005)<=15,0,IF(AJ24="",NA(),AJ13-AJ12))) -> 85000 | AL18: =IF(AL5="",NA(),IF(COUNT(AL25:AL2005)<=15,0,IF(AL24="",NA(),AL13-AL12))) -> 310000 | AN18: 75000 | AP18: 150000 | AR18: 45000 | AT18: 327000 | AV18: 136750 | AX18: 115000 | AZ18: 0 | BB18: 0 | BD18: Whisker+ | BE18: 85000 | BF18: 310000 | BG18: 75000 | BH18: 150000 | BI18: 45000 | BJ18: 327000 | BK18: 136750 | BL18: 115000 | BM18: 0 | BN18: 0 | BQ18: Whisker+ | BR18: =IF(BR6<=15,0,BR13-BR12) -> 309500 | BS18: =IF(BS6<=15,0,BS13-BS12) -> 210000 | BT18: 140000 | BU18: 323250 | BV18: 0
B19: =IF(Dashboard!$P$4="All",Data!G570,IF(Data!K570=Dashboard!$P$4,Data!G570,NA())) ->  | F19: =IF(C19<>"",Data!$M570,"") ->  | G19: Medical information analist | K19: =IF(Dashboard!$R$4="All",Data!G570,IF(Data!K570=Dashboard!$R$4,Data!G570,NA())) ->  | O19: =IF(L19<>"",Data!$M570,"") ->  | P19: Business Intelligence Analyst | T19: =IF(OR(Dashboard!$P$4="All",Dashboard!$R$4="All"),NA(),IF(OR(Data!K570<>Dashboard!$P$4,Data!K570<>Dashboard!$R$4),Data!G570,NA())) -> 6000 | W19: Brazil | AB19: 16 | AC19: Finland | AD19: 75389.41554 | AI19: Offset | AJ19: =IF(AJ24="",NA(),0.5) -> 0.5 | AL19: =IF(AL24="",NA(),AJ19+1) -> 1.5 | AN19: =IF(AN24="",NA(),AL19+1) -> 2.5 | AP19: 3.5 | AR19: 4.5 | AT19: 5.5 | AV19: 6.5 | AX19: 7.5 | AZ19: 8.5 | BB19: 9.5 | BD19: Offset | BE19: 0.5 | BF19: 1.5 | BG19: 2.5 | BH19: 3.5 | BI19: 4.5 | BJ19: 5.5 | BK19: 6.5 | BL19: 7.5 | BM19: 8.5 | BN19: 9.5 | BQ19: Category axis | BR19: =IF(ISNA(BR5),NA(),1) -> 1 | BS19: =IF(ISNA(BS5),NA(),BR19+1) -> 2 | BT19: =IF(ISNA(BT5),NA(),BS19+1) -> 3 | BU19: 4 | BV19: 5
B20: =IF(Dashboard!$P$4="All",Data!G571,IF(Data!K571=Dashboard!$P$4,Data!G571,NA())) ->  | F20: =IF(C20<>"",Data!$M571,"") ->  | G20: Online Traffic Manager / Web Analist | K20: =IF(Dashboard!$R$4="All",Data!G571,IF(Data!K571=Dashboard!$R$4,Data!G571,NA())) ->  | O20: =IF(L20<>"",Data!$M571,"") ->  | P20: Business Modeller | T20: =IF(OR(Dashboard!$P$4="All",Dashboard!$R$4="All"),NA(),IF(OR(Data!K571<>Dashboard!$P$4,Data!K571<>Dashboard!$R$4),Data!G571,NA())) -> 22438.01244 | W20: Bulgaria | AB20: 17 | AC20: Netherlands | AD20: 73006.4312 | BD20: Benchmark | BE20: =IF($BD$22=FALSE,NA(),IF(ISNA(VLOOKUP(BE5,$BZ$5:$CB$8,3,FALSE)),NA(),VLOOKUP(BE5,$BZ$5:$CB$8,3,FALSE))) -> 72829.44 | BF20: =IF($BD$22=FALSE,NA(),IF(ISNA(VLOOKUP(BF5,$BZ$5:$CB$8,3,FALSE)),NA(),VLOOKUP(BF5,$BZ$5:$CB$8,3,FALSE))) ->  | BG20: 61241.04 | BI20: 87675.12 | BQ20: Dummy gridline | BR20: =IF(ISNA(BR5),NA(),0.5) -> 0.5 | BS20: =IF(ISNA(BS5),NA(),BR20+1) -> 1.5 | BT20: =IF(ISNA(BT5),NA(),BS20+1) -> 2.5 | BU20: 3.5 | BV20: 4.5
B21: =IF(Dashboard!$P$4="All",Data!G572,IF(Data!K572=Dashboard!$P$4,Data!G572,NA())) ->  | F21: =IF(C21<>"",Data!$M572,"") ->  | G21: Project Engineer | K21: =IF(Dashboard!$R$4="All",Data!G572,IF(Data!K572=Dashboard!$R$4,Data!G572,NA())) ->  | O21: =IF(L21<>"",Data!$M572,"") ->  | P21: Business Operations Co-ordinator | T21: =IF(OR(Dashboard!$P$4="All",Dashboard!$R$4="All"),NA(),IF(OR(Data!K572<>Dashboard!$P$4,Data!K572<>Dashboard!$R$4),Data!G572,NA())) -> 90000 | W21: Cambodia | AB21: 18 | AC21: Thailand | AD21: 73000 | AI21: clean Country | AJ21: USA | BD21: Benchmark Name | BE21: =IF($BD$22=FALSE,NA(),IF(ISNA(VLOOKUP(BE5,$BZ$5:$CB$8,1,FALSE)),NA(),VLOOKUP(BE5,$BZ$5:$CB$8,1,FALSE))) -> Analyst | BF21: =IF($BD$22=FALSE,NA(),IF(ISNA(VLOOKUP(BF5,$BZ$5:$CB$8,1,FALSE)),NA(),VLOOKUP(BF5,$BZ$5:$CB$8,1,FALSE))) ->  | BG21: Accountant | BI21: Engineer | BQ21: clean Country | BR21: USA
B22: =IF(Dashboard!$P$4="All",Data!G573,IF(Data!K573=Dashboard!$P$4,Data!G573,NA())) ->  | F22: =IF(C22<>"",Data!$M573,"") ->  | G22: Risk analyst | K22: =IF(Dashboard!$R$4="All",Data!G573,IF(Data!K573=Dashboard!$R$4,Data!G573,NA())) ->  | O22: =IF(L22<>"",Data!$M573,"") ->  | P22: Business Support Specialist | T22: =IF(OR(Dashboard!$P$4="All",Dashboard!$R$4="All"),NA(),IF(OR(Data!K573<>Dashboard!$P$4,Data!K573<>Dashboard!$R$4),Data!G573,NA())) -> 150000 | W22: Canada | AB22: 19 | AC22: USA | AD22: 72738.12966 | BC22: Flag | BD22: TRUE
B23: =IF(Dashboard!$P$4="All",Data!G574,IF(Data!K574=Dashboard!$P$4,Data!G574,NA())) ->  | F23: =IF(C23<>"",Data!$M574,"") ->  | G23: Risk Officer | K23: =IF(Dashboard!$R$4="All",Data!G574,IF(Data!K574=Dashboard!$R$4,Data!G574,NA())) ->  | O23: =IF(L23<>"",Data!$M574,"") ->  | P23: Buyer | T23: =IF(OR(Dashboard!$P$4="All",Dashboard!$R$4="All"),NA(),IF(OR(Data!K574<>Dashboard!$P$4,Data!K574<>Dashboard!$R$4),Data!G574,NA())) -> 132588.2553 | W23: CEE | AB23: 20 | AC23: New Zealand | AD23: 70287.55497 | AJ23: Analyst | AL23: Manager | AN23: Accountant | AP23: CXO or Top Mgmt. | AR23: Engineer | AT23: Specialist | AV23: Consultant | AX23: Controller | AZ23: Reporting | BB23: Misc. | BQ23: Sum of Salary in USD
B24: =IF(Dashboard!$P$4="All",Data!G575,IF(Data!K575=Dashboard!$P$4,Data!G575,NA())) ->  | F24: =IF(C24<>"",Data!$M575,"") ->  | G24: Salary Professsional | K24: =IF(Dashboard!$R$4="All",Data!G575,IF(Data!K575=Dashboard!$R$4,Data!G575,NA())) ->  | O24: =IF(L24<>"",Data!$M575,"") ->  | P24: Central Services Manager | T24: =IF(OR(Dashboard!$P$4="All",Dashboard!$R$4="All"),NA(),IF(OR(Data!K575<>Dashboard!$P$4,Data!K575<>Dashboard!$R$4),Data!G575,NA())) -> 45000 | W24: Central America | AB24: 21 | AC24: Japan | AD24: 67564.77404 | AJ24: Sum of Salary in USD | AK24: Count of Your Salary | AL24: Sum of Salary in USD | AM24: Count of Your Salary | AN24: Sum of Salary in USD | AO24: Count of Your Salary | AP24: Sum of Salary in USD | AQ24: Count of Your Salary | AR24: Sum of Salary in USD | AS24: Count of Your Salary | AT24: Sum of Salary in USD | AU24: Count of Your Salary | AV24: Sum of Salary in USD | AW24: Count of Your Salary | AX24: Sum of Salary in USD | AY24: Count of Your Salary | AZ24: Sum of Salary in USD | BA24: Count of Your Salary | BB24: Sum of Salary in USD | BC24: Count of Your Salary | BR24: 1 or 2 hours a day | BS24: 2 to 3 hours per day | BT24: 4 to 6 hours a day | BU24: All the 8 hours baby, all the 8! | BV24: Excel ?!? What Excel?
B25: =IF(Dashboard!$P$4="All",Data!G576,IF(Data!K576=Dashboard!$P$4,Data!G576,NA())) ->  | F25: =IF(C25<>"",Data!$M576,"") ->  | G25: Stafmember | K25: =IF(Dashboard!$R$4="All",Data!G576,IF(Data!K576=Dashboard!$R$4,Data!G576,NA())) ->  | O25: =IF(L25<>"",Data!$M576,"") ->  | P25: Clinical audit manager | T25: =IF(OR(Dashboard!$P$4="All",Dashboard!$R$4="All"),NA(),IF(OR(Data!K576<>Dashboard!$P$4,Data!K576<>Dashboard!$R$4),Data!G576,NA())) -> 50000 | W25: China | AB25: 22 | AC25: UK | AD25: 67240.73011 | AI25: ID0003 | AJ25: 58000 | AK25: 1 | BQ25: ID0003 | BU25: 58000
B26: =IF(Dashboard!$P$4="All",Data!G577,IF(Data!K577=Dashboard!$P$4,Data!G577,NA())) ->  | F26: =IF(C26<>"",Data!$M577,"") ->  | G26: Trade Marketing | K26: =IF(Dashboard!$R$4="All",Data!G577,IF(Data!K577=Dashboard!$R$4,Data!G577,NA())) ->  | O26: =IF(L26<>"",Data!$M577,"") ->  | P26: Commercial Accountant | T26: =IF(OR(Dashboard!$P$4="All",Dashboard!$R$4="All"),NA(),IF(OR(Data!K577<>Dashboard!$P$4,Data!K577<>Dashboard!$R$4),Data!G577,NA())) -> 300000 | W26: Colombia | AB26: 23 | AC26: Israel | AD26: 66840 | AI26: ID0005 | AR26: 54000 | AS26: 1 | BQ26: ID0005 | BU26: 54000
B27: =IF(Dashboard!$P$4="All",Data!G578,IF(Data!K578=Dashboard!$P$4,Data!G578,NA())) ->  | F27: =IF(C27<>"",Data!$M578,"") ->  | K27: =IF(Dashboard!$R$4="All",Data!G578,IF(Data!K578=Dashboard!$R$4,Data!G578,NA())) ->  | O27: =IF(L27<>"",Data!$M578,"") ->  | P27: Commercial Director | T27: =IF(OR(Dashboard!$P$4="All",Dashboard!$R$4="All"),NA(),IF(OR(Data!K578<>Dashboard!$P$4,Data!K578<>Dashboard!$R$4),Data!G578,NA())) -> 104030.785 | W27: Costa Rica | AB27: 24 | AC27: Ireland | AD27: 61652.48477 | AI27: ID0014 | AJ27: 49000 | AK27: 1 | BQ27: ID0014 | BU27: 49000
B28: =IF(Dashboard!$P$4="All",Data!G579,IF(Data!K579=Dashboard!$P$4,Data!G579,NA())) ->  | F28: =IF(C28<>"",Data!$M579,"") ->  | K28: =IF(Dashboard!$R$4="All",Data!G579,IF(Data!K579=Dashboard!$R$4,Data!G579,NA())) ->  | O28: =IF(L28<>"",Data!$M579,"") ->  | P28: Commercial Manager | T28: =IF(OR(Dashboard!$P$4="All",Dashboard!$R$4="All"),NA(),IF(OR(Data!K579<>Dashboard!$P$4,Data!K579<>Dashboard!$R$4),Data!G579,NA())) -> 115000 | W28: Croatia | AB28: 25 | AC28: France | AD28: 56952.72505 | AI28: ID0015 | AR28: 85000 | AS28: 1 | BQ28: ID0015 | BR28: 85000
B29: =IF(Dashboard!$P$4="All",Data!G580,IF(Data!K580=Dashboard!$P$4,Data!G580,NA())) ->  | F29: =IF(C29<>"",Data!$M580,"") ->  | K29: =IF(Dashboard!$R$4="All",Data!G580,IF(Data!K580=Dashboard!$R$4,Data!G580,NA())) ->  | O29: =IF(L29<>"",Data!$M580,"") ->  | P29: compliance manager | T29: =IF(OR(Dashboard!$P$4="All",Dashboard!$R$4="All"),NA(),IF(OR(Data!K580<>Dashboard!$P$4,Data!K580<>Dashboard!$R$4),Data!G580,NA())) -> 70000 | W29: Czech Republic | AB29: 26 | AC29: Russia | AD29: 55905.22222 | AI29: ID0016 | AR29: 75000 | AS29: 1 | BQ29: ID0016 | BU29: 75000
B30: =IF(Dashboard!$P$4="All",Data!G581,IF(Data!K581=Dashboard!$P$4,Data!G581,NA())) ->  | F30: =IF(C30<>"",Data!$M581,"") ->  | K30: =IF(Dashboard!$R$4="All",Data!G581,IF(Data!K581=Dashboard!$R$4,Data!G581,NA())) ->  | O30: =IF(L30<>"",Data!$M581,"") ->  | P30: Construction Estimator | T30: =IF(OR(Dashboard!$P$4="All",Dashboard!$R$4="All"),NA(),IF(OR(Data!K581<>Dashboard!$P$4,Data!K581<>Dashboard!$R$4),Data!G581,NA())) -> 108110.4236 | W30: Denmark | AB30: 27 | AC30: Qatar | AD30: 53066.66667 | AI30: ID0022 | AJ30: 96000 | AK30: 1 | BQ30: ID0022 | BS30: 96000
B31: =IF(Dashboard!$P$4="All",Data!G582,IF(Data!K582=Dashboard!$P$4,Data!G582,NA())) ->  | F31: =IF(C31<>"",Data!$M582,"") ->  | K31: =IF(Dashboard!$R$4="All",Data!G582,IF(Data!K582=Dashboard!$R$4,Data!G582,NA())) ->  | O31: =IF(L31<>"",Data!$M582,"") ->  | P31: consultant | T31: =IF(OR(Dashboard!$P$4="All",Dashboard!$R$4="All"),NA(),IF(OR(Data!K582<>Dashboard!$P$4,Data!K582<>Dashboard!$R$4),Data!G582,NA())) -> 75000 | W31: Dominican Republic | AB31: 28 | AC31: Singapore | AD31: 52154.75405 | AI31: ID0024 | AP31: 75000 | AQ31: 1 | BQ31: ID0024 | BT31: 75000
B32: =IF(Dashboard!$P$4="All",Data!G583,IF(Data!K583=Dashboard!$P$4,Data!G583,NA())) ->  | F32: =IF(C32<>"",Data!$M583,"") ->  | K32: =IF(Dashboard!$R$4="All",Data!G583,IF(Data!K583=Dashboard!$R$4,Data!G583,NA())) ->  | O32: =IF(L32<>"",Data!$M583,"") ->  | P32: contracts officer | T32: =IF(OR(Dashboard!$P$4="All",Dashboard!$R$4="All"),NA(),IF(OR(Data!K583<>Dashboard!$P$4,Data!K583<>Dashboard!$R$4),Data!G583,NA())) -> 40414 | W32: Dubai | AB32: 29 | AC32: Kenya | AD32: 51497.00599 | AI32: ID0025 | AL32: 40000 | AM32: 1 | BQ32: ID0025 | BS32: 40000
B33: =IF(Dashboard!$P$4="All",Data!G584,IF(Data!K584=Dashboard!$P$4,Data!G584,NA())) ->  | F33: =IF(C33<>"",Data!$M584,"") ->  | K33: =IF(Dashboard!$R$4="All",Data!G584,IF(Data!K584=Dashboard!$R$4,Data!G584,NA())) ->  | O33: =IF(L33<>"",Data!$M584,"") ->  | P33: Corporate Finance Executive | T33: =IF(OR(Dashboard!$P$4="All",Dashboard!$R$4="All"),NA(),IF(OR(Data!K584<>Dashboard!$P$4,Data!K584<>Dashboard!$R$4),Data!G584,NA())) -> 65000 | W33: Egypt | AB33: 30 | AC33: Austria | AD33: 50815.97756 | AI33: ID0026 | AJ33: 60000 | AK33: 1 | BQ33: ID0026 | BU33: 60000
B34: =IF(Dashboard!$P$4="All",Data!G585,IF(Data!K585=Dashboard!$P$4,Data!G585,NA())) ->  | F34: =IF(C34<>"",Data!$M585,"") ->  | K34: =IF(Dashboard!$R$4="All",Data!G585,IF(Data!K585=Dashboard!$R$4,Data!G585,NA())) ->  | O34: =IF(L34<>"",Data!$M585,"") ->  | P34: Corporate Finance Manager | T34: =IF(OR(Dashboard!$P$4="All",Dashboard!$R$4="All"),NA(),IF(OR(Data!K585<>Dashboard!$P$4,Data!K585<>Dashboard!$R$4),Data!G585,NA())) -> 120000 | W34: Estonia | AB34: 31 | AC34: self-employed | AD34: 50000 | AI34: ID0037 | AL34: 150000 | AM34: 1 | BQ34: ID0037 | BS34: 150000
B35: =IF(Dashboard!$P$4="All",Data!G586,IF(Data!K586=Dashboard!$P$4,Data!G586,NA())) ->  | F35: =IF(C35<>"",Data!$M586,"") ->  | K35: =IF(Dashboard!$R$4="All",Data!G586,IF(Data!K586=Dashboard!$R$4,Data!G586,NA())) ->  | O35: =IF(L35<>"",Data!$M586,"") ->  | P35: Cost Analyst | T35: =IF(OR(Dashboard!$P$4="All",Dashboard!$R$4="All"),NA(),IF(OR(Data!K586<>Dashboard!$P$4,Data!K586<>Dashboard!$R$4),Data!G586,NA())) -> 15092.18021 | W35: Ethiopia | AB35: 32 | AC35: South Africa | AD35: 49555.62499 | AI35: ID0038 | AR35: 69000 | AS35: 1 | BQ35: ID0038 | BT35: 69000
B36: =IF(Dashboard!$P$4="All",Data!G587,IF(Data!K587=Dashboard!$P$4,Data!G587,NA())) ->  | F36: =IF(C36<>"",Data!$M587,"") ->  | K36: =IF(Dashboard!$R$4="All",Data!G587,IF(Data!K587=Dashboard!$R$4,Data!G587,NA())) ->  | O36: =IF(L36<>"",Data!$M587,"") ->  | P36: Data Analyst | T36: =IF(OR(Dashboard!$P$4="All",Dashboard!$R$4="All"),NA(),IF(OR(Data!K587<>Dashboard!$P$4,Data!K587<>Dashboard!$R$4),Data!G587,NA())) -> 36000 | W36: Europe | AB36: 33 | AC36: Turkey | AD36: 48000 | AI36: ID0039 | AV36: 30000 | AW36: 1 | BQ36: ID0039 | BS36: 30000
B37: =IF(Dashboard!$P$4="All",Data!G588,IF(Data!K588=Dashboard!$P$4,Data!G588,NA())) ->  | F37: =IF(C37<>"",Data!$M588,"") ->  | K37: =IF(Dashboard!$R$4="All",Data!G588,IF(Data!K588=Dashboard!$R$4,Data!G588,NA())) ->  | O37: =IF(L37<>"",Data!$M588,"") ->  | P37: Data Management Officer | T37: =IF(OR(Dashboard!$P$4="All",Dashboard!$R$4="All"),NA(),IF(OR(Data!K588<>Dashboard!$P$4,Data!K588<>Dashboard!$R$4),Data!G588,NA())) -> 63519.97195 | W37: Finland | AB37: 34 | AC37: Italy | AD37: 47258.85913 | AI37: ID0044 | AN37: 58000 | AO37: 1 | BQ37: ID0044 | BT37: 58000
B38: =IF(Dashboard!$P$4="All",Data!G589,IF(Data!K589=Dashboard!$P$4,Data!G589,NA())) ->  | F38: =IF(C38<>"",Data!$M589,"") ->  | K38: =IF(Dashboard!$R$4="All",Data!G589,IF(Data!K589=Dashboard!$R$4,Data!G589,NA())) ->  | O38: =IF(L38<>"",Data!$M589,"") ->  | P38: Data Quality & Analysis Manager | T38: =IF(OR(Dashboard!$P$4="All",Dashboard!$R$4="All"),NA(),IF(OR(Data!K589<>Dashboard!$P$4,Data!K589<>Dashboard!$R$4),Data!G589,NA())) -> 108000 | W38: France | AB38: 35 | AC38: Spain | AD38: 46235.66011 | AI38: ID0045 | BB38: 90000 | BC38: 1 | BQ38: ID0045 | BR38: 90000
B39: =IF(Dashboard!$P$4="All",Data!G590,IF(Data!K590=Dashboard!$P$4,Data!G590,NA())) ->  | F39: =IF(C39<>"",Data!$M590,"") ->  | K39: =IF(Dashboard!$R$4="All",Data!G590,IF(Data!K590=Dashboard!$R$4,Data!G590,NA())) ->  | O39: =IF(L39<>"",Data!$M590,"") ->  | P39: Data Team Leader | T39: =IF(OR(Dashboard!$P$4="All",Dashboard!$R$4="All"),NA(),IF(OR(Data!K590<>Dashboard!$P$4,Data!K590<>Dashboard!$R$4),Data!G590,NA())) -> 75000 | W39: Germany | AB39: 36 | AC39: Panama | AD39: 44759.98597 | AI39: ID0048 | AV39: 12000 | AW39: 1 | BQ39: ID0048 | BR39: 12000
B40: =IF(Dashboard!$P$4="All",Data!G591,IF(Data!K591=Dashboard!$P$4,Data!G591,NA())) ->  | F40: =IF(C40<>"",Data!$M591,"") ->  | K40: =IF(Dashboard!$R$4="All",Data!G591,IF(Data!K591=Dashboard!$R$4,Data!G591,NA())) ->  | O40: =IF(L40<>"",Data!$M591,"") ->  | P40: Database Manager | T40: =IF(OR(Dashboard!$P$4="All",Dashboard!$R$4="All"),NA(),IF(OR(Data!K591<>Dashboard!$P$4,Data!K591<>Dashboard!$R$4),Data!G591,NA())) -> 7123.166675 | W40: Ghana | AB40: 37 | AC40: Croatia | AD40: 43489.58654 | AI40: ID0051 | AN40: 57000 | AO40: 1 | BQ40: ID0051 | BS40: 57000
B41: =IF(Dashboard!$P$4="All",Data!G592,IF(Data!K592=Dashboard!$P$4,Data!G592,NA())) ->  | F41: =IF(C41<>"",Data!$M592,"") ->  | K41: =IF(Dashboard!$R$4="All",Data!G592,IF(Data!K592=Dashboard!$R$4,Data!G592,NA())) ->  | O41: =IF(L41<>"",Data!$M592,"") ->  | P41: Decision Analyst & Modeller | T41: =IF(OR(Dashboard!$P$4="All",Dashboard!$R$4="All"),NA(),IF(OR(Data!K592<>Dashboard!$P$4,Data!K592<>Dashboard!$R$4),Data!G592,NA())) -> 50000 | W41: Greece | AB41: 38 | AC41: UAE | AD41: 43014.90019 | AI41: ID0055 | AJ41: 62000 | AK41: 1 | BQ41: ID0055 | BT41: 62000
B42: =IF(Dashboard!$P$4="All",Data!G593,IF(Data!K593=Dashboard!$P$4,Data!G593,NA())) ->  | F42: =IF(C42<>"",Data!$M593,"") ->  | K42: =IF(Dashboard!$R$4="All",Data!G593,IF(Data!K593=Dashboard!$R$4,Data!G593,NA())) ->  | O42: =IF(L42<>"",Data!$M593,"") ->  | P42: Developer | T42: =IF(OR(Dashboard!$P$4="All",Dashboard!$R$4="All"),NA(),IF(OR(Data!K593<>Dashboard!$P$4,Data!K593<>Dashboard!$R$4),Data!G593,NA())) -> 45000 | W42: Guyana | AB42: 39 | AC42: Brazil | AD42: 42672.03657 | AI42: ID0059 | AJ42: 38000 | AK42: 1 | BQ42: ID0059 | BT42: 38000
B43: =IF(Dashboard!$P$4="All",Data!G594,IF(Data!K594=Dashboard!$P$4,Data!G594,NA())) ->  | F43: =IF(C43<>"",Data!$M594,"") ->  | K43: =IF(Dashboard!$R$4="All",Data!G594,IF(Data!K594=Dashboard!$R$4,Data!G594,NA())) ->  | O43: =IF(L43<>"",Data!$M594,"") ->  | P43: Development (Project & Planning) Manager | T43: =IF(OR(Dashboard!$P$4="All",Dashboard!$R$4="All"),NA(),IF(OR(Data!K594<>Dashboard!$P$4,Data!K594<>Dashboard!$R$4),Data!G594,NA())) -> 45000 | W43: Hong Kong | AB43: 40 | AC43: Kuwait | AD43: 42666.66667 | AI43: ID0060 | AT43: 41000 | AU43: 1 | BQ43: ID0060 | BT43: 41000
B44: =IF(Dashboard!$P$4="All",Data!G595,IF(Data!K595=Dashboard!$P$4,Data!G595,NA())) ->  | F44: =IF(C44<>"",Data!$M595,"") ->  | K44: =IF(Dashboard!$R$4="All",Data!G595,IF(Data!K595=Dashboard!$R$4,Data!G595,NA())) ->  | O44: =IF(L44<>"",Data!$M595,"") ->  | P44: Energy Analyst | T44: =IF(OR(Dashboard!$P$4="All",Dashboard!$R$4="All"),NA(),IF(OR(Data!K595<>Dashboard!$P$4,Data!K595<>Dashboard!$R$4),Data!G595,NA())) -> 90000 | W44: Hungary | AB44: 41 | AC44: Iceland | AD44: 41731 | AI44: ID0061 | AJ44: 68000 | AK44: 1 | BQ44: ID0061 | BU44: 68000
B45: =IF(Dashboard!$P$4="All",Data!G596,IF(Data!K596=Dashboard!$P$4,Data!G596,NA())) ->  | F45: =IF(C45<>"",Data!$M596,"") ->  | K45: =IF(Dashboard!$R$4="All",Data!G596,IF(Data!K596=Dashboard!$R$4,Data!G596,NA())) ->  | O45: =IF(L45<>"",Data!$M596,"") ->  | P45: Engineering Tech | T45: =IF(OR(Dashboard!$P$4="All",Dashboard!$R$4="All"),NA(),IF(OR(Data!K596<>Dashboard!$P$4,Data!K596<>Dashboard!$R$4),Data!G596,NA())) -> 4273.900005 | W45: Iceland | AB45: 42 | AC45: Belgium | AD45: 41707.21358 | AI45: ID0065 | AL45: 85000 | AM45: 1 | BQ45: ID0065 | BT45: 85000
B46: =IF(Dashboard!$P$4="All",Data!G597,IF(Data!K597=Dashboard!$P$4,Data!G597,NA())) ->  | F46: =IF(C46<>"",Data!$M597,"") ->  | K46: =IF(Dashboard!$R$4="All",Data!G597,IF(Data!K597=Dashboard!$R$4,Data!G597,NA())) ->  | O46: =IF(L46<>"",Data!$M597,"") ->  | P46: Environmental Information Analyst | T46: =IF(OR(Dashboard!$P$4="All",Dashboard!$R$4="All"),NA(),IF(OR(Data!K597<>Dashboard!$P$4,Data!K597<>Dashboard!$R$4),Data!G597,NA())) -> 50000 | W46: India | AB46: 43 | AC46: Zimbabwe | AD46: 36400 | AI46: ID0068 | AJ46: 85087 | AK46: 1 | BQ46: ID0068 | BS46: 85087
B47: =IF(Dashboard!$P$4="All",Data!G598,IF(Data!K598=Dashboard!$P$4,Data!G598,NA())) ->  | F47: =IF(C47<>"",Data!$M598,"") ->  | K47: =IF(Dashboard!$R$4="All",Data!G598,IF(Data!K598=Dashboard!$R$4,Data!G598,NA())) ->  | O47: =IF(L47<>"",Data!$M598,"") ->  | P47: Excel Consultant | T47: =IF(OR(Dashboard!$P$4="All",Dashboard!$R$4="All"),NA(),IF(OR(Data!K598<>Dashboard!$P$4,Data!K598<>Dashboard!$R$4),Data!G598,NA())) -> 65000 | W47: Indonesia | AB47: 44 | AC47: Azerbaijan | AD47: 36000 | AI47: ID0069 | AJ47: 50000 | AK47: 1 | BQ47: ID0069 | BU47: 50000
B48: =IF(Dashboard!$P$4="All",Data!G599,IF(Data!K599=Dashboard!$P$4,Data!G599,NA())) ->  | F48: =IF(C48<>"",Data!$M599,"") ->  | K48: =IF(Dashboard!$R$4="All",Data!G599,IF(Data!K599=Dashboard!$R$4,Data!G599,NA())) ->  | O48: =IF(L48<>"",Data!$M599,"") ->  | P48: Finance Analyst | T48: =IF(OR(Dashboard!$P$4="All",Dashboard!$R$4="All"),NA(),IF(OR(Data!K599<>Dashboard!$P$4,Data!K599<>Dashboard!$R$4),Data!G599,NA())) -> 70000 | W48: Iran | AB48: 45 | AC48: Czech Republic | AD48: 36000 | AI48: ID0071 | AJ48: 57000 | AK48: 1 | BQ48: ID0071 | BT48: 57000
B49: =IF(Dashboard!$P$4="All",Data!G600,IF(Data!K600=Dashboard!$P$4,Data!G600,NA())) ->  | F49: =IF(C49<>"",Data!$M600,"") ->  | K49: =IF(Dashboard!$R$4="All",Data!G600,IF(Data!K600=Dashboard!$R$4,Data!G600,NA())) ->  | O49: =IF(L49<>"",Data!$M600,"") ->  | P49: finance assistant | T49: =IF(OR(Dashboard!$P$4="All",Dashboard!$R$4="All"),NA(),IF(OR(Data!K600<>Dashboard!$P$4,Data!K600<>Dashboard!$R$4),Data!G600,NA())) -> 160000 | W49: Ireland | AB49: 46 | AC49: Saudi Arabia | AD49: 35832.12121 | AI49: ID0072 | AL49: 75000 | AM49: 1 | BQ49: ID0072 | BU49: 75000
B50: =IF(Dashboard!$P$4="All",Data!G601,IF(Data!K601=Dashboard!$P$4,Data!G601,NA())) ->  | F50: =IF(C50<>"",Data!$M601,"") ->  | K50: =IF(Dashboard!$R$4="All",Data!G601,IF(Data!K601=Dashboard!$R$4,Data!G601,NA())) ->  | O50: =IF(L50<>"",Data!$M601,"") ->  | P50: Finance Director | T50: =IF(OR(Dashboard!$P$4="All",Dashboard!$R$4="All"),NA(),IF(OR(Data!K601<>Dashboard!$P$4,Data!K601<>Dashboard!$R$4),Data!G601,NA())) -> 101990.9656 | W50: Israel | AB50: 47 | AC50: Uruguay | AD50: 35000 | AI50: ID0076 | AV50: 15000 | AW50: 1 | BQ50: ID0076 | BU50: 15000
B51: =IF(Dashboard!$P$4="All",Data!G602,IF(Data!K602=Dashboard!$P$4,Data!G602,NA())) ->  | F51: =IF(C51<>"",Data!$M602,"") ->  | K51: =IF(Dashboard!$R$4="All",Data!G602,IF(Data!K602=Dashboard!$R$4,Data!G602,NA())) ->  | O51: =IF(L51<>"",Data!$M602,"") ->  | P51: Finance manager | T51: =IF(OR(Dashboard!$P$4="All",Dashboard!$R$4="All"),NA(),IF(OR(Data!K602<>Dashboard!$P$4,Data!K602<>Dashboard!$R$4),Data!G602,NA())) -> 6767.008341 | W51: Italy | AB51: 48 | AC51: Poland | AD51: 34210.34538 | AI51: ID0080 | AL51: 50000 | AM51: 1 | BQ51: ID0080 | BS51: 50000
B52: =IF(Dashboard!$P$4="All",Data!G603,IF(Data!K603=Dashboard!$P$4,Data!G603,NA())) ->  | F52: =IF(C52<>"",Data!$M603,"") ->  | K52: =IF(Dashboard!$R$4="All",Data!G603,IF(Data!K603=Dashboard!$R$4,Data!G603,NA())) ->  | O52: =IF(L52<>"",Data!$M603,"") ->  | P52: financial accountant | T52: =IF(OR(Dashboard!$P$4="All",Dashboard!$R$4="All"),NA(),IF(OR(Data!K603<>Dashboard!$P$4,Data!K603<>Dashboard!$R$4),Data!G603,NA())) -> 30000 | W52: Japan | AB52: 49 | AC52: Portugal | AD52: 32907.76341 | AI52: ID0083 | AP52: 150000 | AQ52: 1 | BQ52: ID0083 | BU52: 150000
B53: =IF(Dashboard!$P$4="All",Data!G604,IF(Data!K604=Dashboard!$P$4,Data!G604,NA())) ->  | F53: =IF(C53<>"",Data!$M604,"") ->  | K53: =IF(Dashboard!$R$4="All",Data!G604,IF(Data!K604=Dashboard!$R$4,Data!G604,NA())) ->  | O53: =IF(L53<>"",Data!$M604,"") ->  | P53: Financial Analyst | T53: =IF(OR(Dashboard!$P$4="All",Dashboard!$R$4="All"),NA(),IF(OR(Data!K604<>Dashboard!$P$4,Data!K604<>Dashboard!$R$4),Data!G604,NA())) -> 7479.325009 | W53: Kenya | AB53: 50 | AC53: Dubai | AD53: 32166.95919 | AI53: ID0084 | AL53: 120000 | AM53: 1 | BQ53: ID0084 | BT53: 120000
B54: =IF(Dashboard!$P$4="All",Data!G605,IF(Data!K605=Dashboard!$P$4,Data!G605,NA())) ->  | F54: =IF(C54<>"",Data!$M605,"") ->  | K54: =IF(Dashboard!$R$4="All",Data!G605,IF(Data!K605=Dashboard!$R$4,Data!G605,NA())) ->  | O54: =IF(L54<>"",Data!$M605,"") ->  | P54: Financial Controller | T54: =IF(OR(Dashboard!$P$4="All",Dashboard!$R$4="All"),NA(),IF(OR(Data!K605<>Dashboard!$P$4,Data!K605<>Dashboard!$R$4),Data!G605,NA())) -> 61000 | W54: Kuwait | AB54: 51 | AC54: Mexico | AD54: 32138.49829 | AI54: ID0087 | AR54: 110000 | AS54: 1 | BQ54: ID0087 | BS54: 110000
B55: =IF(Dashboard!$P$4="All",Data!G606,IF(Data!K606=Dashboard!$P$4,Data!G606,NA())) ->  | F55: =IF(C55<>"",Data!$M606,"") ->  | K55: =IF(Dashboard!$R$4="All",Data!G606,IF(Data!K606=Dashboard!$R$4,Data!G606,NA())) ->  | O55: =IF(L55<>"",Data!$M606,"") ->  | P55: Financial Modeller | T55: =IF(OR(Dashboard!$P$4="All",Dashboard!$R$4="All"),NA(),IF(OR(Data!K606<>Dashboard!$P$4,Data!K606<>Dashboard!$R$4),Data!G606,NA())) -> 13800 | W55: Kuwait | AB55: 52 | AC55: Greece | AD55: 30066.12006 | AI55: ID0089 | AJ55: 40000 | AK55: 1 | BQ55: ID0089 | BT55: 40000
B56: =IF(Dashboard!$P$4="All",Data!G607,IF(Data!K607=Dashboard!$P$4,Data!G607,NA())) ->  | F56: =IF(C56<>"",Data!$M607,"") ->  | K56: =IF(Dashboard!$R$4="All",Data!G607,IF(Data!K607=Dashboard!$R$4,Data!G607,NA())) ->  | O56: =IF(L56<>"",Data!$M607,"") ->  | P56: Graduate Structural Engineer | T56: =IF(OR(Dashboard!$P$4="All",Dashboard!$R$4="All"),NA(),IF(OR(Data!K607<>Dashboard!$P$4,Data!K607<>Dashboard!$R$4),Data!G607,NA())) -> 15136.72918 | W56: Latin America | AB56: 53 | AC56: Indonesia | AD56: 28872.8368 | AI56: ID0091 | AP56: 125000 | AQ56: 1 | BQ56: ID0091 | BT56: 125000
B57: =IF(Dashboard!$P$4="All",Data!G608,IF(Data!K608=Dashboard!$P$4,Data!G608,NA())) ->  | F57: =IF(C57<>"",Data!$M608,"") ->  | K57: =IF(Dashboard!$R$4="All",Data!G608,IF(Data!K608=Dashboard!$R$4,Data!G608,NA())) ->  | O57: =IF(L57<>"",Data!$M608,"") ->  | P57: Head of Finance | T57: =IF(OR(Dashboard!$P$4="All",Dashboard!$R$4="All"),NA(),IF(OR(Data!K608<>Dashboard!$P$4,Data!K608<>Dashboard!$R$4),Data!G608,NA())) -> 32054.25004 | W57: Lesotho | AB57: 54 | AC57: Costa Rica | AD57: 28109.62755 | AI57: ID0092 | AL57: 36000 | AM57: 1 | BQ57: ID0092 | BS57: 36000
B58: =IF(Dashboard!$P$4="All",Data!G609,IF(Data!K609=Dashboard!$P$4,Data!G609,NA())) ->  | F58: =IF(C58<>"",Data!$M609,"") ->  | K58: =IF(Dashboard!$R$4="All",Data!G609,IF(Data!K609=Dashboard!$R$4,Data!G609,NA())) ->  | O58: =IF(L58<>"",Data!$M609,"") ->  | P58: Health and safety advisor | T58: =IF(OR(Dashboard!$P$4="All",Dashboard!$R$4="All"),NA(),IF(OR(Data!K609<>Dashboard!$P$4,Data!K609<>Dashboard!$R$4),Data!G609,NA())) -> 80000 | W58: Libya | AB58: 55 | AC58: Libya | AD58: 24864 | AI58: ID0094 | AJ58: 75000 | AK58: 1 | BQ58: ID0094 | BR58: 75000
B59: =IF(Dashboard!$P$4="All",Data!G610,IF(Data!K610=Dashboard!$P$4,Data!G610,NA())) ->  | F59: =IF(C59<>"",Data!$M610,"") ->  | K59: =IF(Dashboard!$R$4="All",Data!G610,IF(Data!K610=Dashboard!$R$4,Data!G610,NA())) ->  | O59: =IF(L59<>"",Data!$M610,"") ->  | P59: HR Advisor - Systems & MI | T59: =IF(OR(Dashboard!$P$4="All",Dashboard!$R$4="All"),NA(),IF(OR(Data!K610<>Dashboard!$P$4,Data!K610<>Dashboard!$R$4),Data!G610,NA())) -> 21000 | W59: Lithuania | AB59: 56 | AC59: Hungary | AD59: 24716.34725 | AI59: ID0095 | AP59: 95000 | AQ59: 1 | BQ59: ID0095 | BT59: 95000
B60: =IF(Dashboard!$P$4="All",Data!G611,IF(Data!K611=Dashboard!$P$4,Data!G611,NA())) ->  | F60: =IF(C60<>"",Data!$M611,"") ->  | K60: =IF(Dashboard!$R$4="All",Data!G611,IF(Data!K611=Dashboard!$R$4,Data!G611,NA())) ->  | O60: =IF(L60<>"",Data!$M611,"") ->  | P60: ICT Technical Analyst | T60: =IF(OR(Dashboard!$P$4="All",Dashboard!$R$4="All"),NA(),IF(OR(Data!K611<>Dashboard!$P$4,Data!K611<>Dashboard!$R$4),Data!G611,NA())) -> 245840.3808 | W60: Malaysia | AB60: 57 | AC60: Mozambique | AD60: 24000 | AI60: ID0096 | AL60: 24000 | AM60: 1 | BQ60: ID0096 | BS60: 24000
B61: =IF(Dashboard!$P$4="All",Data!G612,IF(Data!K612=Dashboard!$P$4,Data!G612,NA())) ->  | F61: =IF(C61<>"",Data!$M612,"") ->  | K61: =IF(Dashboard!$R$4="All",Data!G612,IF(Data!K612=Dashboard!$R$4,Data!G612,NA())) ->  | O61: =IF(L61<>"",Data!$M612,"") ->  | P61: Infection Prevention Surveillance Specialist | T61: =IF(OR(Dashboard!$P$4="All",Dashboard!$R$4="All"),NA(),IF(OR(Data!K612<>Dashboard!$P$4,Data!K612<>Dashboard!$R$4),Data!G612,NA())) -> 2849.26667 | W61: Mauritius | AB61: 58 | AC61: Argentina | AD61: 24000 | AI61: ID0097 | AL61: 91000 | AM61: 1 | BQ61: ID0097 | BR61: 91000
B62: =IF(Dashboard!$P$4="All",Data!G613,IF(Data!K613=Dashboard!$P$4,Data!G613,NA())) ->  | F62: =IF(C62<>"",Data!$M613,"") ->  | K62: =IF(Dashboard!$R$4="All",Data!G613,IF(Data!K613=Dashboard!$R$4,Data!G613,NA())) ->  | O62: =IF(L62<>"",Data!$M613,"") ->  | P62: Information Analyst | T62: =IF(OR(Dashboard!$P$4="All",Dashboard!$R$4="All"),NA(),IF(OR(Data!K613<>Dashboard!$P$4,Data!K613<>Dashboard!$R$4),Data!G613,NA())) -> 8400 | W62: Mexico | AB62: 59 | AC62: Malaysia | AD62: 23371.61657 | AI62: ID0098 | AJ62: 40000 | AK62: 1 | BQ62: ID0098 | BT62: 40000
B63: =IF(Dashboard!$P$4="All",Data!G614,IF(Data!K614=Dashboard!$P$4,Data!G614,NA())) ->  | F63: =IF(C63<>"",Data!$M614,"") ->  | K63: =IF(Dashboard!$R$4="All",Data!G614,IF(Data!K614=Dashboard!$R$4,Data!G614,NA())) ->  | O63: =IF(L63<>"",Data!$M614,"") ->  | P63: investment accountant | T63: =IF(OR(Dashboard!$P$4="All",Dashboard!$R$4="All"),NA(),IF(OR(Data!K614<>Dashboard!$P$4,Data!K614<>Dashboard!$R$4),Data!G614,NA())) -> 86692.32079 | W63: Mongolia | AB63: 60 | AC63: Sri Lanka | AD63: 22921.15479 | AI63: ID0099 | AL63: 57000 | AM63: 1 | BQ63: ID0099 | BT63: 57000
B64: =IF(Dashboard!$P$4="All",Data!G615,IF(Data!K615=Dashboard!$P$4,Data!G615,NA())) ->  | F64: =IF(C64<>"",Data!$M615,"") ->  | K64: =IF(Dashboard!$R$4="All",Data!G615,IF(Data!K615=Dashboard!$R$4,Data!G615,NA())) ->  | O64: =IF(L64<>"",Data!$M615,"") ->  | P64: IT consultant | T64: =IF(OR(Dashboard!$P$4="All",Dashboard!$R$4="All"),NA(),IF(OR(Data!K615<>Dashboard!$P$4,Data!K615<>Dashboard!$R$4),Data!G615,NA())) -> 50000 | W64: Montenegro | AB64: 61 | AC64: Arabian Gulf | AD64: 21000 | AI64: ID0100 | AV64: 74000 | AW64: 1 | BQ64: ID0100 | BT64: 74000
B65: =IF(Dashboard!$P$4="All",Data!G616,IF(Data!K616=Dashboard!$P$4,Data!G616,NA())) ->  | F65: =IF(C65<>"",Data!$M616,"") ->  | K65: =IF(Dashboard!$R$4="All",Data!G616,IF(Data!K616=Dashboard!$R$4,Data!G616,NA())) ->  | O65: =IF(L65<>"",Data!$M616,"") ->  | P65: IT Project Manager, EMEA | T65: =IF(OR(Dashboard!$P$4="All",Dashboard!$R$4="All"),NA(),IF(OR(Data!K616<>Dashboard!$P$4,Data!K616<>Dashboard!$R$4),Data!G616,NA())) -> 4000 | W65: Morocco | AB65: 62 | AC65: Albania | AD65: 20571 | AI65: ID0101 | AJ65: 80000 | AK65: 1 | BQ65: ID0101 | BT65: 80000
B66: =IF(Dashboard!$P$4="All",Data!G617,IF(Data!K617=Dashboard!$P$4,Data!G617,NA())) ->  | F66: =IF(C66<>"",Data!$M617,"") ->  | K66: =IF(Dashboard!$R$4="All",Data!G617,IF(Data!K617=Dashboard!$R$4,Data!G617,NA())) ->  | O66: =IF(L66<>"",Data!$M617,"") ->  | P66: Job Build analyst | T66: =IF(OR(Dashboard!$P$4="All",Dashboard!$R$4="All"),NA(),IF(OR(Data!K617<>Dashboard!$P$4,Data!K617<>Dashboard!$R$4),Data!G617,NA())) -> 101990.9656 | W66: Mozambique | AB66: 63 | AC66: Paraguay | AD66: 20000 | AI66: ID0102 | AT66: 90000 | AU66: 1 | BQ66: ID0102 | BT66: 90000
B67: =IF(Dashboard!$P$4="All",Data!G618,IF(Data!K618=Dashboard!$P$4,Data!G618,NA())) ->  | F67: =IF(C67<>"",Data!$M618,"") ->  | K67: =IF(Dashboard!$R$4="All",Data!G618,IF(Data!K618=Dashboard!$R$4,Data!G618,NA())) ->  | O67: =IF(L67<>"",Data!$M618,"") ->  | P67: LOGISTIC MANAGER | T67: =IF(OR(Dashboard!$P$4="All",Dashboard!$R$4="All"),NA(),IF(OR(Data!K618<>Dashboard!$P$4,Data!K618<>Dashboard!$R$4),Data!G618,NA())) -> 95000 | W67: Myanmar | AB67: 64 | AC67: Hong Kong | AD67: 20000 | AI67: ID0104 | AL67: 52000 | AM67: 1 | BQ67: ID0104 | BT67: 52000
B68: =IF(Dashboard!$P$4="All",Data!G619,IF(Data!K619=Dashboard!$P$4,Data!G619,NA())) ->  | C68: =IF(ISNA(B68),"",B68) ->  | D68: =IF(C68>=PERCENTILE($C$3:$C$1337,0.9),C68,"") ->  | E68: =IF(C68<=PERCENTILE($C$3:$C$1337,0.1),C68,"") ->  | F68: =IF(C68<>"",Data!$M619,"") ->  | K68: =IF(Dashboard!$R$4="All",Data!G619,IF(Data!K619=Dashboard!$R$4,Data!G619,NA())) ->  | L68: =IF(ISNA(K68),"",K68) ->  | M68: =IF(L68>=PERCENTILE($L$3:$L$1337,0.9),L68,"") ->  | N68: =IF(L68<=PERCENTILE($L$3:$L$1337,0.1),L68,"") ->  | O68: =IF(L68<>"",Data!$M619,"") ->  | P68: management accountant | T68: =IF(OR(Dashboard!$P$4="All",Dashboard!$R$4="All"),NA(),IF(OR(Data!K619<>Dashboard!$P$4,Data!K619<>Dashboard!$R$4),Data!G619,NA())) -> 10000 | W68: Netherlands | AB68: 65 | AC68: Egypt | AD68: 19831.43282 | AI68: ID0106 | AJ68: 36000 | AK68: 1 | BQ68: ID0106 | BT68: 36000
B69: =IF(Dashboard!$P$4="All",Data!G620,IF(Data!K620=Dashboard!$P$4,Data!G620,NA())) ->  | F69: =IF(C69<>"",Data!$M620,"") ->  | K69: =IF(Dashboard!$R$4="All",Data!G620,IF(Data!K620=Dashboard!$R$4,Data!G620,NA())) ->  | O69: =IF(L69<>"",Data!$M620,"") ->  | P69: Management Consultant | T69: =IF(OR(Dashboard!$P$4="All",Dashboard!$R$4="All"),NA(),IF(OR(Data!K620<>Dashboard!$P$4,Data!K620<>Dashboard!$R$4),Data!G620,NA())) -> 4200 | W69: New Zealand | AB69: 66 | AC69: Slovenia | AD69: 19055.99158 | AI69: ID0107 | AJ69: 57400 | AK69: 1 | BQ69: ID0107 | BT69: 57400
B70: =IF(Dashboard!$P$4="All",Data!G621,IF(Data!K621=Dashboard!$P$4,Data!G621,NA())) ->  | F70: =IF(C70<>"",Data!$M621,"") ->  | K70: =IF(Dashboard!$R$4="All",Data!G621,IF(Data!K621=Dashboard!$R$4,Data!G621,NA())) ->  | O70: =IF(L70<>"",Data!$M621,"") ->  | P70: Management Information Analyst | T70: =IF(OR(Dashboard!$P$4="All",Dashboard!$R$4="All"),NA(),IF(OR(Data!K621<>Dashboard!$P$4,Data!K621<>Dashboard!$R$4),Data!G621,NA())) -> 12821.70001 | W70: Nigeria | AB70: =AB69+1 -> 67 | AC70: Ghana | AD70: 18000 | AI70: ID0108 | AJ70: 66000 | AK70: 1 | BQ70: ID0108 | BS70: 66000
B71: =IF(Dashboard!$P$4="All",Data!G622,IF(Data!K622=Dashboard!$P$4,Data!G622,NA())) ->  | F71: =IF(C71<>"",Data!$M622,"") ->  | K71: =IF(Dashboard!$R$4="All",Data!G622,IF(Data!K622=Dashboard!$R$4,Data!G622,NA())) ->  | O71: =IF(L71<>"",Data!$M622,"") ->  | P71: Manager | T71: =IF(OR(Dashboard!$P$4="All",Dashboard!$R$4="All"),NA(),IF(OR(Data!K622<>Dashboard!$P$4,Data!K622<>Dashboard!$R$4),Data!G622,NA())) -> 39000 | W71: Norway | AB71: 68 | AC71: Iran | AD71: 18000 | AI71: ID0111 | AJ71: 85000 | AK71: 1 | BQ71: ID0111 | BT71: 85000
B72: =IF(Dashboard!$P$4="All",Data!G623,IF(Data!K623=Dashboard!$P$4,Data!G623,NA())) ->  | F72: =IF(C72<>"",Data!$M623,"") ->  | K72: =IF(Dashboard!$R$4="All",Data!G623,IF(Data!K623=Dashboard!$R$4,Data!G623,NA())) ->  | O72: =IF(L72<>"",Data!$M623,"") ->  | P72: Managing Director | T72: =IF(OR(Dashboard!$P$4="All",Dashboard!$R$4="All"),NA(),IF(OR(Data!K623<>Dashboard!$P$4,Data!K623<>Dashboard!$R$4),Data!G623,NA())) -> 60000 | W72: Oman | AB72: 69 | AC72: Myanmar | AD72: 17700 | AI72: ID0112 | AT72: 50000 | AU72: 1 | BQ72: ID0112 | BT72: 50000
B73: =IF(Dashboard!$P$4="All",Data!G624,IF(Data!K624=Dashboard!$P$4,Data!G624,NA())) ->  | F73: =IF(C73<>"",Data!$M624,"") ->  | K73: =IF(Dashboard!$R$4="All",Data!G624,IF(Data!K624=Dashboard!$R$4,Data!G624,NA())) ->  | O73: =IF(L73<>"",Data!$M624,"") ->  | P73: Managing Partner | T73: =IF(OR(Dashboard!$P$4="All",Dashboard!$R$4="All"),NA(),IF(OR(Data!K624<>Dashboard!$P$4,Data!K624<>Dashboard!$R$4),Data!G624,NA())) -> 173384.6416 | W73: Pakistan | AB73: 70 | AC73: Philippines | AD73: 17479.29236 | AI73: ID0113 | AL73: 58000 | AM73: 1 | BQ73: ID0113 | BT73: 58000
B74: =IF(Dashboard!$P$4="All",Data!G625,IF(Data!K625=Dashboard!$P$4,Data!G625,NA())) ->  | F74: =IF(C74<>"",Data!$M625,"") ->  | K74: =IF(Dashboard!$R$4="All",Data!G625,IF(Data!K625=Dashboard!$R$4,Data!G625,NA())) ->  | O74: =IF(L74<>"",Data!$M625,"") ->  | P74: Manufacturing consultant | T74: =IF(OR(Dashboard!$P$4="All",Dashboard!$R$4="All"),NA(),IF(OR(Data!K625<>Dashboard!$P$4,Data!K625<>Dashboard!$R$4),Data!G625,NA())) -> 125000 | W74: Panama | AB74: 71 | AC74: China | AD74: 17046.0901 | AI74: ID0114 | AN74: 37900 | AO74: 1 | BQ74: ID0114 | BU74: 37900
B75: =IF(Dashboard!$P$4="All",Data!G626,IF(Data!K626=Dashboard!$P$4,Data!G626,NA())) ->  | F75: =IF(C75<>"",Data!$M626,"") ->  | K75: =IF(Dashboard!$R$4="All",Data!G626,IF(Data!K626=Dashboard!$R$4,Data!G626,NA())) ->  | O75: =IF(L75<>"",Data!$M626,"") ->  | P75: Market Analyst | T75: =IF(OR(Dashboard!$P$4="All",Dashboard!$R$4="All"),NA(),IF(OR(Data!K626<>Dashboard!$P$4,Data!K626<>Dashboard!$R$4),Data!G626,NA())) -> 79552.9532 | W75: Paraguay | AB75: 72 | AC75: Romania | AD75: 16449.97676 | AI75: ID0116 | AJ75: 67000 | AK75: 1 | BQ75: ID0116 | BT75: 67000
B76: =IF(Dashboard!$P$4="All",Data!G627,IF(Data!K627=Dashboard!$P$4,Data!G627,NA())) ->  | F76: =IF(C76<>"",Data!$M627,"") ->  | K76: =IF(Dashboard!$R$4="All",Data!G627,IF(Data!K627=Dashboard!$R$4,Data!G627,NA())) ->  | O76: =IF(L76<>"",Data!$M627,"") ->  | P76: MDM Executive (Business Analyst) | T76: =IF(OR(Dashboard!$P$4="All",Dashboard!$R$4="All"),NA(),IF(OR(Data!K627<>Dashboard!$P$4,Data!K627<>Dashboard!$R$4),Data!G627,NA())) -> 3561.583337 | W76: Peru | AB76: 73 | AC76: Peru | AD76: 15840 | AI76: ID0118 | AJ76: 56160 | AK76: 1 | BQ76: ID0118 | BT76: 56160
B77: =IF(Dashboard!$P$4="All",Data!G628,IF(Data!K628=Dashboard!$P$4,Data!G628,NA())) ->  | F77: =IF(C77<>"",Data!$M628,"") ->  | K77: =IF(Dashboard!$R$4="All",Data!G628,IF(Data!K628=Dashboard!$R$4,Data!G628,NA())) ->  | O77: =IF(L77<>"",Data!$M628,"") ->  | P77: Mgmt Accountant | T77: =IF(OR(Dashboard!$P$4="All",Dashboard!$R$4="All"),NA(),IF(OR(Data!K628<>Dashboard!$P$4,Data!K628<>Dashboard!$R$4),Data!G628,NA())) -> 80000 | W77: Philippines | AB77: 74 | AC77: Kuwait | AD77: 15600 | AI77: ID0120 | AJ77: 52000 | AK77: 1 | BQ77: ID0120 | BV77: 52000
B78: =IF(Dashboard!$P$4="All",Data!G629,IF(Data!K629=Dashboard!$P$4,Data!G629,NA())) ->  | F78: =IF(C78<>"",Data!$M629,"") ->  | K78: =IF(Dashboard!$R$4="All",Data!G629,IF(Data!K629=Dashboard!$R$4,Data!G629,NA())) ->  | O78: =IF(L78<>"",Data!$M629,"") ->  | P78: MI Analyst | T78: =IF(OR(Dashboard!$P$4="All",Dashboard!$R$4="All"),NA(),IF(OR(Data!K629<>Dashboard!$P$4,Data!K629<>Dashboard!$R$4),Data!G629,NA())) -> 10684.75001 | W78: Poland | AB78: 75 | AC78: Lithuania | AD78: 15000 | AI78: ID0122 | AN78: 70000 | AO78: 1 | BQ78: ID0122 | BU78: 70000
B79: =IF(Dashboard!$P$4="All",Data!G630,IF(Data!K630=Dashboard!$P$4,Data!G630,NA())) ->  | F79: =IF(C79<>"",Data!$M630,"") ->  | K79: =IF(Dashboard!$R$4="All",Data!G630,IF(Data!K630=Dashboard!$R$4,Data!G630,NA())) ->  | O79: =IF(L79<>"",Data!$M630,"") ->  | P79: MI Specialist | T79: =IF(OR(Dashboard!$P$4="All",Dashboard!$R$4="All"),NA(),IF(OR(Data!K630<>Dashboard!$P$4,Data!K630<>Dashboard!$R$4),Data!G630,NA())) -> 5342.375006 | W79: Portugal | AB79: 76 | AC79: Bulgaria | AD79: 14400 | AI79: ID0123 | AT79: 50000 | AU79: 1 | BQ79: ID0123 | BT79: 50000
B80: =IF(Dashboard!$P$4="All",Data!G631,IF(Data!K631=Dashboard!$P$4,Data!G631,NA())) ->  | F80: =IF(C80<>"",Data!$M631,"") ->  | K80: =IF(Dashboard!$R$4="All",Data!G631,IF(Data!K631=Dashboard!$R$4,Data!G631,NA())) ->  | O80: =IF(L80<>"",Data!$M631,"") ->  | P80: Modeller | T80: =IF(OR(Dashboard!$P$4="All",Dashboard!$R$4="All"),NA(),IF(OR(Data!K631<>Dashboard!$P$4,Data!K631<>Dashboard!$R$4),Data!G631,NA())) -> 71231.66675 | W80: Qatar | AB80: 77 | AC80: Morocco | AD80: 13745.70447 | AI80: ID0125 | AJ80: 80000 | AK80: 1 | BQ80: ID0125 | BT80: 80000
B81: =IF(Dashboard!$P$4="All",Data!G632,IF(Data!K632=Dashboard!$P$4,Data!G632,NA())) ->  | F81: =IF(C81<>"",Data!$M632,"") ->  | K81: =IF(Dashboard!$R$4="All",Data!G632,IF(Data!K632=Dashboard!$R$4,Data!G632,NA())) ->  | O81: =IF(L81<>"",Data!$M632,"") ->  | P81: Network Administrator | T81: =IF(OR(Dashboard!$P$4="All",Dashboard!$R$4="All"),NA(),IF(OR(Data!K632<>Dashboard!$P$4,Data!K632<>Dashboard!$R$4),Data!G632,NA())) -> 80135.62509 | W81: Republic of Georgia | AB81: 78 | AC81: India | AD81: 13529.43089 | AI81: ID0126 | AL81: 128000 | AM81: 1 | BQ81: ID0126 | BU81: 128000
B82: =IF(Dashboard!$P$4="All",Data!G633,IF(Data!K633=Dashboard!$P$4,Data!G633,NA())) ->  | F82: =IF(C82<>"",Data!$M633,"") ->  | K82: =IF(Dashboard!$R$4="All",Data!G633,IF(Data!K633=Dashboard!$R$4,Data!G633,NA())) ->  | O82: =IF(L82<>"",Data!$M633,"") ->  | P82: Network Designer | T82: =IF(OR(Dashboard!$P$4="All",Dashboard!$R$4="All"),NA(),IF(OR(Data!K633<>Dashboard!$P$4,Data!K633<>Dashboard!$R$4),Data!G633,NA())) -> 54084.88377 | W82: Romania | AB82: 79 | AC82: Montenegro | AD82: 13500 | AI82: ID0127 | AL82: 44000 | AM82: 1 | BQ82: ID0127 | BR82: 44000
B83: =IF(Dashboard!$P$4="All",Data!G634,IF(Data!K634=Dashboard!$P$4,Data!G634,NA())) ->  | F83: =IF(C83<>"",Data!$M634,"") ->  | K83: =IF(Dashboard!$R$4="All",Data!G634,IF(Data!K634=Dashboard!$R$4,Data!G634,NA())) ->  | O83: =IF(L83<>"",Data!$M634,"") ->  | P83: Operations Analyst | T83: =IF(OR(Dashboard!$P$4="All",Dashboard!$R$4="All"),NA(),IF(OR(Data!K634<>Dashboard!$P$4,Data!K634<>Dashboard!$R$4),Data!G634,NA())) -> 53000 | W83: Russia | AB83: 80 | AC83: Nigeria | AD83: 13494.89625 | AI83: ID0128 | AN83: 65000 | AO83: 1 | BQ83: ID0128 | BU83: 65000
B84: =IF(Dashboard!$P$4="All",Data!G635,IF(Data!K635=Dashboard!$P$4,Data!G635,NA())) ->  | F84: =IF(C84<>"",Data!$M635,"") ->  | K84: =IF(Dashboard!$R$4="All",Data!G635,IF(Data!K635=Dashboard!$R$4,Data!G635,NA())) ->  | O84: =IF(L84<>"",Data!$M635,"") ->  | P84: Ops Adminstrator | T84: =IF(OR(Dashboard!$P$4="All",Dashboard!$R$4="All"),NA(),IF(OR(Data!K635<>Dashboard!$P$4,Data!K635<>Dashboard!$R$4),Data!G635,NA())) -> 5342.375006 | W84: Saudi Arabia | AB84: 81 | AC84: Slovakia | AD84: 13000 | AI84: ID0132 | AJ84: 45000 | AK84: 1 | BQ84: ID0132 | BT84: 45000
B85: =IF(Dashboard!$P$4="All",Data!G636,IF(Data!K636=Dashboard!$P$4,Data!G636,NA())) ->  | F85: =IF(C85<>"",Data!$M636,"") ->  | K85: =IF(Dashboard!$R$4="All",Data!G636,IF(Data!K636=Dashboard!$R$4,Data!G636,NA())) ->  | O85: =IF(L85<>"",Data!$M636,"") ->  | P85: Owner of Business Improvement Consultancy | T85: =IF(OR(Dashboard!$P$4="All",Dashboard!$R$4="All"),NA(),IF(OR(Data!K636<>Dashboard!$P$4,Data!K636<>Dashboard!$R$4),Data!G636,NA())) -> 7123.166675 | W85: self-employed | AB85: 82 | AC85: Zambia | AD85: 13000 | AI85: ID0133 | AJ85: 54000 | AK85: 1 | BQ85: ID0133 | BS85: 54000
B86: =IF(Dashboard!$P$4="All",Data!G637,IF(Data!K637=Dashboard!$P$4,Data!G637,NA())) ->  | F86: =IF(C86<>"",Data!$M637,"") ->  | K86: =IF(Dashboard!$R$4="All",Data!G637,IF(Data!K637=Dashboard!$R$4,Data!G637,NA())) ->  | O86: =IF(L86<>"",Data!$M637,"") ->  | P86: Planning & Scheduling Manager | T86: =IF(OR(Dashboard!$P$4="All",Dashboard!$R$4="All"),NA(),IF(OR(Data!K637<>Dashboard!$P$4,Data!K637<>Dashboard!$R$4),Data!G637,NA())) -> 10684.75001 | W86: Singapore | AB86: 83 | AC86: Colombia | AD86: 12362 | AI86: ID0135 | AJ86: 71000 | AK86: 1 | BQ86: ID0135 | BT86: 71000
B87: =IF(Dashboard!$P$4="All",Data!G638,IF(Data!K638=Dashboard!$P$4,Data!G638,NA())) ->  | F87: =IF(C87<>"",Data!$M638,"") ->  | K87: =IF(Dashboard!$R$4="All",Data!G638,IF(Data!K638=Dashboard!$R$4,Data!G638,NA())) ->  | O87: =IF(L87<>"",Data!$M638,"") ->  | P87: Policy, Performance and Research Officer | T87: =IF(OR(Dashboard!$P$4="All",Dashboard!$R$4="All"),NA(),IF(OR(Data!K638<>Dashboard!$P$4,Data!K638<>Dashboard!$R$4),Data!G638,NA())) -> 4000 | W87: Slovakia | AB87: 84 | AC87: Estonia | AD87: 12000 | AI87: ID0139 | AJ87: 40000 | AK87: 1 | BQ87: ID0139 | BT87: 40000
B88: =IF(Dashboard!$P$4="All",Data!G639,IF(Data!K639=Dashboard!$P$4,Data!G639,NA())) ->  | F88: =IF(C88<>"",Data!$M639,"") ->  | K88: =IF(Dashboard!$R$4="All",Data!G639,IF(Data!K639=Dashboard!$R$4,Data!G639,NA())) ->  | O88: =IF(L88<>"",Data!$M639,"") ->  | P88: pricing manager | T88: =IF(OR(Dashboard!$P$4="All",Dashboard!$R$4="All"),NA(),IF(OR(Data!K639<>Dashboard!$P$4,Data!K639<>Dashboard!$R$4),Data!G639,NA())) -> 8000 | W88: Slovenia | AB88: 85 | AC88: Asia | AD88: 12000 | AI88: ID0142 | AJ88: 53000 | AK88: 1 | BQ88: ID0142 | BT88: 53000
B89: =IF(Dashboard!$P$4="All",Data!G640,IF(Data!K640=Dashboard!$P$4,Data!G640,NA())) ->  | F89: =IF(C89<>"",Data!$M640,"") ->  | K89: =IF(Dashboard!$R$4="All",Data!G640,IF(Data!K640=Dashboard!$R$4,Data!G640,NA())) ->  | O89: =IF(L89<>"",Data!$M640,"") ->  | P89: Process Analyst | T89: =IF(OR(Dashboard!$P$4="All",Dashboard!$R$4="All"),NA(),IF(OR(Data!K640<>Dashboard!$P$4,Data!K640<>Dashboard!$R$4),Data!G640,NA())) -> 2671.187503 | W89: Somalia | AB89: 86 | AC89: Pakistan | AD89: 11873.55259 | AI89: ID0143 | AP89: 104000 | AQ89: 1 | BQ89: ID0143 | BS89: 104000
B90: =IF(Dashboard!$P$4="All",Data!G641,IF(Data!K641=Dashboard!$P$4,Data!G641,NA())) ->  | F90: =IF(C90<>"",Data!$M641,"") ->  | K90: =IF(Dashboard!$R$4="All",Data!G641,IF(Data!K641=Dashboard!$R$4,Data!G641,NA())) ->  | O90: =IF(L90<>"",Data!$M641,"") ->  | P90: Procurement manager | T90: =IF(OR(Dashboard!$P$4="All",Dashboard!$R$4="All"),NA(),IF(OR(Data!K641<>Dashboard!$P$4,Data!K641<>Dashboard!$R$4),Data!G641,NA())) -> 14246.33335 | W90: South Africa | AB90: 87 | AC90: Ukraine | AD90: 11650 | AI90: ID0144 | AR90: 57000 | AS90: 1 | BQ90: ID0144 | BT90: 57000
B91: =IF(Dashboard!$P$4="All",Data!G642,IF(Data!K642=Dashboard!$P$4,Data!G642,NA())) ->  | F91: =IF(C91<>"",Data!$M642,"") ->  | K91: =IF(Dashboard!$R$4="All",Data!G642,IF(Data!K642=Dashboard!$R$4,Data!G642,NA())) ->  | O91: =IF(L91<>"",Data!$M642,"") ->  | P91: Production Manager | T91: =IF(OR(Dashboard!$P$4="All",Dashboard!$R$4="All"),NA(),IF(OR(Data!K642<>Dashboard!$P$4,Data!K642<>Dashboard!$R$4),Data!G642,NA())) -> 8547.80001 | W91: Spain | AB91: 88 | AC91: Dominican Republic | AD91: 11016.68228 | AI91: ID0145 | AJ91: 45000 | AK91: 1 | BQ91: ID0145 | BS91: 45000
B92: =IF(Dashboard!$P$4="All",Data!G643,IF(Data!K643=Dashboard!$P$4,Data!G643,NA())) ->  | F92: =IF(C92<>"",Data!$M643,"") ->  | K92: =IF(Dashboard!$R$4="All",Data!G643,IF(Data!K643=Dashboard!$R$4,Data!G643,NA())) ->  | O92: =IF(L92<>"",Data!$M643,"") ->  | P92: Project manager | T92: =IF(OR(Dashboard!$P$4="All",Dashboard!$R$4="All"),NA(),IF(OR(Data!K643<>Dashboard!$P$4,Data!K643<>Dashboard!$R$4),Data!G643,NA())) -> 7693.020009 | W92: Sri Lanka | AB92: 89 | AC92: Tunisia | AD92: 11000 | AI92: ID0146 | AJ92: 92000 | AK92: 1 | BQ92: ID0146 | BT92: 92000
B93: =IF(Dashboard!$P$4="All",Data!G644,IF(Data!K644=Dashboard!$P$4,Data!G644,NA())) ->  | F93: =IF(C93<>"",Data!$M644,"") ->  | K93: =IF(Dashboard!$R$4="All",Data!G644,IF(Data!K644=Dashboard!$R$4,Data!G644,NA())) ->  | O93: =IF(L93<>"",Data!$M644,"") ->  | P93: project Support | T93: =IF(OR(Dashboard!$P$4="All",Dashboard!$R$4="All"),NA(),IF(OR(Data!K644<>Dashboard!$P$4,Data!K644<>Dashboard!$R$4),Data!G644,NA())) -> 4000 | W93: Sweden | AB93: 90 | AC93: Bangladesh | AD93: 10299.00865 | AI93: ID0147 | AL93: 88000 | AM93: 1 | BQ93: ID0147 | BT93: 88000
B94: =IF(Dashboard!$P$4="All",Data!G645,IF(Data!K645=Dashboard!$P$4,Data!G645,NA())) ->  | F94: =IF(C94<>"",Data!$M645,"") ->  | K94: =IF(Dashboard!$R$4="All",Data!G645,IF(Data!K645=Dashboard!$R$4,Data!G645,NA())) ->  | O94: =IF(L94<>"",Data!$M645,"") ->  | P94: Reporting Accountant | T94: =IF(OR(Dashboard!$P$4="All",Dashboard!$R$4="All"),NA(),IF(OR(Data!K645<>Dashboard!$P$4,Data!K645<>Dashboard!$R$4),Data!G645,NA())) -> 5400 | W94: Switzerland | AB94: 91 | AC94: Vietnam | AD94: 10000 | AI94: ID0148 | AJ94: 80000 | AK94: 1 | BQ94: ID0148 | BS94: 80000
B95: =IF(Dashboard!$P$4="All",Data!G646,IF(Data!K646=Dashboard!$P$4,Data!G646,NA())) ->  | F95: =IF(C95<>"",Data!$M646,"") ->  | K95: =IF(Dashboard!$R$4="All",Data!G646,IF(Data!K646=Dashboard!$R$4,Data!G646,NA())) ->  | O95: =IF(L95<>"",Data!$M646,"") ->  | P95: Reporting Assistant | T95: =IF(OR(Dashboard!$P$4="All",Dashboard!$R$4="All"),NA(),IF(OR(Data!K646<>Dashboard!$P$4,Data!K646<>Dashboard!$R$4),Data!G646,NA())) -> 186983.1252 | W95: Thailand | AB95: 92 | AC95: Bolivia | AD95: 9600 | AI95: ID0149 | AV95: 69000 | AW95: 1 | BQ95: ID0149 | BT95: 69000
B96: =IF(Dashboard!$P$4="All",Data!G647,IF(Data!K647=Dashboard!$P$4,Data!G647,NA())) ->  | F96: =IF(C96<>"",Data!$M647,"") ->  | K96: =IF(Dashboard!$R$4="All",Data!G647,IF(Data!K647=Dashboard!$R$4,Data!G647,NA())) ->  | O96: =IF(L96<>"",Data!$M647,"") ->  | P96: Reporting Team Lead | T96: =IF(OR(Dashboard!$P$4="All",Dashboard!$R$4="All"),NA(),IF(OR(Data!K647<>Dashboard!$P$4,Data!K647<>Dashboard!$R$4),Data!G647,NA())) -> 21500 | W96: Tunisia | AB96: 93 | AC96: Mauritius | AD96: 9376.251388 | AI96: ID0151 | AL96: 35000 | AM96: 1 | BQ96: ID0151 | BS96: 35000
B97: =IF(Dashboard!$P$4="All",Data!G648,IF(Data!K648=Dashboard!$P$4,Data!G648,NA())) ->  | F97: =IF(C97<>"",Data!$M648,"") ->  | K97: =IF(Dashboard!$R$4="All",Data!G648,IF(Data!K648=Dashboard!$R$4,Data!G648,NA())) ->  | O97: =IF(L97<>"",Data!$M648,"") ->  | P97: Research Analyst | T97: =IF(OR(Dashboard!$P$4="All",Dashboard!$R$4="All"),NA(),IF(OR(Data!K648<>Dashboard!$P$4,Data!K648<>Dashboard!$R$4),Data!G648,NA())) -> 15000 | W97: Turkey | AB97: 94 | AC97: Baltic | AD97: 8400 | AI97: ID0152 | AJ97: 96000 | AK97: 1 | BQ97: ID0152 | BT97: 96000
B98: =IF(Dashboard!$P$4="All",Data!G649,IF(Data!K649=Dashboard!$P$4,Data!G649,NA())) ->  | F98: =IF(C98<>"",Data!$M649,"") ->  | K98: =IF(Dashboard!$R$4="All",Data!G649,IF(Data!K649=Dashboard!$R$4,Data!G649,NA())) ->  | O98: =IF(L98<>"",Data!$M649,"") ->  | P98: RS | T98: =IF(OR(Dashboard!$P$4="All",Dashboard!$R$4="All"),NA(),IF(OR(Data!K649<>Dashboard!$P$4,Data!K649<>Dashboard!$R$4),Data!G649,NA())) -> 2122.817743 | W98: UAE | AB98: 95 | AC98: Mongolia | AD98: 7261.72466 | AI98: ID0153 | AN98: 65000 | AO98: 1 | BQ98: ID0153 | BU98: 65000
B99: =IF(Dashboard!$P$4="All",Data!G650,IF(Data!K650=Dashboard!$P$4,Data!G650,NA())) ->  | F99: =IF(C99<>"",Data!$M650,"") ->  | K99: =IF(Dashboard!$R$4="All",Data!G650,IF(Data!K650=Dashboard!$R$4,Data!G650,NA())) ->  | O99: =IF(L99<>"",Data!$M650,"") ->  | P99: Sales Analyst | T99: =IF(OR(Dashboard!$P$4="All",Dashboard!$R$4="All"),NA(),IF(OR(Data!K650<>Dashboard!$P$4,Data!K650<>Dashboard!$R$4),Data!G650,NA())) -> 16917.52085 | W99: Uganda | AB99: 96 | AC99: Guyana | AD99: 6000 | AI99: ID0154 | AJ99: 37440 | AK99: 1 | BQ99: ID0154 | BU99: 37440
B100: =IF(Dashboard!$P$4="All",Data!G651,IF(Data!K651=Dashboard!$P$4,Data!G651,NA())) ->  | F100: =IF(C100<>"",Data!$M651,"") ->  | K100: =IF(Dashboard!$R$4="All",Data!G651,IF(Data!K651=Dashboard!$R$4,Data!G651,NA())) ->  | O100: =IF(L100<>"",Data!$M651,"") ->  | P100: Senior Accountant | T100: =IF(OR(Dashboard!$P$4="All",Dashboard!$R$4="All"),NA(),IF(OR(Data!K651<>Dashboard!$P$4,Data!K651<>Dashboard!$R$4),Data!G651,NA())) -> 2938.306253 | W100: UK | AB100: 97 | AC100: Armenia | AD100: 6000 | AI100: ID0156 | AJ100: 90000 | AK100: 1 | BQ100: ID0156 | BS100: 90000
B101: =IF(Dashboard!$P$4="All",Data!G652,IF(Data!K652=Dashboard!$P$4,Data!G652,NA())) ->  | F101: =IF(C101<>"",Data!$M652,"") ->  | K101: =IF(Dashboard!$R$4="All",Data!G652,IF(Data!K652=Dashboard!$R$4,Data!G652,NA())) ->  | O101: =IF(L101<>"",Data!$M652,"") ->  | P101: Senior Accounts Clerk | T101: =IF(OR(Dashboard!$P$4="All",Dashboard!$R$4="All"),NA(),IF(OR(Data!K652<>Dashboard!$P$4,Data!K652<>Dashboard!$R$4),Data!G652,NA())) -> 16800 | W101: Ukraine | AB101: 98 | AC101: Republic of Georgia | AD101: 5250 | AI101: ID0157 | AJ101: 66500 | AK101: 1 | BQ101: ID0157 | BU101: 66500
B102: =IF(Dashboard!$P$4="All",Data!G653,IF(Data!K653=Dashboard!$P$4,Data!G653,NA())) ->  | F102: =IF(C102<>"",Data!$M653,"") ->  | K102: =IF(Dashboard!$R$4="All",Data!G653,IF(Data!K653=Dashboard!$R$4,Data!G653,NA())) ->  | O102: =IF(L102<>"",Data!$M653,"") ->  | P102: Senior Consultant | T102: =IF(OR(Dashboard!$P$4="All",Dashboard!$R$4="All"),NA(),IF(OR(Data!K653<>Dashboard!$P$4,Data!K653<>Dashboard!$R$4),Data!G653,NA())) -> 37000 | W102: Uruguay | AB102: 99 | AC102: Aruba | AD102: 5000 | AI102: ID0158 | AN102: 100000 | AO102: 1 | BQ102: ID0158 | BU102: 100000
B103: =IF(Dashboard!$P$4="All",Data!G654,IF(Data!K654=Dashboard!$P$4,Data!G654,NA())) ->  | F103: =IF(C103<>"",Data!$M654,"") ->  | K103: =IF(Dashboard!$R$4="All",Data!G654,IF(Data!K654=Dashboard!$R$4,Data!G654,NA())) ->  | O103: =IF(L103<>"",Data!$M654,"") ->  | P103: Senior Data Analyst | T103: =IF(OR(Dashboard!$P$4="All",Dashboard!$R$4="All"),NA(),IF(OR(Data!K654<>Dashboard!$P$4,Data!K654<>Dashboard!$R$4),Data!G654,NA())) -> 5342.375006 | W103: USA | AB103: 100 | AC103: Bhutan | AD103: 4800 | AI103: ID0161 | AJ103: 75000 | AK103: 1 | BQ103: ID0161 | BR103: 75000
B104: =IF(Dashboard!$P$4="All",Data!G655,IF(Data!K655=Dashboard!$P$4,Data!G655,NA())) ->  | F104: =IF(C104<>"",Data!$M655,"") ->  | K104: =IF(Dashboard!$R$4="All",Data!G655,IF(Data!K655=Dashboard!$R$4,Data!G655,NA())) ->  | O104: =IF(L104<>"",Data!$M655,"") ->  | P104: Senior intelligence analyst | T104: =IF(OR(Dashboard!$P$4="All",Dashboard!$R$4="All"),NA(),IF(OR(Data!K655<>Dashboard!$P$4,Data!K655<>Dashboard!$R$4),Data!G655,NA())) -> 3561.583337 | W104: Vietnam | AB104: 101 | AC104: Latin America | AD104: 4400 | AI104: ID0163 | AL104: 55000 | AM104: 1 | BQ104: ID0163 | BS104: 55000
B105: =IF(Dashboard!$P$4="All",Data!G656,IF(Data!K656=Dashboard!$P$4,Data!G656,NA())) ->  | F105: =IF(C105<>"",Data!$M656,"") ->  | K105: =IF(Dashboard!$R$4="All",Data!G656,IF(Data!K656=Dashboard!$R$4,Data!G656,NA())) ->  | O105: =IF(L105<>"",Data!$M656,"") ->  | P105: Senior Manufacturing Engineer | T105: =IF(OR(Dashboard!$P$4="All",Dashboard!$R$4="All"),NA(),IF(OR(Data!K656<>Dashboard!$P$4,Data!K656<>Dashboard!$R$4),Data!G656,NA())) -> 8547.80001 | W105: Zambia | AB105: 102 | AC105: Cambodia | AD105: 3000 | AI105: ID0164 | AJ105: 60000 | AK105: 1 | BQ105: ID0164 | BT105: 60000
B106: =IF(Dashboard!$P$4="All",Data!G657,IF(Data!K657=Dashboard!$P$4,Data!G657,NA())) ->  | F106: =IF(C106<>"",Data!$M657,"") ->  | K106: =IF(Dashboard!$R$4="All",Data!G657,IF(Data!K657=Dashboard!$R$4,Data!G657,NA())) ->  | O106: =IF(L106<>"",Data!$M657,"") ->  | P106: Senior officer data reporting | T106: =IF(OR(Dashboard!$P$4="All",Dashboard!$R$4="All"),NA(),IF(OR(Data!K657<>Dashboard!$P$4,Data!K657<>Dashboard!$R$4),Data!G657,NA())) -> 5800 | W106: Zimbabwe | AB106: 103 | AC106: Ethiopia | AD106: 2953.846154 | AI106: ID0168 | AN106: 22880 | AO106: 1 | BQ106: ID0168 | BT106: 22880
B107: =IF(Dashboard!$P$4="All",Data!G658,IF(Data!K658=Dashboard!$P$4,Data!G658,NA())) ->  | F107: =IF(C107<>"",Data!$M658,"") ->  | K107: =IF(Dashboard!$R$4="All",Data!G658,IF(Data!K658=Dashboard!$R$4,Data!G658,NA())) ->  | O107: =IF(L107<>"",Data!$M658,"") ->  | P107: Senior Planning Engineer | T107: =IF(OR(Dashboard!$P$4="All",Dashboard!$R$4="All"),NA(),IF(OR(Data!K658<>Dashboard!$P$4,Data!K658<>Dashboard!$R$4),Data!G658,NA())) -> 4095.820838 | AB107: 104 | AI107: ID0169 | AV107: 80000 | AW107: 1 | BQ107: ID0169 | BT107: 80000
B108: =IF(Dashboard!$P$4="All",Data!G659,IF(Data!K659=Dashboard!$P$4,Data!G659,NA())) ->  | F108: =IF(C108<>"",Data!$M659,"") ->  | K108: =IF(Dashboard!$R$4="All",Data!G659,IF(Data!K659=Dashboard!$R$4,Data!G659,NA())) ->  | O108: =IF(L108<>"",Data!$M659,"") ->  | P108: Service Analyst | T108: =IF(OR(Dashboard!$P$4="All",Dashboard!$R$4="All"),NA(),IF(OR(Data!K659<>Dashboard!$P$4,Data!K659<>Dashboard!$R$4),Data!G659,NA())) -> 4914.985006 | AB108: 105 | AI108: ID0173 | AJ108: 46584 | AK108: 1 | BQ108: ID0173 | BT108: 46584
B109: =IF(Dashboard!$P$4="All",Data!G660,IF(Data!K660=Dashboard!$P$4,Data!G660,NA())) ->  | F109: =IF(C109<>"",Data!$M660,"") ->  | K109: =IF(Dashboard!$R$4="All",Data!G660,IF(Data!K660=Dashboard!$R$4,Data!G660,NA())) ->  | O109: =IF(L109<>"",Data!$M660,"") ->  | P109: ServiceDesk Supervisor | T109: =IF(OR(Dashboard!$P$4="All",Dashboard!$R$4="All"),NA(),IF(OR(Data!K660<>Dashboard!$P$4,Data!K660<>Dashboard!$R$4),Data!G660,NA())) -> 24000 | AB109: 106 | AI109: ID0174 | AJ109: 67000 | AK109: 1 | BQ109: ID0174 | BT109: 67000
B110: =IF(Dashboard!$P$4="All",Data!G661,IF(Data!K661=Dashboard!$P$4,Data!G661,NA())) ->  | F110: =IF(C110<>"",Data!$M661,"") ->  | K110: =IF(Dashboard!$R$4="All",Data!G661,IF(Data!K661=Dashboard!$R$4,Data!G661,NA())) ->  | O110: =IF(L110<>"",Data!$M661,"") ->  | P110: Strategy Consultant | T110: =IF(OR(Dashboard!$P$4="All",Dashboard!$R$4="All"),NA(),IF(OR(Data!K661<>Dashboard!$P$4,Data!K661<>Dashboard!$R$4),Data!G661,NA())) -> 24000 | AB110: 107 | AI110: ID0176 | AR110: 92000 | AS110: 1 | BQ110: ID0176 | BT110: 92000
B111: =IF(Dashboard!$P$4="All",Data!G662,IF(Data!K662=Dashboard!$P$4,Data!G662,NA())) ->  | F111: =IF(C111<>"",Data!$M662,"") ->  | K111: =IF(Dashboard!$R$4="All",Data!G662,IF(Data!K662=Dashboard!$R$4,Data!G662,NA())) ->  | O111: =IF(L111<>"",Data!$M662,"") ->  | P111: Supply/Demand Planner | T111: =IF(OR(Dashboard!$P$4="All",Dashboard!$R$4="All"),NA(),IF(OR(Data!K662<>Dashboard!$P$4,Data!K662<>Dashboard!$R$4),Data!G662,NA())) -> 8738 | AB111: 108 | AI111: ID0177 | AT111: 75000 | AU111: 1 | BQ111: ID0177 | BU111: 75000
B112: =IF(Dashboard!$P$4="All",Data!G663,IF(Data!K663=Dashboard!$P$4,Data!G663,NA())) ->  | F112: =IF(C112<>"",Data!$M663,"") ->  | K112: =IF(Dashboard!$R$4="All",Data!G663,IF(Data!K663=Dashboard!$R$4,Data!G663,NA())) ->  | O112: =IF(L112<>"",Data!$M663,"") ->  | P112: Systems Analyst | T112: =IF(OR(Dashboard!$P$4="All",Dashboard!$R$4="All"),NA(),IF(OR(Data!K663<>Dashboard!$P$4,Data!K663<>Dashboard!$R$4),Data!G663,NA())) -> 15000 | AB112: 109 | AI112: ID0180 | AJ112: 40000 | AK112: 1 | BQ112: ID0180 | BU112: 40000
B113: =IF(Dashboard!$P$4="All",Data!G664,IF(Data!K664=Dashboard!$P$4,Data!G664,NA())) ->  | F113: =IF(C113<>"",Data!$M664,"") ->  | K113: =IF(Dashboard!$R$4="All",Data!G664,IF(Data!K664=Dashboard!$R$4,Data!G664,NA())) ->  | O113: =IF(L113<>"",Data!$M664,"") ->  | P113: Technical Specialist | T113: =IF(OR(Dashboard!$P$4="All",Dashboard!$R$4="All"),NA(),IF(OR(Data!K664<>Dashboard!$P$4,Data!K664<>Dashboard!$R$4),Data!G664,NA())) -> 56400 | AB113: 110 | AI113: ID0181 | AJ113: 111680 | AK113: 1 | BQ113: ID0181 | BS113: 111680
B114: =IF(Dashboard!$P$4="All",Data!G665,IF(Data!K665=Dashboard!$P$4,Data!G665,NA())) ->  | F114: =IF(C114<>"",Data!$M665,"") ->  | K114: =IF(Dashboard!$R$4="All",Data!G665,IF(Data!K665=Dashboard!$R$4,Data!G665,NA())) ->  | O114: =IF(L114<>"",Data!$M665,"") ->  | P114: Technical Web Analyst | T114: =IF(OR(Dashboard!$P$4="All",Dashboard!$R$4="All"),NA(),IF(OR(Data!K665<>Dashboard!$P$4,Data!K665<>Dashboard!$R$4),Data!G665,NA())) -> 10200 | AI114: ID0183 | AL114: 70000 | AM114: 1 | BQ114: ID0183 | BT114: 70000
B115: =IF(Dashboard!$P$4="All",Data!G666,IF(Data!K666=Dashboard!$P$4,Data!G666,NA())) ->  | F115: =IF(C115<>"",Data!$M666,"") ->  | K115: =IF(Dashboard!$R$4="All",Data!G666,IF(Data!K666=Dashboard!$R$4,Data!G666,NA())) ->  | O115: =IF(L115<>"",Data!$M666,"") ->  | P115: Telecoms Engineer | T115: =IF(OR(Dashboard!$P$4="All",Dashboard!$R$4="All"),NA(),IF(OR(Data!K666<>Dashboard!$P$4,Data!K666<>Dashboard!$R$4),Data!G666,NA())) -> 5787.572923 | AI115: ID0184 | AJ115: 40700 | AK115: 1 | BQ115: ID0184 | BR115: 40700
B116: =IF(Dashboard!$P$4="All",Data!G667,IF(Data!K667=Dashboard!$P$4,Data!G667,NA())) ->  | F116: =IF(C116<>"",Data!$M667,"") ->  | K116: =IF(Dashboard!$R$4="All",Data!G667,IF(Data!K667=Dashboard!$R$4,Data!G667,NA())) ->  | O116: =IF(L116<>"",Data!$M667,"") ->  | P116: Trainee Management Accountant | T116: =IF(OR(Dashboard!$P$4="All",Dashboard!$R$4="All"),NA(),IF(OR(Data!K667<>Dashboard!$P$4,Data!K667<>Dashboard!$R$4),Data!G667,NA())) -> 105000 | AI116: ID0185 | AJ116: 40000 | AK116: 1 | BQ116: ID0185 | BT116: 40000
B117: =IF(Dashboard!$P$4="All",Data!G668,IF(Data!K668=Dashboard!$P$4,Data!G668,NA())) ->  | F117: =IF(C117<>"",Data!$M668,"") ->  | K117: =IF(Dashboard!$R$4="All",Data!G668,IF(Data!K668=Dashboard!$R$4,Data!G668,NA())) ->  | O117: =IF(L117<>"",Data!$M668,"") ->  | P117: vba specialist | T117: =IF(OR(Dashboard!$P$4="All",Dashboard!$R$4="All"),NA(),IF(OR(Data!K668<>Dashboard!$P$4,Data!K668<>Dashboard!$R$4),Data!G668,NA())) -> 4451.979172 | AI117: ID0186 | AN117: 60000 | AO117: 1 | BQ117: ID0186 | BT117: 60000
B118: =IF(Dashboard!$P$4="All",Data!G669,IF(Data!K669=Dashboard!$P$4,Data!G669,NA())) ->  | F118: =IF(C118<>"",Data!$M669,"") ->  | K118: =IF(Dashboard!$R$4="All",Data!G669,IF(Data!K669=Dashboard!$R$4,Data!G669,NA())) ->  | O118: =IF(L118<>"",Data!$M669,"") ->  | P118: Verification Agent | T118: =IF(OR(Dashboard!$P$4="All",Dashboard!$R$4="All"),NA(),IF(OR(Data!K669<>Dashboard!$P$4,Data!K669<>Dashboard!$R$4),Data!G669,NA())) -> 8369.720843 | AI118: ID0189 | AL118: 80000 | AM118: 1 | BQ118: ID0189 | BS118: 80000
B119: =IF(Dashboard!$P$4="All",Data!G670,IF(Data!K670=Dashboard!$P$4,Data!G670,NA())) ->  | F119: =IF(C119<>"",Data!$M670,"") ->  | K119: =IF(Dashboard!$R$4="All",Data!G670,IF(Data!K670=Dashboard!$R$4,Data!G670,NA())) ->  | O119: =IF(L119<>"",Data!$M670,"") ->  | P119: web analyst | T119: =IF(OR(Dashboard!$P$4="All",Dashboard!$R$4="All"),NA(),IF(OR(Data!K670<>Dashboard!$P$4,Data!K670<>Dashboard!$R$4),Data!G670,NA())) -> 17067.63763 | AI119: ID0192 | AJ119: 28000 | AK119: 1 | BQ119: ID0192 | BT119: 28000
B120: =IF(Dashboard!$P$4="All",Data!G671,IF(Data!K671=Dashboard!$P$4,Data!G671,NA())) ->  | F120: =IF(C120<>"",Data!$M671,"") ->  | K120: =IF(Dashboard!$R$4="All",Data!G671,IF(Data!K671=Dashboard!$R$4,Data!G671,NA())) ->  | O120: =IF(L120<>"",Data!$M671,"") ->  | T120: =IF(OR(Dashboard!$P$4="All",Dashboard!$R$4="All"),NA(),IF(OR(Data!K671<>Dashboard!$P$4,Data!K671<>Dashboard!$R$4),Data!G671,NA())) -> 101990.9656 | AI120: ID0193 | AJ120: 60000 | AK120: 1 | BQ120: ID0193 | BT120: 60000
B121: =IF(Dashboard!$P$4="All",Data!G672,IF(Data!K672=Dashboard!$P$4,Data!G672,NA())) ->  | F121: =IF(C121<>"",Data!$M672,"") ->  | K121: =IF(Dashboard!$R$4="All",Data!G672,IF(Data!K672=Dashboard!$R$4,Data!G672,NA())) ->  | O121: =IF(L121<>"",Data!$M672,"") ->  | T121: =IF(OR(Dashboard!$P$4="All",Dashboard!$R$4="All"),NA(),IF(OR(Data!K672<>Dashboard!$P$4,Data!K672<>Dashboard!$R$4),Data!G672,NA())) -> 3917.741671 | AI121: ID0194 | AT121: 96000 | AU121: 1 | BQ121: ID0194 | BS121: 96000
B122: =IF(Dashboard!$P$4="All",Data!G673,IF(Data!K673=Dashboard!$P$4,Data!G673,NA())) ->  | F122: =IF(C122<>"",Data!$M673,"") ->  | K122: =IF(Dashboard!$R$4="All",Data!G673,IF(Data!K673=Dashboard!$R$4,Data!G673,NA())) ->  | O122: =IF(L122<>"",Data!$M673,"") ->  | T122: =IF(OR(Dashboard!$P$4="All",Dashboard!$R$4="All"),NA(),IF(OR(Data!K673<>Dashboard!$P$4,Data!K673<>Dashboard!$R$4),Data!G673,NA())) -> 52000 | AI122: ID0195 | AJ122: 67000 | AK122: 1 | BQ122: ID0195 | BT122: 67000
B123: =IF(Dashboard!$P$4="All",Data!G674,IF(Data!K674=Dashboard!$P$4,Data!G674,NA())) ->  | F123: =IF(C123<>"",Data!$M674,"") ->  | K123: =IF(Dashboard!$R$4="All",Data!G674,IF(Data!K674=Dashboard!$R$4,Data!G674,NA())) ->  | O123: =IF(L123<>"",Data!$M674,"") ->  | T123: =IF(OR(Dashboard!$P$4="All",Dashboard!$R$4="All"),NA(),IF(OR(Data!K674<>Dashboard!$P$4,Data!K674<>Dashboard!$R$4),Data!G674,NA())) -> 4630.058339 | AI123: ID0196 | AJ123: 70000 | AK123: 1 | BQ123: ID0196 | BT123: 70000
B124: =IF(Dashboard!$P$4="All",Data!G675,IF(Data!K675=Dashboard!$P$4,Data!G675,NA())) ->  | F124: =IF(C124<>"",Data!$M675,"") ->  | K124: =IF(Dashboard!$R$4="All",Data!G675,IF(Data!K675=Dashboard!$R$4,Data!G675,NA())) ->  | O124: =IF(L124<>"",Data!$M675,"") ->  | T124: =IF(OR(Dashboard!$P$4="All",Dashboard!$R$4="All"),NA(),IF(OR(Data!K675<>Dashboard!$P$4,Data!K675<>Dashboard!$R$4),Data!G675,NA())) -> 2136.950002 | AI124: ID0198 | AX124: 99000 | AY124: 1 | BQ124: ID0198 | BT124: 99000
B125: =IF(Dashboard!$P$4="All",Data!G676,IF(Data!K676=Dashboard!$P$4,Data!G676,NA())) ->  | F125: =IF(C125<>"",Data!$M676,"") ->  | K125: =IF(Dashboard!$R$4="All",Data!G676,IF(Data!K676=Dashboard!$R$4,Data!G676,NA())) ->  | O125: =IF(L125<>"",Data!$M676,"") ->  | T125: =IF(OR(Dashboard!$P$4="All",Dashboard!$R$4="All"),NA(),IF(OR(Data!K676<>Dashboard!$P$4,Data!K676<>Dashboard!$R$4),Data!G676,NA())) -> 13000 | AI125: ID0200 | AL125: 90000 | AM125: 1 | BQ125: ID0200 | BS125: 90000
B126: =IF(Dashboard!$P$4="All",Data!G677,IF(Data!K677=Dashboard!$P$4,Data!G677,NA())) ->  | F126: =IF(C126<>"",Data!$M677,"") ->  | K126: =IF(Dashboard!$R$4="All",Data!G677,IF(Data!K677=Dashboard!$R$4,Data!G677,NA())) ->  | O126: =IF(L126<>"",Data!$M677,"") ->  | T126: =IF(OR(Dashboard!$P$4="All",Dashboard!$R$4="All"),NA(),IF(OR(Data!K677<>Dashboard!$P$4,Data!K677<>Dashboard!$R$4),Data!G677,NA())) -> 2564.340003 | AI126: ID0203 | AL126: 51000 | AM126: 1 | BQ126: ID0203 | BT126: 51000
B127: =IF(Dashboard!$P$4="All",Data!G678,IF(Data!K678=Dashboard!$P$4,Data!G678,NA())) ->  | F127: =IF(C127<>"",Data!$M678,"") ->  | K127: =IF(Dashboard!$R$4="All",Data!G678,IF(Data!K678=Dashboard!$R$4,Data!G678,NA())) ->  | O127: =IF(L127<>"",Data!$M678,"") ->  | T127: =IF(OR(Dashboard!$P$4="All",Dashboard!$R$4="All"),NA(),IF(OR(Data!K678<>Dashboard!$P$4,Data!K678<>Dashboard!$R$4),Data!G678,NA())) -> 20479.10419 | AI127: ID0204 | AL127: 100000 | AM127: 1 | BQ127: ID0204 | BU127: 100000
B128: =IF(Dashboard!$P$4="All",Data!G679,IF(Data!K679=Dashboard!$P$4,Data!G679,NA())) ->  | F128: =IF(C128<>"",Data!$M679,"") ->  | K128: =IF(Dashboard!$R$4="All",Data!G679,IF(Data!K679=Dashboard!$R$4,Data!G679,NA())) ->  | O128: =IF(L128<>"",Data!$M679,"") ->  | T128: =IF(OR(Dashboard!$P$4="All",Dashboard!$R$4="All"),NA(),IF(OR(Data!K679<>Dashboard!$P$4,Data!K679<>Dashboard!$R$4),Data!G679,NA())) -> 33500 | AI128: ID0209 | AJ128: 108160 | AK128: 1 | BQ128: ID0209 | BT128: 108160
B129: =IF(Dashboard!$P$4="All",Data!G680,IF(Data!K680=Dashboard!$P$4,Data!G680,NA())) ->  | F129: =IF(C129<>"",Data!$M680,"") ->  | K129: =IF(Dashboard!$R$4="All",Data!G680,IF(Data!K680=Dashboard!$R$4,Data!G680,NA())) ->  | O129: =IF(L129<>"",Data!$M680,"") ->  | T129: =IF(OR(Dashboard!$P$4="All",Dashboard!$R$4="All"),NA(),IF(OR(Data!K680<>Dashboard!$P$4,Data!K680<>Dashboard!$R$4),Data!G680,NA())) -> 50000 | AI129: ID0210 | AL129: 50000 | AM129: 1 | BQ129: ID0210 | BT129: 50000
B130: =IF(Dashboard!$P$4="All",Data!G681,IF(Data!K681=Dashboard!$P$4,Data!G681,NA())) ->  | F130: =IF(C130<>"",Data!$M681,"") ->  | K130: =IF(Dashboard!$R$4="All",Data!G681,IF(Data!K681=Dashboard!$R$4,Data!G681,NA())) ->  | O130: =IF(L130<>"",Data!$M681,"") ->  | T130: =IF(OR(Dashboard!$P$4="All",Dashboard!$R$4="All"),NA(),IF(OR(Data!K681<>Dashboard!$P$4,Data!K681<>Dashboard!$R$4),Data!G681,NA())) -> 5342.375006 | AI130: ID0211 | AL130: 400000 | AM130: 1 | BQ130: ID0211 | BR130: 400000
B131: =IF(Dashboard!$P$4="All",Data!G682,IF(Data!K682=Dashboard!$P$4,Data!G682,NA())) ->  | F131: =IF(C131<>"",Data!$M682,"") ->  | K131: =IF(Dashboard!$R$4="All",Data!G682,IF(Data!K682=Dashboard!$R$4,Data!G682,NA())) ->  | O131: =IF(L131<>"",Data!$M682,"") ->  | T131: =IF(OR(Dashboard!$P$4="All",Dashboard!$R$4="All"),NA(),IF(OR(Data!K682<>Dashboard!$P$4,Data!K682<>Dashboard!$R$4),Data!G682,NA())) -> 11539.53001 | AI131: ID0212 | AJ131: 43000 | AK131: 1 | BQ131: ID0212 | BU131: 43000
B132: =IF(Dashboard!$P$4="All",Data!G683,IF(Data!K683=Dashboard!$P$4,Data!G683,NA())) ->  | C132: =IF(ISNA(B132),"",B132) ->  | D132: =IF(C132>=PERCENTILE($C$3:$C$1337,0.9),C132,"") ->  | E132: =IF(C132<=PERCENTILE($C$3:$C$1337,0.1),C132,"") ->  | F132: =IF(C132<>"",Data!$M683,"") ->  | K132: =IF(Dashboard!$R$4="All",Data!G683,IF(Data!K683=Dashboard!$R$4,Data!G683,NA())) ->  | L132: =IF(ISNA(K132),"",K132) ->  | M132: =IF(L132>=PERCENTILE($L$3:$L$1337,0.9),L132,"") ->  | N132: =IF(L132<=PERCENTILE($L$3:$L$1337,0.1),L132,"") ->  | O132: =IF(L132<>"",Data!$M683,"") ->  | T132: =IF(OR(Dashboard!$P$4="All",Dashboard!$R$4="All"),NA(),IF(OR(Data!K683<>Dashboard!$P$4,Data!K683<>Dashboard!$R$4),Data!G683,NA())) -> 7000 | AI132: ID0214 | AL132: 41000 | AM132: 1 | BQ132: ID0214 | BU132: 41000
B133: =IF(Dashboard!$P$4="All",Data!G684,IF(Data!K684=Dashboard!$P$4,Data!G684,NA())) ->  | F133: =IF(C133<>"",Data!$M684,"") ->  | K133: =IF(Dashboard!$R$4="All",Data!G684,IF(Data!K684=Dashboard!$R$4,Data!G684,NA())) ->  | O133: =IF(L133<>"",Data!$M684,"") ->  | T133: =IF(OR(Dashboard!$P$4="All",Dashboard!$R$4="All"),NA(),IF(OR(Data!K684<>Dashboard!$P$4,Data!K684<>Dashboard!$R$4),Data!G684,NA())) -> 6767.008341 | AI133: ID0215 | AP133: 100000 | AQ133: 1 | BQ133: ID0215 | BT133: 100000
B134: =IF(Dashboard!$P$4="All",Data!G685,IF(Data!K685=Dashboard!$P$4,Data!G685,NA())) ->  | F134: =IF(C134<>"",Data!$M685,"") ->  | K134: =IF(Dashboard!$R$4="All",Data!G685,IF(Data!K685=Dashboard!$R$4,Data!G685,NA())) ->  | O134: =IF(L134<>"",Data!$M685,"") ->  | T134: =IF(OR(Dashboard!$P$4="All",Dashboard!$R$4="All"),NA(),IF(OR(Data!K685<>Dashboard!$P$4,Data!K685<>Dashboard!$R$4),Data!G685,NA())) -> 3000 | AI134: ID0216 | AJ134: 42140 | AK134: 1 | BQ134: ID0216 | BT134: 42140
B135: =IF(Dashboard!$P$4="All",Data!G686,IF(Data!K686=Dashboard!$P$4,Data!G686,NA())) ->  | F135: =IF(C135<>"",Data!$M686,"") ->  | K135: =IF(Dashboard!$R$4="All",Data!G686,IF(Data!K686=Dashboard!$R$4,Data!G686,NA())) ->  | O135: =IF(L135<>"",Data!$M686,"") ->  | T135: =IF(OR(Dashboard!$P$4="All",Dashboard!$R$4="All"),NA(),IF(OR(Data!K686<>Dashboard!$P$4,Data!K686<>Dashboard!$R$4),Data!G686,NA())) -> 4451.979172 | AI135: ID0217 | AJ135: 80000 | AK135: 1 | BQ135: ID0217 | BT135: 80000
B136: =IF(Dashboard!$P$4="All",Data!G687,IF(Data!K687=Dashboard!$P$4,Data!G687,NA())) ->  | F136: =IF(C136<>"",Data!$M687,"") ->  | K136: =IF(Dashboard!$R$4="All",Data!G687,IF(Data!K687=Dashboard!$R$4,Data!G687,NA())) ->  | O136: =IF(L136<>"",Data!$M687,"") ->  | T136: =IF(OR(Dashboard!$P$4="All",Dashboard!$R$4="All"),NA(),IF(OR(Data!K687<>Dashboard!$P$4,Data!K687<>Dashboard!$R$4),Data!G687,NA())) -> 2671.187503 | AI136: ID0218 | AL136: 41600 | AM136: 1 | BQ136: ID0218 | BT136: 41600
B137: =IF(Dashboard!$P$4="All",Data!G688,IF(Data!K688=Dashboard!$P$4,Data!G688,NA())) ->  | F137: =IF(C137<>"",Data!$M688,"") ->  | K137: =IF(Dashboard!$R$4="All",Data!G688,IF(Data!K688=Dashboard!$R$4,Data!G688,NA())) ->  | O137: =IF(L137<>"",Data!$M688,"") ->  | T137: =IF(OR(Dashboard!$P$4="All",Dashboard!$R$4="All"),NA(),IF(OR(Data!K688<>Dashboard!$P$4,Data!K688<>Dashboard!$R$4),Data!G688,NA())) -> 4957.724006 | AI137: ID0219 | AN137: 45000 | AO137: 1 | BQ137: ID0219 | BS137: 45000
B138: =IF(Dashboard!$P$4="All",Data!G689,IF(Data!K689=Dashboard!$P$4,Data!G689,NA())) ->  | F138: =IF(C138<>"",Data!$M689,"") ->  | K138: =IF(Dashboard!$R$4="All",Data!G689,IF(Data!K689=Dashboard!$R$4,Data!G689,NA())) ->  | O138: =IF(L138<>"",Data!$M689,"") ->  | T138: =IF(OR(Dashboard!$P$4="All",Dashboard!$R$4="All"),NA(),IF(OR(Data!K689<>Dashboard!$P$4,Data!K689<>Dashboard!$R$4),Data!G689,NA())) -> 3205.425004 | AI138: ID0223 | AX138: 72500 | AY138: 1 | BQ138: ID0223 | BT138: 72500
B139: =IF(Dashboard!$P$4="All",Data!G690,IF(Data!K690=Dashboard!$P$4,Data!G690,NA())) ->  | F139: =IF(C139<>"",Data!$M690,"") ->  | K139: =IF(Dashboard!$R$4="All",Data!G690,IF(Data!K690=Dashboard!$R$4,Data!G690,NA())) ->  | O139: =IF(L139<>"",Data!$M690,"") ->  | T139: =IF(OR(Dashboard!$P$4="All",Dashboard!$R$4="All"),NA(),IF(OR(Data!K690<>Dashboard!$P$4,Data!K690<>Dashboard!$R$4),Data!G690,NA())) -> 14246.33335 | AI139: ID0226 | AJ139: 80000 | AK139: 1 | BQ139: ID0226 | BT139: 80000
B140: =IF(Dashboard!$P$4="All",Data!G691,IF(Data!K691=Dashboard!$P$4,Data!G691,NA())) ->  | F140: =IF(C140<>"",Data!$M691,"") ->  | K140: =IF(Dashboard!$R$4="All",Data!G691,IF(Data!K691=Dashboard!$R$4,Data!G691,NA())) ->  | O140: =IF(L140<>"",Data!$M691,"") ->  | T140: =IF(OR(Dashboard!$P$4="All",Dashboard!$R$4="All"),NA(),IF(OR(Data!K691<>Dashboard!$P$4,Data!K691<>Dashboard!$R$4),Data!G691,NA())) -> 5342.375006 | AI140: ID0227 | AL140: 50000 | AM140: 1 | BQ140: ID0227 | BT140: 50000
B141: =IF(Dashboard!$P$4="All",Data!G692,IF(Data!K692=Dashboard!$P$4,Data!G692,NA())) ->  | F141: =IF(C141<>"",Data!$M692,"") ->  | K141: =IF(Dashboard!$R$4="All",Data!G692,IF(Data!K692=Dashboard!$R$4,Data!G692,NA())) ->  | O141: =IF(L141<>"",Data!$M692,"") ->  | T141: =IF(OR(Dashboard!$P$4="All",Dashboard!$R$4="All"),NA(),IF(OR(Data!K692<>Dashboard!$P$4,Data!K692<>Dashboard!$R$4),Data!G692,NA())) -> 6588.929174 | AI141: ID0231 | AT141: 65000 | AU141: 1 | BQ141: ID0231 | BS141: 65000
B142: =IF(Dashboard!$P$4="All",Data!G693,IF(Data!K693=Dashboard!$P$4,Data!G693,NA())) ->  | F142: =IF(C142<>"",Data!$M693,"") ->  | K142: =IF(Dashboard!$R$4="All",Data!G693,IF(Data!K693=Dashboard!$R$4,Data!G693,NA())) ->  | O142: =IF(L142<>"",Data!$M693,"") ->  | T142: =IF(OR(Dashboard!$P$4="All",Dashboard!$R$4="All"),NA(),IF(OR(Data!K693<>Dashboard!$P$4,Data!K693<>Dashboard!$R$4),Data!G693,NA())) -> 6588.929174 | AI142: ID0232 | AP142: 114000 | AQ142: 1 | BQ142: ID0232 | BS142: 114000
B143: =IF(Dashboard!$P$4="All",Data!G694,IF(Data!K694=Dashboard!$P$4,Data!G694,NA())) ->  | F143: =IF(C143<>"",Data!$M694,"") ->  | K143: =IF(Dashboard!$R$4="All",Data!G694,IF(Data!K694=Dashboard!$R$4,Data!G694,NA())) ->  | O143: =IF(L143<>"",Data!$M694,"") ->  | T143: =IF(OR(Dashboard!$P$4="All",Dashboard!$R$4="All"),NA(),IF(OR(Data!K694<>Dashboard!$P$4,Data!K694<>Dashboard!$R$4),Data!G694,NA())) -> 35000 | AI143: ID0233 | AP143: 95000 | AQ143: 1 | BQ143: ID0233 | BT143: 95000
B144: =IF(Dashboard!$P$4="All",Data!G695,IF(Data!K695=Dashboard!$P$4,Data!G695,NA())) ->  | F144: =IF(C144<>"",Data!$M695,"") ->  | K144: =IF(Dashboard!$R$4="All",Data!G695,IF(Data!K695=Dashboard!$R$4,Data!G695,NA())) ->  | O144: =IF(L144<>"",Data!$M695,"") ->  | T144: =IF(OR(Dashboard!$P$4="All",Dashboard!$R$4="All"),NA(),IF(OR(Data!K695<>Dashboard!$P$4,Data!K695<>Dashboard!$R$4),Data!G695,NA())) -> 12821.70001 | AI144: ID0234 | AJ144: 52500 | AK144: 1 | BQ144: ID0234 | BT144: 52500
B145: =IF(Dashboard!$P$4="All",Data!G696,IF(Data!K696=Dashboard!$P$4,Data!G696,NA())) ->  | F145: =IF(C145<>"",Data!$M696,"") ->  | K145: =IF(Dashboard!$R$4="All",Data!G696,IF(Data!K696=Dashboard!$R$4,Data!G696,NA())) ->  | O145: =IF(L145<>"",Data!$M696,"") ->  | T145: =IF(OR(Dashboard!$P$4="All",Dashboard!$R$4="All"),NA(),IF(OR(Data!K696<>Dashboard!$P$4,Data!K696<>Dashboard!$R$4),Data!G696,NA())) -> 10684.75001 | AI145: ID0236 | AJ145: 60000 | AK145: 1 | BQ145: ID0236 | BT145: 60000
B146: =IF(Dashboard!$P$4="All",Data!G697,IF(Data!K697=Dashboard!$P$4,Data!G697,NA())) ->  | F146: =IF(C146<>"",Data!$M697,"") ->  | K146: =IF(Dashboard!$R$4="All",Data!G697,IF(Data!K697=Dashboard!$R$4,Data!G697,NA())) ->  | O146: =IF(L146<>"",Data!$M697,"") ->  | T146: =IF(OR(Dashboard!$P$4="All",Dashboard!$R$4="All"),NA(),IF(OR(Data!K697<>Dashboard!$P$4,Data!K697<>Dashboard!$R$4),Data!G697,NA())) -> 10000 | AI146: ID0237 | AN146: 65250 | AO146: 1 | BQ146: ID0237 | BT146: 65250
B147: =IF(Dashboard!$P$4="All",Data!G698,IF(Data!K698=Dashboard!$P$4,Data!G698,NA())) ->  | F147: =IF(C147<>"",Data!$M698,"") ->  | K147: =IF(Dashboard!$R$4="All",Data!G698,IF(Data!K698=Dashboard!$R$4,Data!G698,NA())) ->  | O147: =IF(L147<>"",Data!$M698,"") ->  | T147: =IF(OR(Dashboard!$P$4="All",Dashboard!$R$4="All"),NA(),IF(OR(Data!K698<>Dashboard!$P$4,Data!K698<>Dashboard!$R$4),Data!G698,NA())) -> 2136.950002 | AI147: ID0241 | AJ147: 73000 | AK147: 1 | BQ147: ID0241 | BT147: 73000
B148: =IF(Dashboard!$P$4="All",Data!G699,IF(Data!K699=Dashboard!$P$4,Data!G699,NA())) ->  | F148: =IF(C148<>"",Data!$M699,"") ->  | K148: =IF(Dashboard!$R$4="All",Data!G699,IF(Data!K699=Dashboard!$R$4,Data!G699,NA())) ->  | O148: =IF(L148<>"",Data!$M699,"") ->  | T148: =IF(OR(Dashboard!$P$4="All",Dashboard!$R$4="All"),NA(),IF(OR(Data!K699<>Dashboard!$P$4,Data!K699<>Dashboard!$R$4),Data!G699,NA())) -> 8547.80001 | AI148: ID0242 | AJ148: 50000 | AK148: 1 | BQ148: ID0242 | BU148: 50000
B149: =IF(Dashboard!$P$4="All",Data!G700,IF(Data!K700=Dashboard!$P$4,Data!G700,NA())) ->  | F149: =IF(C149<>"",Data!$M700,"") ->  | K149: =IF(Dashboard!$R$4="All",Data!G700,IF(Data!K700=Dashboard!$R$4,Data!G700,NA())) ->  | O149: =IF(L149<>"",Data!$M700,"") ->  | T149: =IF(OR(Dashboard!$P$4="All",Dashboard!$R$4="All"),NA(),IF(OR(Data!K700<>Dashboard!$P$4,Data!K700<>Dashboard!$R$4),Data!G700,NA())) -> 8013.562509 | AI149: ID0243 | AN149: 79000 | AO149: 1 | BQ149: ID0243 | BS149: 79000
B150: =IF(Dashboard!$P$4="All",Data!G701,IF(Data!K701=Dashboard!$P$4,Data!G701,NA())) ->  | F150: =IF(C150<>"",Data!$M701,"") ->  | K150: =IF(Dashboard!$R$4="All",Data!G701,IF(Data!K701=Dashboard!$R$4,Data!G701,NA())) ->  | O150: =IF(L150<>"",Data!$M701,"") ->  | T150: =IF(OR(Dashboard!$P$4="All",Dashboard!$R$4="All"),NA(),IF(OR(Data!K701<>Dashboard!$P$4,Data!K701<>Dashboard!$R$4),Data!G701,NA())) -> 7123.166675 | AI150: ID0244 | AL150: 90000 | AM150: 1 | BQ150: ID0244 | BT150: 90000
B151: =IF(Dashboard!$P$4="All",Data!G702,IF(Data!K702=Dashboard!$P$4,Data!G702,NA())) ->  | F151: =IF(C151<>"",Data!$M702,"") ->  | K151: =IF(Dashboard!$R$4="All",Data!G702,IF(Data!K702=Dashboard!$R$4,Data!G702,NA())) ->  | O151: =IF(L151<>"",Data!$M702,"") ->  | T151: =IF(OR(Dashboard!$P$4="All",Dashboard!$R$4="All"),NA(),IF(OR(Data!K702<>Dashboard!$P$4,Data!K702<>Dashboard!$R$4),Data!G702,NA())) -> 40958.20838 | AI151: ID0245 | AL151: 70000 | AM151: 1 | BQ151: ID0245 | BS151: 70000
B152: =IF(Dashboard!$P$4="All",Data!G703,IF(Data!K703=Dashboard!$P$4,Data!G703,NA())) ->  | F152: =IF(C152<>"",Data!$M703,"") ->  | K152: =IF(Dashboard!$R$4="All",Data!G703,IF(Data!K703=Dashboard!$R$4,Data!G703,NA())) ->  | O152: =IF(L152<>"",Data!$M703,"") ->  | T152: =IF(OR(Dashboard!$P$4="All",Dashboard!$R$4="All"),NA(),IF(OR(Data!K703<>Dashboard!$P$4,Data!K703<>Dashboard!$R$4),Data!G703,NA())) -> 11325.83501 | AI152: ID0247 | AJ152: 80000 | AK152: 1 | BQ152: ID0247 | BT152: 80000
B153: =IF(Dashboard!$P$4="All",Data!G704,IF(Data!K704=Dashboard!$P$4,Data!G704,NA())) ->  | F153: =IF(C153<>"",Data!$M704,"") ->  | K153: =IF(Dashboard!$R$4="All",Data!G704,IF(Data!K704=Dashboard!$R$4,Data!G704,NA())) ->  | O153: =IF(L153<>"",Data!$M704,"") ->  | T153: =IF(OR(Dashboard!$P$4="All",Dashboard!$R$4="All"),NA(),IF(OR(Data!K704<>Dashboard!$P$4,Data!K704<>Dashboard!$R$4),Data!G704,NA())) -> 15000 | AI153: ID0248 | AL153: 140000 | AM153: 1 | BQ153: ID0248 | BT153: 140000
B154: =IF(Dashboard!$P$4="All",Data!G705,IF(Data!K705=Dashboard!$P$4,Data!G705,NA())) ->  | F154: =IF(C154<>"",Data!$M705,"") ->  | K154: =IF(Dashboard!$R$4="All",Data!G705,IF(Data!K705=Dashboard!$R$4,Data!G705,NA())) ->  | O154: =IF(L154<>"",Data!$M705,"") ->  | T154: =IF(OR(Dashboard!$P$4="All",Dashboard!$R$4="All"),NA(),IF(OR(Data!K705<>Dashboard!$P$4,Data!K705<>Dashboard!$R$4),Data!G705,NA())) -> 12000 | AI154: ID0251 | AJ154: 47700 | AK154: 1 | BQ154: ID0251 | BT154: 47700
B155: =IF(Dashboard!$P$4="All",Data!G706,IF(Data!K706=Dashboard!$P$4,Data!G706,NA())) ->  | F155: =IF(C155<>"",Data!$M706,"") ->  | K155: =IF(Dashboard!$R$4="All",Data!G706,IF(Data!K706=Dashboard!$R$4,Data!G706,NA())) ->  | O155: =IF(L155<>"",Data!$M706,"") ->  | T155: =IF(OR(Dashboard!$P$4="All",Dashboard!$R$4="All"),NA(),IF(OR(Data!K706<>Dashboard!$P$4,Data!K706<>Dashboard!$R$4),Data!G706,NA())) -> 8903.958344 | AI155: ID0253 | AJ155: 52500 | AK155: 1 | BQ155: ID0253 | BT155: 52500
B156: =IF(Dashboard!$P$4="All",Data!G707,IF(Data!K707=Dashboard!$P$4,Data!G707,NA())) ->  | F156: =IF(C156<>"",Data!$M707,"") ->  | K156: =IF(Dashboard!$R$4="All",Data!G707,IF(Data!K707=Dashboard!$R$4,Data!G707,NA())) ->  | O156: =IF(L156<>"",Data!$M707,"") ->  | T156: =IF(OR(Dashboard!$P$4="All",Dashboard!$R$4="All"),NA(),IF(OR(Data!K707<>Dashboard!$P$4,Data!K707<>Dashboard!$R$4),Data!G707,NA())) -> 8903.958344 | AI156: ID0254 | AJ156: 40000 | AK156: 1 | BQ156: ID0254 | BU156: 40000
B157: =IF(Dashboard!$P$4="All",Data!G708,IF(Data!K708=Dashboard!$P$4,Data!G708,NA())) ->  | F157: =IF(C157<>"",Data!$M708,"") ->  | K157: =IF(Dashboard!$R$4="All",Data!G708,IF(Data!K708=Dashboard!$R$4,Data!G708,NA())) ->  | O157: =IF(L157<>"",Data!$M708,"") ->  | T157: =IF(OR(Dashboard!$P$4="All",Dashboard!$R$4="All"),NA(),IF(OR(Data!K708<>Dashboard!$P$4,Data!K708<>Dashboard!$R$4),Data!G708,NA())) -> 12821.70001 | AI157: ID0255 | AJ157: 31000 | AK157: 1 | BQ157: ID0255 | BT157: 31000
B158: =IF(Dashboard!$P$4="All",Data!G709,IF(Data!K709=Dashboard!$P$4,Data!G709,NA())) ->  | F158: =IF(C158<>"",Data!$M709,"") ->  | K158: =IF(Dashboard!$R$4="All",Data!G709,IF(Data!K709=Dashboard!$R$4,Data!G709,NA())) ->  | O158: =IF(L158<>"",Data!$M709,"") ->  | T158: =IF(OR(Dashboard!$P$4="All",Dashboard!$R$4="All"),NA(),IF(OR(Data!K709<>Dashboard!$P$4,Data!K709<>Dashboard!$R$4),Data!G709,NA())) -> 3205.425004 | AI158: ID0257 | AL158: 130000 | AM158: 1 | BQ158: ID0257 | BT158: 130000
B159: =IF(Dashboard!$P$4="All",Data!G710,IF(Data!K710=Dashboard!$P$4,Data!G710,NA())) ->  | F159: =IF(C159<>"",Data!$M710,"") ->  | K159: =IF(Dashboard!$R$4="All",Data!G710,IF(Data!K710=Dashboard!$R$4,Data!G710,NA())) ->  | O159: =IF(L159<>"",Data!$M710,"") ->  | T159: =IF(OR(Dashboard!$P$4="All",Dashboard!$R$4="All"),NA(),IF(OR(Data!K710<>Dashboard!$P$4,Data!K710<>Dashboard!$R$4),Data!G710,NA())) -> 6677.968758 | AI159: ID0259 | AJ159: 51000 | AK159: 1 | BQ159: ID0259 | BS159: 51000
B160: =IF(Dashboard!$P$4="All",Data!G711,IF(Data!K711=Dashboard!$P$4,Data!G711,NA())) ->  | F160: =IF(C160<>"",Data!$M711,"") ->  | K160: =IF(Dashboard!$R$4="All",Data!G711,IF(Data!K711=Dashboard!$R$4,Data!G711,NA())) ->  | O160: =IF(L160<>"",Data!$M711,"") ->  | T160: =IF(OR(Dashboard!$P$4="All",Dashboard!$R$4="All"),NA(),IF(OR(Data!K711<>Dashboard!$P$4,Data!K711<>Dashboard!$R$4),Data!G711,NA())) -> 67794.98796 | AI160: ID0263 | AT160: 73000 | AU160: 1 | BQ160: ID0263 | BT160: 73000
B161: =IF(Dashboard!$P$4="All",Data!G712,IF(Data!K712=Dashboard!$P$4,Data!G712,NA())) ->  | F161: =IF(C161<>"",Data!$M712,"") ->  | K161: =IF(Dashboard!$R$4="All",Data!G712,IF(Data!K712=Dashboard!$R$4,Data!G712,NA())) ->  | O161: =IF(L161<>"",Data!$M712,"") ->  | T161: =IF(OR(Dashboard!$P$4="All",Dashboard!$R$4="All"),NA(),IF(OR(Data!K712<>Dashboard!$P$4,Data!K712<>Dashboard!$R$4),Data!G712,NA())) -> 31250 | AI161: ID0264 | AN161: 62400 | AO161: 1 | BQ161: ID0264 | BU161: 62400
B162: =IF(Dashboard!$P$4="All",Data!G713,IF(Data!K713=Dashboard!$P$4,Data!G713,NA())) ->  | F162: =IF(C162<>"",Data!$M713,"") ->  | K162: =IF(Dashboard!$R$4="All",Data!G713,IF(Data!K713=Dashboard!$R$4,Data!G713,NA())) ->  | O162: =IF(L162<>"",Data!$M713,"") ->  | T162: =IF(OR(Dashboard!$P$4="All",Dashboard!$R$4="All"),NA(),IF(OR(Data!K713<>Dashboard!$P$4,Data!K713<>Dashboard!$R$4),Data!G713,NA())) -> 2165.274098 | AI162: ID0266 | AL162: 54000 | AM162: 1 | BQ162: ID0266 | BU162: 54000
B163: =IF(Dashboard!$P$4="All",Data!G714,IF(Data!K714=Dashboard!$P$4,Data!G714,NA())) ->  | F163: =IF(C163<>"",Data!$M714,"") ->  | K163: =IF(Dashboard!$R$4="All",Data!G714,IF(Data!K714=Dashboard!$R$4,Data!G714,NA())) ->  | O163: =IF(L163<>"",Data!$M714,"") ->  | T163: =IF(OR(Dashboard!$P$4="All",Dashboard!$R$4="All"),NA(),IF(OR(Data!K714<>Dashboard!$P$4,Data!K714<>Dashboard!$R$4),Data!G714,NA())) -> 7123.166675 | AI163: ID0268 | AN163: 77000 | AO163: 1 | BQ163: ID0268 | BT163: 77000
B164: =IF(Dashboard!$P$4="All",Data!G715,IF(Data!K715=Dashboard!$P$4,Data!G715,NA())) ->  | F164: =IF(C164<>"",Data!$M715,"") ->  | K164: =IF(Dashboard!$R$4="All",Data!G715,IF(Data!K715=Dashboard!$R$4,Data!G715,NA())) ->  | O164: =IF(L164<>"",Data!$M715,"") ->  | T164: =IF(OR(Dashboard!$P$4="All",Dashboard!$R$4="All"),NA(),IF(OR(Data!K715<>Dashboard!$P$4,Data!K715<>Dashboard!$R$4),Data!G715,NA())) -> 130000 | AI164: ID0269 | AL164: 76000 | AM164: 1 | BQ164: ID0269 | BU164: 76000
B165: =IF(Dashboard!$P$4="All",Data!G716,IF(Data!K716=Dashboard!$P$4,Data!G716,NA())) ->  | F165: =IF(C165<>"",Data!$M716,"") ->  | K165: =IF(Dashboard!$R$4="All",Data!G716,IF(Data!K716=Dashboard!$R$4,Data!G716,NA())) ->  | O165: =IF(L165<>"",Data!$M716,"") ->  | T165: =IF(OR(Dashboard!$P$4="All",Dashboard!$R$4="All"),NA(),IF(OR(Data!K716<>Dashboard!$P$4,Data!K716<>Dashboard!$R$4),Data!G716,NA())) -> 4451.979172 | AI165: ID0270 | AP165: 103000 | AQ165: 1 | BQ165: ID0270 | BS165: 103000
B166: =IF(Dashboard!$P$4="All",Data!G717,IF(Data!K717=Dashboard!$P$4,Data!G717,NA())) ->  | F166: =IF(C166<>"",Data!$M717,"") ->  | K166: =IF(Dashboard!$R$4="All",Data!G717,IF(Data!K717=Dashboard!$R$4,Data!G717,NA())) ->  | O166: =IF(L166<>"",Data!$M717,"") ->  | T166: =IF(OR(Dashboard!$P$4="All",Dashboard!$R$4="All"),NA(),IF(OR(Data!K717<>Dashboard!$P$4,Data!K717<>Dashboard!$R$4),Data!G717,NA())) -> 9600 | AI166: ID0272 | AJ166: 40000 | AK166: 1 | BQ166: ID0272 | BT166: 40000
B167: =IF(Dashboard!$P$4="All",Data!G718,IF(Data!K718=Dashboard!$P$4,Data!G718,NA())) ->  | F167: =IF(C167<>"",Data!$M718,"") ->  | K167: =IF(Dashboard!$R$4="All",Data!G718,IF(Data!K718=Dashboard!$R$4,Data!G718,NA())) ->  | O167: =IF(L167<>"",Data!$M718,"") ->  | T167: =IF(OR(Dashboard!$P$4="All",Dashboard!$R$4="All"),NA(),IF(OR(Data!K718<>Dashboard!$P$4,Data!K718<>Dashboard!$R$4),Data!G718,NA())) -> 6945.087508 | AI167: ID0273 | AP167: 80000 | AQ167: 1 | BQ167: ID0273 | BS167: 80000
B168: =IF(Dashboard!$P$4="All",Data!G719,IF(Data!K719=Dashboard!$P$4,Data!G719,NA())) ->  | F168: =IF(C168<>"",Data!$M719,"") ->  | K168: =IF(Dashboard!$R$4="All",Data!G719,IF(Data!K719=Dashboard!$R$4,Data!G719,NA())) ->  | O168: =IF(L168<>"",Data!$M719,"") ->  | T168: =IF(OR(Dashboard!$P$4="All",Dashboard!$R$4="All"),NA(),IF(OR(Data!K719<>Dashboard!$P$4,Data!K719<>Dashboard!$R$4),Data!G719,NA())) -> 10684.75001 | AI168: ID0274 | AJ168: 55000 | AK168: 1 | BQ168: ID0274 | BU168: 55000
B169: =IF(Dashboard!$P$4="All",Data!G720,IF(Data!K720=Dashboard!$P$4,Data!G720,NA())) ->  | F169: =IF(C169<>"",Data!$M720,"") ->  | K169: =IF(Dashboard!$R$4="All",Data!G720,IF(Data!K720=Dashboard!$R$4,Data!G720,NA())) ->  | O169: =IF(L169<>"",Data!$M720,"") ->  | T169: =IF(OR(Dashboard!$P$4="All",Dashboard!$R$4="All"),NA(),IF(OR(Data!K720<>Dashboard!$P$4,Data!K720<>Dashboard!$R$4),Data!G720,NA())) -> 8547.80001 | AI169: ID0275 | AJ169: 99000 | AK169: 1 | BQ169: ID0275 | BS169: 99000
B170: =IF(Dashboard!$P$4="All",Data!G721,IF(Data!K721=Dashboard!$P$4,Data!G721,NA())) ->  | F170: =IF(C170<>"",Data!$M721,"") ->  | K170: =IF(Dashboard!$R$4="All",Data!G721,IF(Data!K721=Dashboard!$R$4,Data!G721,NA())) ->  | O170: =IF(L170<>"",Data!$M721,"") ->  | T170: =IF(OR(Dashboard!$P$4="All",Dashboard!$R$4="All"),NA(),IF(OR(Data!K721<>Dashboard!$P$4,Data!K721<>Dashboard!$R$4),Data!G721,NA())) -> 35000 | AI170: ID0277 | AJ170: 75000 | AK170: 1 | BQ170: ID0277 | BT170: 75000
B171: =IF(Dashboard!$P$4="All",Data!G722,IF(Data!K722=Dashboard!$P$4,Data!G722,NA())) ->  | F171: =IF(C171<>"",Data!$M722,"") ->  | K171: =IF(Dashboard!$R$4="All",Data!G722,IF(Data!K722=Dashboard!$R$4,Data!G722,NA())) ->  | O171: =IF(L171<>"",Data!$M722,"") ->  | T171: =IF(OR(Dashboard!$P$4="All",Dashboard!$R$4="All"),NA(),IF(OR(Data!K722<>Dashboard!$P$4,Data!K722<>Dashboard!$R$4),Data!G722,NA())) -> 17807.91669 | AI171: ID0278 | AL171: 80000 | AM171: 1 | BQ171: ID0278 | BS171: 80000
B172: =IF(Dashboard!$P$4="All",Data!G723,IF(Data!K723=Dashboard!$P$4,Data!G723,NA())) ->  | F172: =IF(C172<>"",Data!$M723,"") ->  | K172: =IF(Dashboard!$R$4="All",Data!G723,IF(Data!K723=Dashboard!$R$4,Data!G723,NA())) ->  | O172: =IF(L172<>"",Data!$M723,"") ->  | T172: =IF(OR(Dashboard!$P$4="All",Dashboard!$R$4="All"),NA(),IF(OR(Data!K723<>Dashboard!$P$4,Data!K723<>Dashboard!$R$4),Data!G723,NA())) -> 3205.425004 | AI172: ID0280 | AJ172: 40000 | AK172: 1 | BQ172: ID0280 | BU172: 40000
B173: =IF(Dashboard!$P$4="All",Data!G724,IF(Data!K724=Dashboard!$P$4,Data!G724,NA())) ->  | F173: =IF(C173<>"",Data!$M724,"") ->  | K173: =IF(Dashboard!$R$4="All",Data!G724,IF(Data!K724=Dashboard!$R$4,Data!G724,NA())) ->  | O173: =IF(L173<>"",Data!$M724,"") ->  | T173: =IF(OR(Dashboard!$P$4="All",Dashboard!$R$4="All"),NA(),IF(OR(Data!K724<>Dashboard!$P$4,Data!K724<>Dashboard!$R$4),Data!G724,NA())) -> 60000 | AI173: ID0281 | AJ173: 46000 | AK173: 1 | BQ173: ID0281 | BU173: 46000
B174: =IF(Dashboard!$P$4="All",Data!G725,IF(Data!K725=Dashboard!$P$4,Data!G725,NA())) ->  | F174: =IF(C174<>"",Data!$M725,"") ->  | K174: =IF(Dashboard!$R$4="All",Data!G725,IF(Data!K725=Dashboard!$R$4,Data!G725,NA())) ->  | O174: =IF(L174<>"",Data!$M725,"") ->  | T174: =IF(OR(Dashboard!$P$4="All",Dashboard!$R$4="All"),NA(),IF(OR(Data!K725<>Dashboard!$P$4,Data!K725<>Dashboard!$R$4),Data!G725,NA())) -> 14246.33335 | AI174: ID0283 | AR174: 70000 | AS174: 1 | BQ174: ID0283 | BU174: 70000
B175: =IF(Dashboard!$P$4="All",Data!G726,IF(Data!K726=Dashboard!$P$4,Data!G726,NA())) ->  | F175: =IF(C175<>"",Data!$M726,"") ->  | K175: =IF(Dashboard!$R$4="All",Data!G726,IF(Data!K726=Dashboard!$R$4,Data!G726,NA())) ->  | O175: =IF(L175<>"",Data!$M726,"") ->  | T175: =IF(OR(Dashboard!$P$4="All",Dashboard!$R$4="All"),NA(),IF(OR(Data!K726<>Dashboard!$P$4,Data!K726<>Dashboard!$R$4),Data!G726,NA())) -> 10684.75001 | AI175: ID0285 | AL175: 15000 | AM175: 1 | BQ175: ID0285 | BS175: 15000
B176: =IF(Dashboard!$P$4="All",Data!G727,IF(Data!K727=Dashboard!$P$4,Data!G727,NA())) ->  | F176: =IF(C176<>"",Data!$M727,"") ->  | K176: =IF(Dashboard!$R$4="All",Data!G727,IF(Data!K727=Dashboard!$R$4,Data!G727,NA())) ->  | O176: =IF(L176<>"",Data!$M727,"") ->  | T176: =IF(OR(Dashboard!$P$4="All",Dashboard!$R$4="All"),NA(),IF(OR(Data!K727<>Dashboard!$P$4,Data!K727<>Dashboard!$R$4),Data!G727,NA())) -> 40000 | AI176: ID0289 | AL176: 68000 | AM176: 1 | BQ176: ID0289 | BU176: 68000
B177: =IF(Dashboard!$P$4="All",Data!G728,IF(Data!K728=Dashboard!$P$4,Data!G728,NA())) ->  | F177: =IF(C177<>"",Data!$M728,"") ->  | K177: =IF(Dashboard!$R$4="All",Data!G728,IF(Data!K728=Dashboard!$R$4,Data!G728,NA())) ->  | O177: =IF(L177<>"",Data!$M728,"") ->  | T177: =IF(OR(Dashboard!$P$4="All",Dashboard!$R$4="All"),NA(),IF(OR(Data!K728<>Dashboard!$P$4,Data!K728<>Dashboard!$R$4),Data!G728,NA())) -> 5022 | AI177: ID0290 | AJ177: 97000 | AK177: 1 | BQ177: ID0290 | BU177: 97000
B178: =IF(Dashboard!$P$4="All",Data!G729,IF(Data!K729=Dashboard!$P$4,Data!G729,NA())) ->  | F178: =IF(C178<>"",Data!$M729,"") ->  | K178: =IF(Dashboard!$R$4="All",Data!G729,IF(Data!K729=Dashboard!$R$4,Data!G729,NA())) ->  | O178: =IF(L178<>"",Data!$M729,"") ->  | T178: =IF(OR(Dashboard!$P$4="All",Dashboard!$R$4="All"),NA(),IF(OR(Data!K729<>Dashboard!$P$4,Data!K729<>Dashboard!$R$4),Data!G729,NA())) -> 7301.245842 | AI178: ID0292 | AJ178: 65000 | AK178: 1 | BQ178: ID0292 | BT178: 65000
B179: =IF(Dashboard!$P$4="All",Data!G730,IF(Data!K730=Dashboard!$P$4,Data!G730,NA())) ->  | F179: =IF(C179<>"",Data!$M730,"") ->  | K179: =IF(Dashboard!$R$4="All",Data!G730,IF(Data!K730=Dashboard!$R$4,Data!G730,NA())) ->  | O179: =IF(L179<>"",Data!$M730,"") ->  | T179: =IF(OR(Dashboard!$P$4="All",Dashboard!$R$4="All"),NA(),IF(OR(Data!K730<>Dashboard!$P$4,Data!K730<>Dashboard!$R$4),Data!G730,NA())) -> 19831.43282 | AI179: ID0295 | AJ179: 50000 | AK179: 1 | BQ179: ID0295 | BU179: 50000
B180: =IF(Dashboard!$P$4="All",Data!G731,IF(Data!K731=Dashboard!$P$4,Data!G731,NA())) ->  | F180: =IF(C180<>"",Data!$M731,"") ->  | K180: =IF(Dashboard!$R$4="All",Data!G731,IF(Data!K731=Dashboard!$R$4,Data!G731,NA())) ->  | O180: =IF(L180<>"",Data!$M731,"") ->  | T180: =IF(OR(Dashboard!$P$4="All",Dashboard!$R$4="All"),NA(),IF(OR(Data!K731<>Dashboard!$P$4,Data!K731<>Dashboard!$R$4),Data!G731,NA())) -> 10684.75001 | AI180: ID0296 | AJ180: 45000 | AK180: 1 | BQ180: ID0296 | BT180: 45000
B181: =IF(Dashboard!$P$4="All",Data!G732,IF(Data!K732=Dashboard!$P$4,Data!G732,NA())) ->  | F181: =IF(C181<>"",Data!$M732,"") ->  | K181: =IF(Dashboard!$R$4="All",Data!G732,IF(Data!K732=Dashboard!$R$4,Data!G732,NA())) ->  | O181: =IF(L181<>"",Data!$M732,"") ->  | T181: =IF(OR(Dashboard!$P$4="All",Dashboard!$R$4="All"),NA(),IF(OR(Data!K732<>Dashboard!$P$4,Data!K732<>Dashboard!$R$4),Data!G732,NA())) -> 4800 | AI181: ID0298 | AL181: 60000 | AM181: 1 | BQ181: ID0298 | BU181: 60000
B182: =IF(Dashboard!$P$4="All",Data!G733,IF(Data!K733=Dashboard!$P$4,Data!G733,NA())) ->  | F182: =IF(C182<>"",Data!$M733,"") ->  | K182: =IF(Dashboard!$R$4="All",Data!G733,IF(Data!K733=Dashboard!$R$4,Data!G733,NA())) ->  | O182: =IF(L182<>"",Data!$M733,"") ->  | T182: =IF(OR(Dashboard!$P$4="All",Dashboard!$R$4="All"),NA(),IF(OR(Data!K733<>Dashboard!$P$4,Data!K733<>Dashboard!$R$4),Data!G733,NA())) -> 83846.36297 | AI182: ID0299 | AT182: 31000 | AU182: 1 | BQ182: ID0299 | BS182: 31000
B183: =IF(Dashboard!$P$4="All",Data!G734,IF(Data!K734=Dashboard!$P$4,Data!G734,NA())) ->  | F183: =IF(C183<>"",Data!$M734,"") ->  | K183: =IF(Dashboard!$R$4="All",Data!G734,IF(Data!K734=Dashboard!$R$4,Data!G734,NA())) ->  | O183: =IF(L183<>"",Data!$M734,"") ->  | T183: =IF(OR(Dashboard!$P$4="All",Dashboard!$R$4="All"),NA(),IF(OR(Data!K734<>Dashboard!$P$4,Data!K734<>Dashboard!$R$4),Data!G734,NA())) -> 15000 | AI183: ID0300 | AJ183: 75000 | AK183: 1 | BQ183: ID0300 | BT183: 75000
B184: =IF(Dashboard!$P$4="All",Data!G735,IF(Data!K735=Dashboard!$P$4,Data!G735,NA())) ->  | F184: =IF(C184<>"",Data!$M735,"") ->  | K184: =IF(Dashboard!$R$4="All",Data!G735,IF(Data!K735=Dashboard!$R$4,Data!G735,NA())) ->  | O184: =IF(L184<>"",Data!$M735,"") ->  | T184: =IF(OR(Dashboard!$P$4="All",Dashboard!$R$4="All"),NA(),IF(OR(Data!K735<>Dashboard!$P$4,Data!K735<>Dashboard!$R$4),Data!G735,NA())) -> 10000 | AI184: ID0301 | AP184: 16000 | AQ184: 1 | BQ184: ID0301 | BR184: 16000
B185: =IF(Dashboard!$P$4="All",Data!G736,IF(Data!K736=Dashboard!$P$4,Data!G736,NA())) ->  | F185: =IF(C185<>"",Data!$M736,"") ->  | K185: =IF(Dashboard!$R$4="All",Data!G736,IF(Data!K736=Dashboard!$R$4,Data!G736,NA())) -> 116637.1921 | L185: 116637.1921 | M185: 116637.1921 | O185: =IF(L185<>"",Data!$M736,"") -> 5 | T185: =IF(OR(Dashboard!$P$4="All",Dashboard!$R$4="All"),NA(),IF(OR(Data!K736<>Dashboard!$P$4,Data!K736<>Dashboard!$R$4),Data!G736,NA())) -> 116637.1921 | AI185: ID0302 | AJ185: 36000 | AK185: 1 | BQ185: ID0302 | BU185: 36000
B186: =IF(Dashboard!$P$4="All",Data!G737,IF(Data!K737=Dashboard!$P$4,Data!G737,NA())) ->  | F186: =IF(C186<>"",Data!$M737,"") ->  | K186: =IF(Dashboard!$R$4="All",Data!G737,IF(Data!K737=Dashboard!$R$4,Data!G737,NA())) -> 34357.53397 | L186: 34357.53397 | O186: =IF(L186<>"",Data!$M737,"") -> 1.5 | T186: =IF(OR(Dashboard!$P$4="All",Dashboard!$R$4="All"),NA(),IF(OR(Data!K737<>Dashboard!$P$4,Data!K737<>Dashboard!$R$4),Data!G737,NA())) -> 34357.53397 | AI186: ID0304 | AJ186: 53000 | AK186: 1 | BQ186: ID0304 | BT186: 53000
B187: =IF(Dashboard!$P$4="All",Data!G738,IF(Data!K738=Dashboard!$P$4,Data!G738,NA())) ->  | F187: =IF(C187<>"",Data!$M738,"") ->  | K187: =IF(Dashboard!$R$4="All",Data!G738,IF(Data!K738=Dashboard!$R$4,Data!G738,NA())) -> 102451.5877 | L187: 102451.5877 | O187: =IF(L187<>"",Data!$M738,"") -> 15 | T187: =IF(OR(Dashboard!$P$4="All",Dashboard!$R$4="All"),NA(),IF(OR(Data!K738<>Dashboard!$P$4,Data!K738<>Dashboard!$R$4),Data!G738,NA())) -> 102451.5877 | AI187: ID0306 | AJ187: 67000 | AK187: 1 | BQ187: ID0306 | BT187: 67000
B188: =IF(Dashboard!$P$4="All",Data!G739,IF(Data!K739=Dashboard!$P$4,Data!G739,NA())) ->  | F188: =IF(C188<>"",Data!$M739,"") ->  | K188: =IF(Dashboard!$R$4="All",Data!G739,IF(Data!K739=Dashboard!$R$4,Data!G739,NA())) ->  | O188: =IF(L188<>"",Data!$M739,"") ->  | T188: =IF(OR(Dashboard!$P$4="All",Dashboard!$R$4="All"),NA(),IF(OR(Data!K739<>Dashboard!$P$4,Data!K739<>Dashboard!$R$4),Data!G739,NA())) -> 16000 | AI188: ID0308 | AX188: 85000 | AY188: 1 | BQ188: ID0308 | BU188: 85000
B189: =IF(Dashboard!$P$4="All",Data!G740,IF(Data!K740=Dashboard!$P$4,Data!G740,NA())) ->  | F189: =IF(C189<>"",Data!$M740,"") ->  | K189: =IF(Dashboard!$R$4="All",Data!G740,IF(Data!K740=Dashboard!$R$4,Data!G740,NA())) ->  | O189: =IF(L189<>"",Data!$M740,"") ->  | T189: =IF(OR(Dashboard!$P$4="All",Dashboard!$R$4="All"),NA(),IF(OR(Data!K740<>Dashboard!$P$4,Data!K740<>Dashboard!$R$4),Data!G740,NA())) -> 6000 | AI189: ID0310 | AL189: 40000 | AM189: 1 | BQ189: ID0310 | BT189: 40000
B190: =IF(Dashboard!$P$4="All",Data!G741,IF(Data!K741=Dashboard!$P$4,Data!G741,NA())) ->  | F190: =IF(C190<>"",Data!$M741,"") ->  | K190: =IF(Dashboard!$R$4="All",Data!G741,IF(Data!K741=Dashboard!$R$4,Data!G741,NA())) ->  | O190: =IF(L190<>"",Data!$M741,"") ->  | T190: =IF(OR(Dashboard!$P$4="All",Dashboard!$R$4="All"),NA(),IF(OR(Data!K741<>Dashboard!$P$4,Data!K741<>Dashboard!$R$4),Data!G741,NA())) -> 6410.850007 | AI190: ID0312 | AJ190: 41000 | AK190: 1 | BQ190: ID0312 | BT190: 41000
B191: =IF(Dashboard!$P$4="All",Data!G742,IF(Data!K742=Dashboard!$P$4,Data!G742,NA())) ->  | F191: =IF(C191<>"",Data!$M742,"") ->  | K191: =IF(Dashboard!$R$4="All",Data!G742,IF(Data!K742=Dashboard!$R$4,Data!G742,NA())) ->  | O191: =IF(L191<>"",Data!$M742,"") ->  | T191: =IF(OR(Dashboard!$P$4="All",Dashboard!$R$4="All"),NA(),IF(OR(Data!K742<>Dashboard!$P$4,Data!K742<>Dashboard!$R$4),Data!G742,NA())) -> 36000 | AI191: ID0314 | AL191: 125000 | AM191: 1 | BQ191: ID0314 | BT191: 125000
B192: =IF(Dashboard!$P$4="All",Data!G743,IF(Data!K743=Dashboard!$P$4,Data!G743,NA())) ->  | F192: =IF(C192<>"",Data!$M743,"") ->  | K192: =IF(Dashboard!$R$4="All",Data!G743,IF(Data!K743=Dashboard!$R$4,Data!G743,NA())) ->  | O192: =IF(L192<>"",Data!$M743,"") ->  | T192: =IF(OR(Dashboard!$P$4="All",Dashboard!$R$4="All"),NA(),IF(OR(Data!K743<>Dashboard!$P$4,Data!K743<>Dashboard!$R$4),Data!G743,NA())) -> 20000 | AI192: ID0317 | AJ192: 70000 | AK192: 1 | BQ192: ID0317 | BS192: 70000
B193: =IF(Dashboard!$P$4="All",Data!G744,IF(Data!K744=Dashboard!$P$4,Data!G744,NA())) ->  | F193: =IF(C193<>"",Data!$M744,"") ->  | K193: =IF(Dashboard!$R$4="All",Data!G744,IF(Data!K744=Dashboard!$R$4,Data!G744,NA())) ->  | O193: =IF(L193<>"",Data!$M744,"") ->  | T193: =IF(OR(Dashboard!$P$4="All",Dashboard!$R$4="All"),NA(),IF(OR(Data!K744<>Dashboard!$P$4,Data!K744<>Dashboard!$R$4),Data!G744,NA())) -> 4273.900005 | AI193: ID0318 | AT193: 400000 | AU193: 1 | BQ193: ID0318 | BU193: 400000
B194: =IF(Dashboard!$P$4="All",Data!G745,IF(Data!K745=Dashboard!$P$4,Data!G745,NA())) ->  | F194: =IF(C194<>"",Data!$M745,"") ->  | K194: =IF(Dashboard!$R$4="All",Data!G745,IF(Data!K745=Dashboard!$R$4,Data!G745,NA())) -> 37828.27853 | L194: 37828.27853 | O194: =IF(L194<>"",Data!$M745,"") -> 8 | T194: =IF(OR(Dashboard!$P$4="All",Dashboard!$R$4="All"),NA(),IF(OR(Data!K745<>Dashboard!$P$4,Data!K745<>Dashboard!$R$4),Data!G745,NA())) -> 37828.27853 | AI194: ID0319 | AJ194: 55000 | AK194: 1 | BQ194: ID0319 | BT194: 55000
B195: =IF(Dashboard!$P$4="All",Data!G746,IF(Data!K746=Dashboard!$P$4,Data!G746,NA())) ->  | F195: =IF(C195<>"",Data!$M746,"") ->  | K195: =IF(Dashboard!$R$4="All",Data!G746,IF(Data!K746=Dashboard!$R$4,Data!G746,NA())) ->  | O195: =IF(L195<>"",Data!$M746,"") ->  | T195: =IF(OR(Dashboard!$P$4="All",Dashboard!$R$4="All"),NA(),IF(OR(Data!K746<>Dashboard!$P$4,Data!K746<>Dashboard!$R$4),Data!G746,NA())) -> 11000 | AI195: ID0320 | AJ195: 60000 | AK195: 1 | BQ195: ID0320 | BT195: 60000
B196: =IF(Dashboard!$P$4="All",Data!G747,IF(Data!K747=Dashboard!$P$4,Data!G747,NA())) ->  | C196: =IF(ISNA(B196),"",B196) ->  | D196: =IF(C196>=PERCENTILE($C$3:$C$1337,0.9),C196,"") ->  | E196: =IF(C196<=PERCENTILE($C$3:$C$1337,0.1),C196,"") ->  | F196: =IF(C196<>"",Data!$M747,"") ->  | K196: =IF(Dashboard!$R$4="All",Data!G747,IF(Data!K747=Dashboard!$R$4,Data!G747,NA())) ->  | L196: =IF(ISNA(K196),"",K196) ->  | M196: =IF(L196>=PERCENTILE($L$3:$L$1337,0.9),L196,"") ->  | N196: =IF(L196<=PERCENTILE($L$3:$L$1337,0.1),L196,"") ->  | O196: =IF(L196<>"",Data!$M747,"") ->  | T196: =IF(OR(Dashboard!$P$4="All",Dashboard!$R$4="All"),NA(),IF(OR(Data!K747<>Dashboard!$P$4,Data!K747<>Dashboard!$R$4),Data!G747,NA())) -> 8000 | AI196: ID0323 | AJ196: 137500 | AK196: 1 | BQ196: ID0323 | BT196: 137500
B197: =IF(Dashboard!$P$4="All",Data!G748,IF(Data!K748=Dashboard!$P$4,Data!G748,NA())) ->  | F197: =IF(C197<>"",Data!$M748,"") ->  | K197: =IF(Dashboard!$R$4="All",Data!G748,IF(Data!K748=Dashboard!$R$4,Data!G748,NA())) ->  | O197: =IF(L197<>"",Data!$M748,"") ->  | T197: =IF(OR(Dashboard!$P$4="All",Dashboard!$R$4="All"),NA(),IF(OR(Data!K748<>Dashboard!$P$4,Data!K748<>Dashboard!$R$4),Data!G748,NA())) -> 4006.781255 | AI197: ID0326 | AT197: 47000 | AU197: 1 | BQ197: ID0326 | BT197: 47000
B198: =IF(Dashboard!$P$4="All",Data!G749,IF(Data!K749=Dashboard!$P$4,Data!G749,NA())) ->  | F198: =IF(C198<>"",Data!$M749,"") ->  | K198: =IF(Dashboard!$R$4="All",Data!G749,IF(Data!K749=Dashboard!$R$4,Data!G749,NA())) ->  | O198: =IF(L198<>"",Data!$M749,"") ->  | T198: =IF(OR(Dashboard!$P$4="All",Dashboard!$R$4="All"),NA(),IF(OR(Data!K749<>Dashboard!$P$4,Data!K749<>Dashboard!$R$4),Data!G749,NA())) -> 9171.032357 | AI198: ID0327 | AJ198: 65000 | AK198: 1 | BQ198: ID0327 | BU198: 65000
B199: =IF(Dashboard!$P$4="All",Data!G750,IF(Data!K750=Dashboard!$P$4,Data!G750,NA())) ->  | F199: =IF(C199<>"",Data!$M750,"") ->  | K199: =IF(Dashboard!$R$4="All",Data!G750,IF(Data!K750=Dashboard!$R$4,Data!G750,NA())) ->  | O199: =IF(L199<>"",Data!$M750,"") ->  | T199: =IF(OR(Dashboard!$P$4="All",Dashboard!$R$4="All"),NA(),IF(OR(Data!K750<>Dashboard!$P$4,Data!K750<>Dashboard!$R$4),Data!G750,NA())) -> 4273.900005 | AI199: ID0329 | AL199: 92000 | AM199: 1 | BQ199: ID0329 | BT199: 92000
B200: =IF(Dashboard!$P$4="All",Data!G751,IF(Data!K751=Dashboard!$P$4,Data!G751,NA())) ->  | F200: =IF(C200<>"",Data!$M751,"") ->  | K200: =IF(Dashboard!$R$4="All",Data!G751,IF(Data!K751=Dashboard!$R$4,Data!G751,NA())) ->  | O200: =IF(L200<>"",Data!$M751,"") ->  | T200: =IF(OR(Dashboard!$P$4="All",Dashboard!$R$4="All"),NA(),IF(OR(Data!K751<>Dashboard!$P$4,Data!K751<>Dashboard!$R$4),Data!G751,NA())) -> 12465.54168 | AI200: ID0331 | AL200: 108000 | AM200: 1 | BQ200: ID0331 | BS200: 108000
... 1137 more rows

Sheet Data
B1: Excel Salary Survey Data
B3: Note: Experience data is not available for first few hundred rows.
B5: Unique ID | C5: Timestamp | D5: Your Salary | E5: clean Salary (in local currency) | F5: Currency | G5: Salary in USD | H5: Your Job Title | I5: Job Type | J5: Where do you work | K5: clean Country | L5: How many hours of a day you work on Excel | M5: Years of Experience
B6: ID0001 | C6: 2012-05-25T03:11:32 | D6: 5846 | E6: 5846 | F6: USD | G6: =tblSalaries[[#This Row],[clean Salary (in local currency)]]*VLOOKUP(tblSalaries[[#This Row],[Currency]],tblXrate[],2,FALSE) -> 5846 | H6: MIS Analyst | I6: Analyst | J6: India | K6: =VLOOKUP(tblSalaries[[#This Row],[Where do you work]],tblCountries[[Actual]:[Mapping]],2,FALSE) -> India | L6: 4 to 6 hours a day
B7: ID0002 | C7: 2012-05-25T03:13:13 | D7: 15000 usd | E7: 15000 | F7: USD | G7: =tblSalaries[[#This Row],[clean Salary (in local currency)]]*VLOOKUP(tblSalaries[[#This Row],[Currency]],tblXrate[],2,FALSE) -> 15000 | H7: cost control | I7: Controller | J7: europe/Croatia | K7: =VLOOKUP(tblSalaries[[#This Row],[Where do you work]],tblCountries[[Actual]:[Mapping]],2,FALSE) -> Croatia | L7: All the 8 hours baby, all the 8!
B8: ID0003 | C8: 2012-05-25T03:16:26 | D8: 58000 | E8: 58000 | F8: USD | G8: =tblSalaries[[#This Row],[clean Salary (in local currency)]]*VLOOKUP(tblSalaries[[#This Row],[Currency]],tblXrate[],2,FALSE) -> 58000 | H8: Financial Analyst | I8: Analyst | J8: USA | K8: =VLOOKUP(tblSalaries[[#This Row],[Where do you work]],tblCountries[[Actual]:[Mapping]],2,FALSE) -> USA | L8: All the 8 hours baby, all the 8!
B9: ID0004 | C9: 2012-05-25T03:23:42 | D9: 48000 | E9: 48000 | F9: USD | G9: =tblSalaries[[#This Row],[clean Salary (in local currency)]]*VLOOKUP(tblSalaries[[#This Row],[Currency]],tblXrate[],2,FALSE) -> 48000 | H9: Quality Control | I9: Controller | J9: Pakistan | K9: =VLOOKUP(tblSalaries[[#This Row],[Where do you work]],tblCountries[[Actual]:[Mapping]],2,FALSE) -> Pakistan | L9: 2 to 3 hours per day
B10: ID0005 | C10: 2012-05-25T03:27:04 | D10: 54000 | E10: 54000 | F10: USD | G10: =tblSalaries[[#This Row],[clean Salary (in local currency)]]*VLOOKUP(tblSalaries[[#This Row],[Currency]],tblXrate[],2,FALSE) -> 54000 | H10: Quality Engineer | I10: Engineer | J10: USA | K10: =VLOOKUP(tblSalaries[[#This Row],[Where do you work]],tblCountries[[Actual]:[Mapping]],2,FALSE) -> USA | L10: All the 8 hours baby, all the 8!
B11: ID0006 | C11: 2012-05-25T03:28:28 | D11: 41731 | E11: 41731 | F11: USD | G11: =tblSalaries[[#This Row],[clean Salary (in local currency)]]*VLOOKUP(tblSalaries[[#This Row],[Currency]],tblXrate[],2,FALSE) -> 41731 | H11: Analyst | I11: Analyst | J11: Iceland | K11: =VLOOKUP(tblSalaries[[#This Row],[Where do you work]],tblCountries[[Actual]:[Mapping]],2,FALSE) -> Iceland | L11: All the 8 hours baby, all the 8!
B12: ID0007 | C12: 2012-05-25T03:33:51 | D12: 145000 | E12: 145000 | F12: EUR | G12: =tblSalaries[[#This Row],[clean Salary (in local currency)]]*VLOOKUP(tblSalaries[[#This Row],[Currency]],tblXrate[],2,FALSE) -> 184207.9187 | H12: senior project manager | I12: Manager | J12: Germany | K12: =VLOOKUP(tblSalaries[[#This Row],[Where do you work]],tblCountries[[Actual]:[Mapping]],2,FALSE) -> Germany | L12: 1 or 2 hours a day
B13: ID0008 | C13: 2012-05-25T03:36:37 | D13: 12000 | E13: 12000 | F13: USD | G13: =tblSalaries[[#This Row],[clean Salary (in local currency)]]*VLOOKUP(tblSalaries[[#This Row],[Currency]],tblXrate[],2,FALSE) -> 12000 | H13: Assistant SP&A | I13: Analyst | J13: Ukraine | K13: =VLOOKUP(tblSalaries[[#This Row],[Where do you work]],tblCountries[[Actual]:[Mapping]],2,FALSE) -> Ukraine | L13: All the 8 hours baby, all the 8!
B14: ID0009 | C14: 2012-05-25T03:37:17 | D14: 44000 $ | E14: 44000 | F14: USD | G14: =tblSalaries[[#This Row],[clean Salary (in local currency)]]*VLOOKUP(tblSalaries[[#This Row],[Currency]],tblXrate[],2,FALSE) -> 44000 | H14: CFO | I14: CXO or Top Mgmt. | J14: Portugal | K14: =VLOOKUP(tblSalaries[[#This Row],[Where do you work]],tblCountries[[Actual]:[Mapping]],2,FALSE) -> Portugal | L14: 1 or 2 hours a day
B15: ID0010 | C15: 2012-05-25T03:38:57 | D15: PKR 8,000 | E15: 1152000 | F15: PKR | G15: =tblSalaries[[#This Row],[clean Salary (in local currency)]]*VLOOKUP(tblSalaries[[#This Row],[Currency]],tblXrate[],2,FALSE) -> 12227.4302 | H15: Audit Trainee | I15: Accountant | J15: Pakistan | K15: =VLOOKUP(tblSalaries[[#This Row],[Where do you work]],tblCountries[[Actual]:[Mapping]],2,FALSE) -> Pakistan | L15: All the 8 hours baby, all the 8!
B16: ID0011 | C16: 2012-05-25T03:43:45 | D16: â‚¬ 51650 | E16: 51650 | F16: EUR | G16: =tblSalaries[[#This Row],[clean Salary (in local currency)]]*VLOOKUP(tblSalaries[[#This Row],[Currency]],tblXrate[],2,FALSE) -> 65616.13102 | H16: Training Specialist | I16: Specialist | J16: Ireland | K16: =VLOOKUP(tblSalaries[[#This Row],[Where do you work]],tblCountries[[Actual]:[Mapping]],2,FALSE) -> Ireland | L16: 2 to 3 hours per day
B17: ID0012 | C17: 2012-05-25T03:43:56 | D17: 14000 | E17: 14000 | F17: USD | G17: =tblSalaries[[#This Row],[clean Salary (in local currency)]]*VLOOKUP(tblSalaries[[#This Row],[Currency]],tblXrate[],2,FALSE) -> 14000 | H17: quality engineer | I17: Engineer | J17: Hungary | K17: =VLOOKUP(tblSalaries[[#This Row],[Where do you work]],tblCountries[[Actual]:[Mapping]],2,FALSE) -> Hungary | L17: 4 to 6 hours a day
B18: ID0013 | C18: 2012-05-25T03:48:53 | D18: 749000 INR | E18: 749000 | F18: INR | G18: =tblSalaries[[#This Row],[clean Salary (in local currency)]]*VLOOKUP(tblSalaries[[#This Row],[Currency]],tblXrate[],2,FALSE) -> 13338.1296 | H18: Senion Analyst | I18: Analyst | J18: India | K18: =VLOOKUP(tblSalaries[[#This Row],[Where do you work]],tblCountries[[Actual]:[Mapping]],2,FALSE) -> India | L18: All the 8 hours baby, all the 8!
B19: ID0014 | C19: 2012-05-25T03:50:58 | D19: 49000 | E19: 49000 | F19: USD | G19: =tblSalaries[[#This Row],[clean Salary (in local currency)]]*VLOOKUP(tblSalaries[[#This Row],[Currency]],tblXrate[],2,FALSE) -> 49000 | H19: business analyst | I19: Analyst | J19: USA | K19: =VLOOKUP(tblSalaries[[#This Row],[Where do you work]],tblCountries[[Actual]:[Mapping]],2,FALSE) -> USA | L19: All the 8 hours baby, all the 8!
B20: ID0015 | C20: 2012-05-25T03:53:22 | D20: 85000 | E20: 85000 | F20: USD | G20: =tblSalaries[[#This Row],[clean Salary (in local currency)]]*VLOOKUP(tblSalaries[[#This Row],[Currency]],tblXrate[],2,FALSE) -> 85000 | H20: Project Engineer | I20: Engineer | J20: USA | K20: =VLOOKUP(tblSalaries[[#This Row],[Where do you work]],tblCountries[[Actual]:[Mapping]],2,FALSE) -> USA | L20: 1 or 2 hours a day
B21: ID0016 | C21: 2012-05-25T03:56:40 | D21: 75000 | E21: 75000 | F21: USD | G21: =tblSalaries[[#This Row],[clean Salary (in local currency)]]*VLOOKUP(tblSalaries[[#This Row],[Currency]],tblXrate[],2,FALSE) -> 75000 | H21: Sr Project Engineer | I21: Engineer | J21: USA | K21: =VLOOKUP(tblSalaries[[#This Row],[Where do you work]],tblCountries[[Actual]:[Mapping]],2,FALSE) -> USA | L21: All the 8 hours baby, all the 8!
B22: ID0017 | C22: 2012-05-25T04:10:11 | D22: 107000 | E22: 107000 | F22: USD | G22: =tblSalaries[[#This Row],[clean Salary (in local currency)]]*VLOOKUP(tblSalaries[[#This Row],[Currency]],tblXrate[],2,FALSE) -> 107000 | H22: Business Development | I22: Manager | J22: Switzerland | K22: =VLOOKUP(tblSalaries[[#This Row],[Where do you work]],tblCountries[[Actual]:[Mapping]],2,FALSE) -> Switzerland | L22: 4 to 6 hours a day
B23: ID0018 | C23: 2012-05-25T04:10:44 | D23: 45000 | E23: 45000 | F23: USD | G23: =tblSalaries[[#This Row],[clean Salary (in local currency)]]*VLOOKUP(tblSalaries[[#This Row],[Currency]],tblXrate[],2,FALSE) -> 45000 | H23: Excel Report Writer | I23: Reporting | J23: South Africa | K23: =VLOOKUP(tblSalaries[[#This Row],[Where do you work]],tblCountries[[Actual]:[Mapping]],2,FALSE) -> South Africa | L23: All the 8 hours baby, all the 8!
B24: ID0019 | C24: 2012-05-25T04:16:32 | D24: 550000 | E24: 550000 | F24: INR | G24: =tblSalaries[[#This Row],[clean Salary (in local currency)]]*VLOOKUP(tblSalaries[[#This Row],[Currency]],tblXrate[],2,FALSE) -> 9794.354178 | H24: AGM | I24: Manager | J24: India | K24: =VLOOKUP(tblSalaries[[#This Row],[Where do you work]],tblCountries[[Actual]:[Mapping]],2,FALSE) -> India | L24: 2 to 3 hours per day
B25: ID0020 | C25: 2012-05-25T04:19:22 | D25: 50000 | E25: 50000 | F25: USD | G25: =tblSalaries[[#This Row],[clean Salary (in local currency)]]*VLOOKUP(tblSalaries[[#This Row],[Currency]],tblXrate[],2,FALSE) -> 50000 | H25: GM | I25: Manager | J25: India | K25: =VLOOKUP(tblSalaries[[#This Row],[Where do you work]],tblCountries[[Actual]:[Mapping]],2,FALSE) -> India | L25: 1 or 2 hours a day
B26: ID0021 | C26: 2012-05-25T04:24:01 | D26: 13500 | E26: 13500 | F26: USD | G26: =tblSalaries[[#This Row],[clean Salary (in local currency)]]*VLOOKUP(tblSalaries[[#This Row],[Currency]],tblXrate[],2,FALSE) -> 13500 | H26: DSE Co-ordinator | I26: Manager | J26: India | K26: =VLOOKUP(tblSalaries[[#This Row],[Where do you work]],tblCountries[[Actual]:[Mapping]],2,FALSE) -> India | L26: 4 to 6 hours a day
B27: ID0022 | C27: 2012-05-25T04:24:12 | D27: 96000 | E27: 96000 | F27: USD | G27: =tblSalaries[[#This Row],[clean Salary (in local currency)]]*VLOOKUP(tblSalaries[[#This Row],[Currency]],tblXrate[],2,FALSE) -> 96000 | H27: Analyst | I27: Analyst | J27: USA | K27: =VLOOKUP(tblSalaries[[#This Row],[Where do you work]],tblCountries[[Actual]:[Mapping]],2,FALSE) -> USA | L27: 2 to 3 hours per day
B28: ID0023 | C28: 2012-05-25T04:31:41 | D28: 1000000 | E28: 1000000 | F28: INR | G28: =tblSalaries[[#This Row],[clean Salary (in local currency)]]*VLOOKUP(tblSalaries[[#This Row],[Currency]],tblXrate[],2,FALSE) -> 17807.91669 | H28: Manager | I28: Manager | J28: India | K28: =VLOOKUP(tblSalaries[[#This Row],[Where do you work]],tblCountries[[Actual]:[Mapping]],2,FALSE) -> India | L28: 4 to 6 hours a day
B29: ID0024 | C29: 2012-05-25T04:32:49 | D29: 75000 | E29: 75000 | F29: USD | G29: =tblSalaries[[#This Row],[clean Salary (in local currency)]]*VLOOKUP(tblSalaries[[#This Row],[Currency]],tblXrate[],2,FALSE) -> 75000 | H29: Marketing Director | I29: CXO or Top Mgmt. | J29: USA | K29: =VLOOKUP(tblSalaries[[#This Row],[Where do you work]],tblCountries[[Actual]:[Mapping]],2,FALSE) -> USA | L29: 4 to 6 hours a day
B30: ID0025 | C30: 2012-05-25T04:43:51 | D30: 40000 us | E30: 40000 | F30: USD | G30: =tblSalaries[[#This Row],[clean Salary (in local currency)]]*VLOOKUP(tblSalaries[[#This Row],[Currency]],tblXrate[],2,FALSE) -> 40000 | H30: sales and marketing | I30: Manager | J30: USA | K30: =VLOOKUP(tblSalaries[[#This Row],[Where do you work]],tblCountries[[Actual]:[Mapping]],2,FALSE) -> USA | L30: 2 to 3 hours per day
B31: ID0026 | C31: 2012-05-25T04:45:01 | D31: 60000 | E31: 60000 | F31: USD | G31: =tblSalaries[[#This Row],[clean Salary (in local currency)]]*VLOOKUP(tblSalaries[[#This Row],[Currency]],tblXrate[],2,FALSE) -> 60000 | H31: Analyst II | I31: Analyst | J31: USA | K31: =VLOOKUP(tblSalaries[[#This Row],[Where do you work]],tblCountries[[Actual]:[Mapping]],2,FALSE) -> USA | L31: All the 8 hours baby, all the 8!
B32: ID0028 | C32: 2012-05-25T04:48:33 | D32: 2700 | E32: 32400 | F32: EUR | G32: =tblSalaries[[#This Row],[clean Salary (in local currency)]]*VLOOKUP(tblSalaries[[#This Row],[Currency]],tblXrate[],2,FALSE) -> 41160.94182 | H32: Project Leader | I32: Manager | J32: Belgium | K32: =VLOOKUP(tblSalaries[[#This Row],[Where do you work]],tblCountries[[Actual]:[Mapping]],2,FALSE) -> Belgium | L32: 4 to 6 hours a day
B33: ID0029 | C33: 2012-05-25T04:52:23 | D33: 900000 INR | E33: 900000 | F33: INR | G33: =tblSalaries[[#This Row],[clean Salary (in local currency)]]*VLOOKUP(tblSalaries[[#This Row],[Currency]],tblXrate[],2,FALSE) -> 16027.12502 | H33: Applications Engineer | I33: Engineer | J33: India | K33: =VLOOKUP(tblSalaries[[#This Row],[Where do you work]],tblCountries[[Actual]:[Mapping]],2,FALSE) -> India | L33: 1 or 2 hours a day
B34: ID0030 | C34: 2012-05-25T04:55:35 | D34: Rs 600000 | E34: 600000 | F34: INR | G34: =tblSalaries[[#This Row],[clean Salary (in local currency)]]*VLOOKUP(tblSalaries[[#This Row],[Currency]],tblXrate[],2,FALSE) -> 10684.75001 | H34: strategy manager | I34: Manager | J34: India | K34: =VLOOKUP(tblSalaries[[#This Row],[Where do you work]],tblCountries[[Actual]:[Mapping]],2,FALSE) -> India | L34: 4 to 6 hours a day
B35: ID0031 | C35: 2012-05-25T04:55:48 | D35: 41000 | E35: 41000 | F35: USD | G35: =tblSalaries[[#This Row],[clean Salary (in local currency)]]*VLOOKUP(tblSalaries[[#This Row],[Currency]],tblXrate[],2,FALSE) -> 41000 | H35: Chief of the department of public budget analisis and forecasting | I35: Manager | J35: Russia | K35: =VLOOKUP(tblSalaries[[#This Row],[Where do you work]],tblCountries[[Actual]:[Mapping]],2,FALSE) -> Russia | L35: All the 8 hours baby, all the 8!
B36: ID0032 | C36: 2012-05-25T04:57:06 | D36: 360000 INR | E36: 360000 | F36: INR | G36: =tblSalaries[[#This Row],[clean Salary (in local currency)]]*VLOOKUP(tblSalaries[[#This Row],[Currency]],tblXrate[],2,FALSE) -> 6410.850007 | H36: Specialist | I36: Specialist | J36: India | K36: =VLOOKUP(tblSalaries[[#This Row],[Where do you work]],tblCountries[[Actual]:[Mapping]],2,FALSE) -> India | L36: 4 to 6 hours a day
B37: ID0033 | C37: 2012-05-25T04:58:45 | D37: Â£35000 | E37: 35000 | F37: GBP | G37: =tblSalaries[[#This Row],[clean Salary (in local currency)]]*VLOOKUP(tblSalaries[[#This Row],[Currency]],tblXrate[],2,FALSE) -> 55166.23952 | H37: Management Information Analyst | I37: Analyst | J37: UK | K37: =VLOOKUP(tblSalaries[[#This Row],[Where do you work]],tblCountries[[Actual]:[Mapping]],2,FALSE) -> UK | L37: All the 8 hours baby, all the 8!
B38: ID0035 | C38: 2012-05-25T05:01:09 | D38: 1600 $ | E38: 19200 | F38: USD | G38: =tblSalaries[[#This Row],[clean Salary (in local currency)]]*VLOOKUP(tblSalaries[[#This Row],[Currency]],tblXrate[],2,FALSE) -> 19200 | H38: Analyst | I38: Analyst | J38: Poland | K38: =VLOOKUP(tblSalaries[[#This Row],[Where do you work]],tblCountries[[Actual]:[Mapping]],2,FALSE) -> Poland | L38: 2 to 3 hours per day
B39: ID0036 | C39: 2012-05-25T05:04:12 | D39: 500000 | E39: 500000 | F39: INR | G39: =tblSalaries[[#This Row],[clean Salary (in local currency)]]*VLOOKUP(tblSalaries[[#This Row],[Currency]],tblXrate[],2,FALSE) -> 8903.958344 | H39: Senior Consultant | I39: Consultant | J39: India | K39: =VLOOKUP(tblSalaries[[#This Row],[Where do you work]],tblCountries[[Actual]:[Mapping]],2,FALSE) -> India | L39: All the 8 hours baby, all the 8!
B40: ID0037 | C40: 2012-05-25T05:07:31 | D40: 150000 | E40: 150000 | F40: USD | G40: =tblSalaries[[#This Row],[clean Salary (in local currency)]]*VLOOKUP(tblSalaries[[#This Row],[Currency]],tblXrate[],2,FALSE) -> 150000 | H40: Portfolio Manager | I40: Manager | J40: USA | K40: =VLOOKUP(tblSalaries[[#This Row],[Where do you work]],tblCountries[[Actual]:[Mapping]],2,FALSE) -> USA | L40: 2 to 3 hours per day
B41: ID0038 | C41: 2012-05-25T05:10:29 | D41: 69000 | E41: 69000 | F41: USD | G41: =tblSalaries[[#This Row],[clean Salary (in local currency)]]*VLOOKUP(tblSalaries[[#This Row],[Currency]],tblXrate[],2,FALSE) -> 69000 | H41: Design Engineer | I41: Engineer | J41: USA | K41: =VLOOKUP(tblSalaries[[#This Row],[Where do you work]],tblCountries[[Actual]:[Mapping]],2,FALSE) -> USA | L41: 4 to 6 hours a day
B42: ID0039 | C42: 2012-05-25T05:11:37 | D42: 30000 | E42: 30000 | F42: USD | G42: =tblSalaries[[#This Row],[clean Salary (in local currency)]]*VLOOKUP(tblSalaries[[#This Row],[Currency]],tblXrate[],2,FALSE) -> 30000 | H42: Academic Advisor | I42: Consultant | J42: USA | K42: =VLOOKUP(tblSalaries[[#This Row],[Where do you work]],tblCountries[[Actual]:[Mapping]],2,FALSE) -> USA | L42: 2 to 3 hours per day
B43: ID0040 | C43: 2012-05-25T05:13:50 | D43: Rs. 400000 | E43: 400000 | F43: INR | G43: =tblSalaries[[#This Row],[clean Salary (in local currency)]]*VLOOKUP(tblSalaries[[#This Row],[Currency]],tblXrate[],2,FALSE) -> 7123.166675 | H43: Coordination | I43: Manager | J43: India | K43: =VLOOKUP(tblSalaries[[#This Row],[Where do you work]],tblCountries[[Actual]:[Mapping]],2,FALSE) -> India | L43: 4 to 6 hours a day
B44: ID0041 | C44: 2012-05-25T05:18:48 | D44: 70000 | E44: 70000 | F44: AUD | G44: =tblSalaries[[#This Row],[clean Salary (in local currency)]]*VLOOKUP(tblSalaries[[#This Row],[Currency]],tblXrate[],2,FALSE) -> 71393.67595 | H44: consultant | I44: Consultant | J44: Australia | K44: =VLOOKUP(tblSalaries[[#This Row],[Where do you work]],tblCountries[[Actual]:[Mapping]],2,FALSE) -> Australia | L44: 2 to 3 hours per day
B45: ID0042 | C45: 2012-05-25T05:20:10 | D45: 14500 | E45: 14500 | F45: USD | G45: =tblSalaries[[#This Row],[clean Salary (in local currency)]]*VLOOKUP(tblSalaries[[#This Row],[Currency]],tblXrate[],2,FALSE) -> 14500 | H45: Business Analsyt | I45: Analyst | J45: India | K45: =VLOOKUP(tblSalaries[[#This Row],[Where do you work]],tblCountries[[Actual]:[Mapping]],2,FALSE) -> India | L45: 4 to 6 hours a day
B46: ID0043 | C46: 2012-05-25T05:30:39 | D46: 70000 | E46: 70000 | F46: CAD | G46: =tblSalaries[[#This Row],[clean Salary (in local currency)]]*VLOOKUP(tblSalaries[[#This Row],[Currency]],tblXrate[],2,FALSE) -> 68835.30661 | H46: Product Engineer | I46: Engineer | J46: Canada | K46: =VLOOKUP(tblSalaries[[#This Row],[Where do you work]],tblCountries[[Actual]:[Mapping]],2,FALSE) -> Canada | L46: 2 to 3 hours per day
B47: ID0044 | C47: 2012-05-25T05:35:28 | D47: 58000 | E47: 58000 | F47: USD | G47: =tblSalaries[[#This Row],[clean Salary (in local currency)]]*VLOOKUP(tblSalaries[[#This Row],[Currency]],tblXrate[],2,FALSE) -> 58000 | H47: Senior Accountant | I47: Accountant | J47: USA | K47: =VLOOKUP(tblSalaries[[#This Row],[Where do you work]],tblCountries[[Actual]:[Mapping]],2,FALSE) -> USA | L47: 4 to 6 hours a day
B48: ID0045 | C48: 2012-05-25T05:45:01 | D48: 90000 | E48: 90000 | F48: USD | G48: =tblSalaries[[#This Row],[clean Salary (in local currency)]]*VLOOKUP(tblSalaries[[#This Row],[Currency]],tblXrate[],2,FALSE) -> 90000 | H48: Scientist | I48: Misc. | J48: USA | K48: =VLOOKUP(tblSalaries[[#This Row],[Where do you work]],tblCountries[[Actual]:[Mapping]],2,FALSE) -> USA | L48: 1 or 2 hours a day
B49: ID0046 | C49: 2012-05-25T05:46:47 | D49: 800000 | E49: 800000 | F49: INR | G49: =tblSalaries[[#This Row],[clean Salary (in local currency)]]*VLOOKUP(tblSalaries[[#This Row],[Currency]],tblXrate[],2,FALSE) -> 14246.33335 | H49: Team Lead | I49: Manager | J49: India | K49: =VLOOKUP(tblSalaries[[#This Row],[Where do you work]],tblCountries[[Actual]:[Mapping]],2,FALSE) -> India | L49: 2 to 3 hours per day
B50: ID0047 | C50: 2012-05-25T05:47:10 | D50: 32000 | E50: 32000 | F50: GBP | G50: =tblSalaries[[#This Row],[clean Salary (in local currency)]]*VLOOKUP(tblSalaries[[#This Row],[Currency]],tblXrate[],2,FALSE) -> 50437.70471 | H50: Senior intelligence analyst | I50: Analyst | J50: UK | K50: =VLOOKUP(tblSalaries[[#This Row],[Where do you work]],tblCountries[[Actual]:[Mapping]],2,FALSE) -> UK | L50: 4 to 6 hours a day
B51: ID0048 | C51: 2012-05-25T05:47:52 | D51: 1000 | E51: 12000 | F51: USD | G51: =tblSalaries[[#This Row],[clean Salary (in local currency)]]*VLOOKUP(tblSalaries[[#This Row],[Currency]],tblXrate[],2,FALSE) -> 12000 | H51: Freelance consultant | I51: Consultant | J51: USA | K51: =VLOOKUP(tblSalaries[[#This Row],[Where do you work]],tblCountries[[Actual]:[Mapping]],2,FALSE) -> USA | L51: 1 or 2 hours a day
B52: ID0049 | C52: 2012-05-25T06:04:42 | D52: â‚¬ 45 | E52: 45000 | F52: EUR | G52: =tblSalaries[[#This Row],[clean Salary (in local currency)]]*VLOOKUP(tblSalaries[[#This Row],[Currency]],tblXrate[],2,FALSE) -> 57167.97475 | H52: Online Traffic Manager / Web Analist | I52: Manager | J52: The Netherlands | K52: =VLOOKUP(tblSalaries[[#This Row],[Where do you work]],tblCountries[[Actual]:[Mapping]],2,FALSE) -> Netherlands | L52: 4 to 6 hours a day
B53: ID0050 | C53: 2012-05-25T06:04:57 | D53: 100000 USD | E53: 100000 | F53: USD | G53: =tblSalaries[[#This Row],[clean Salary (in local currency)]]*VLOOKUP(tblSalaries[[#This Row],[Currency]],tblXrate[],2,FALSE) -> 100000 | H53: Seinor Financial Analyst | I53: Analyst | J53: Germany | K53: =VLOOKUP(tblSalaries[[#This Row],[Where do you work]],tblCountries[[Actual]:[Mapping]],2,FALSE) -> Germany | L53: All the 8 hours baby, all the 8!
B54: ID0051 | C54: 2012-05-25T06:05:17 | D54: 57000 | E54: 57000 | F54: USD | G54: =tblSalaries[[#This Row],[clean Salary (in local currency)]]*VLOOKUP(tblSalaries[[#This Row],[Currency]],tblXrate[],2,FALSE) -> 57000 | H54: Senior Accounting Supervisor | I54: Accountant | J54: USA | K54: =VLOOKUP(tblSalaries[[#This Row],[Where do you work]],tblCountries[[Actual]:[Mapping]],2,FALSE) -> USA | L54: 2 to 3 hours per day
B55: ID0052 | C55: 2012-05-25T06:07:15 | D55: 40000 | E55: 40000 | F55: GBP | G55: =tblSalaries[[#This Row],[clean Salary (in local currency)]]*VLOOKUP(tblSalaries[[#This Row],[Currency]],tblXrate[],2,FALSE) -> 63047.13088 | H55: Senior Accountant | I55: Accountant | J55: UK | K55: =VLOOKUP(tblSalaries[[#This Row],[Where do you work]],tblCountries[[Actual]:[Mapping]],2,FALSE) -> UK | L55: 4 to 6 hours a day
B56: ID0053 | C56: 2012-05-25T06:09:44 | D56: 2000 Euros | E56: 24000 | F56: EUR | G56: =tblSalaries[[#This Row],[clean Salary (in local currency)]]*VLOOKUP(tblSalaries[[#This Row],[Currency]],tblXrate[],2,FALSE) -> 30489.58654 | H56: PPC Manager | I56: Manager | J56: Germany | K56: =VLOOKUP(tblSalaries[[#This Row],[Where do you work]],tblCountries[[Actual]:[Mapping]],2,FALSE) -> Germany | L56: All the 8 hours baby, all the 8!
B57: ID0054 | C57: 2012-05-25T06:10:18 | D57: 4320 | E57: 4320 | F57: USD | G57: =tblSalaries[[#This Row],[clean Salary (in local currency)]]*VLOOKUP(tblSalaries[[#This Row],[Currency]],tblXrate[],2,FALSE) -> 4320 | H57: Financial Planner | I57: Accountant | J57: India | K57: =VLOOKUP(tblSalaries[[#This Row],[Where do you work]],tblCountries[[Actual]:[Mapping]],2,FALSE) -> India | L57: 2 to 3 hours per day
B58: ID0055 | C58: 2012-05-25T06:15:42 | D58: 62000 | E58: 62000 | F58: USD | G58: =tblSalaries[[#This Row],[clean Salary (in local currency)]]*VLOOKUP(tblSalaries[[#This Row],[Currency]],tblXrate[],2,FALSE) -> 62000 | H58: Analyst | I58: Analyst | J58: USA | K58: =VLOOKUP(tblSalaries[[#This Row],[Where do you work]],tblCountries[[Actual]:[Mapping]],2,FALSE) -> USA | L58: 4 to 6 hours a day
B59: ID0056 | C59: 2012-05-25T06:26:44 | D59: 7500 | E59: 7500 | F59: USD | G59: =tblSalaries[[#This Row],[clean Salary (in local currency)]]*VLOOKUP(tblSalaries[[#This Row],[Currency]],tblXrate[],2,FALSE) -> 7500 | H59: Analyst | I59: Analyst | J59: India | K59: =VLOOKUP(tblSalaries[[#This Row],[Where do you work]],tblCountries[[Actual]:[Mapping]],2,FALSE) -> India | L59: 4 to 6 hours a day
B60: ID0057 | C60: 2012-05-25T06:27:29 | D60: Â£18000 | E60: 18000 | F60: GBP | G60: =tblSalaries[[#This Row],[clean Salary (in local currency)]]*VLOOKUP(tblSalaries[[#This Row],[Currency]],tblXrate[],2,FALSE) -> 28371.2089 | H60: Building Design and Performance Researcher | I60: Manager | J60: UK | K60: =VLOOKUP(tblSalaries[[#This Row],[Where do you work]],tblCountries[[Actual]:[Mapping]],2,FALSE) -> UK | L60: 1 or 2 hours a day
B61: ID0058 | C61: 2012-05-25T06:49:25 | D61: 49000 | E61: 49000 | F61: EUR | G61: =tblSalaries[[#This Row],[clean Salary (in local currency)]]*VLOOKUP(tblSalaries[[#This Row],[Currency]],tblXrate[],2,FALSE) -> 62249.57251 | H61: Project leader | I61: Manager | J61: France | K61: =VLOOKUP(tblSalaries[[#This Row],[Where do you work]],tblCountries[[Actual]:[Mapping]],2,FALSE) -> France | L61: 2 to 3 hours per day
B62: ID0059 | C62: 2012-05-25T06:57:52 | D62: 38000 | E62: 38000 | F62: USD | G62: =tblSalaries[[#This Row],[clean Salary (in local currency)]]*VLOOKUP(tblSalaries[[#This Row],[Currency]],tblXrate[],2,FALSE) -> 38000 | H62: Senior Analyst | I62: Analyst | J62: USA | K62: =VLOOKUP(tblSalaries[[#This Row],[Where do you work]],tblCountries[[Actual]:[Mapping]],2,FALSE) -> USA | L62: 4 to 6 hours a day
B63: ID0060 | C63: 2012-05-25T07:00:52 | D63: 41000 | E63: 41000 | F63: USD | G63: =tblSalaries[[#This Row],[clean Salary (in local currency)]]*VLOOKUP(tblSalaries[[#This Row],[Currency]],tblXrate[],2,FALSE) -> 41000 | H63: Specialist | I63: Specialist | J63: USA | K63: =VLOOKUP(tblSalaries[[#This Row],[Where do you work]],tblCountries[[Actual]:[Mapping]],2,FALSE) -> USA | L63: 4 to 6 hours a day
B64: ID0061 | C64: 2012-05-25T07:11:09 | D64: 68000 | E64: 68000 | F64: USD | G64: =tblSalaries[[#This Row],[clean Salary (in local currency)]]*VLOOKUP(tblSalaries[[#This Row],[Currency]],tblXrate[],2,FALSE) -> 68000 | H64: Engineering Data Analyst | I64: Analyst | J64: USA | K64: =VLOOKUP(tblSalaries[[#This Row],[Where do you work]],tblCountries[[Actual]:[Mapping]],2,FALSE) -> USA | L64: All the 8 hours baby, all the 8!
B65: ID0062 | C65: 2012-05-25T07:13:31 | D65: 56000 | E65: 56000 | F65: CAD | G65: =tblSalaries[[#This Row],[clean Salary (in local currency)]]*VLOOKUP(tblSalaries[[#This Row],[Currency]],tblXrate[],2,FALSE) -> 55068.24529 | H65: Sales Analyst | I65: Analyst | J65: CANADA | K65: =VLOOKUP(tblSalaries[[#This Row],[Where do you work]],tblCountries[[Actual]:[Mapping]],2,FALSE) -> Canada | L65: All the 8 hours baby, all the 8!
B66: ID0063 | C66: 2012-05-25T07:15:12 | D66: 61000 | E66: 61000 | F66: USD | G66: =tblSalaries[[#This Row],[clean Salary (in local currency)]]*VLOOKUP(tblSalaries[[#This Row],[Currency]],tblXrate[],2,FALSE) -> 61000 | H66: Coordinator Of Costa and Buget | I66: Manager | J66: Brasil | K66: =VLOOKUP(tblSalaries[[#This Row],[Where do you work]],tblCountries[[Actual]:[Mapping]],2,FALSE) -> Brazil | L66: All the 8 hours baby, all the 8!
B67: ID0064 | C67: 2012-05-25T07:18:53 | D67: 43000 | E67: 43000 | F67: EUR | G67: =tblSalaries[[#This Row],[clean Salary (in local currency)]]*VLOOKUP(tblSalaries[[#This Row],[Currency]],tblXrate[],2,FALSE) -> 54627.17588 | H67: SAP consultant | I67: Consultant | J67: FR | K67: =VLOOKUP(tblSalaries[[#This Row],[Where do you work]],tblCountries[[Actual]:[Mapping]],2,FALSE) -> France | L67: 4 to 6 hours a day
B68: ID0065 | C68: 2012-05-25T07:20:08 | D68: 85000 | E68: 85000 | F68: USD | G68: =tblSalaries[[#This Row],[clean Salary (in local currency)]]*VLOOKUP(tblSalaries[[#This Row],[Currency]],tblXrate[],2,FALSE) -> 85000 | H68: Manager | I68: Manager | J68: USA | K68: =VLOOKUP(tblSalaries[[#This Row],[Where do you work]],tblCountries[[Actual]:[Mapping]],2,FALSE) -> USA | L68: 4 to 6 hours a day
B69: ID0066 | C69: 2012-05-25T07:21:18 | D69: â‚¬ 38000 | E69: 38000 | F69: EUR | G69: =tblSalaries[[#This Row],[clean Salary (in local currency)]]*VLOOKUP(tblSalaries[[#This Row],[Currency]],tblXrate[],2,FALSE) -> 48275.17868 | H69: busines analist | I69: Analyst | J69: The Netherlands | K69: =VLOOKUP(tblSalaries[[#This Row],[Where do you work]],tblCountries[[Actual]:[Mapping]],2,FALSE) -> Netherlands | L69: 1 or 2 hours a day
B70: ID0067 | C70: 2012-05-25T07:25:12 | D70: 85000 | E70: 85000 | F70: AUD | G70: =tblSalaries[[#This Row],[clean Salary (in local currency)]]*VLOOKUP(tblSalaries[[#This Row],[Currency]],tblXrate[],2,FALSE) -> 86692.32079 | H70: head of data | I70: CXO or Top Mgmt. | J70: Australia | K70: =VLOOKUP(tblSalaries[[#This Row],[Where do you work]],tblCountries[[Actual]:[Mapping]],2,FALSE) -> Australia | L70: 4 to 6 hours a day
B71: ID0068 | C71: 2012-05-25T07:29:12 | D71: 85087 | E71: 85087 | F71: USD | G71: =tblSalaries[[#This Row],[clean Salary (in local currency)]]*VLOOKUP(tblSalaries[[#This Row],[Currency]],tblXrate[],2,FALSE) -> 85087 | H71: Business Systems Analyst | I71: Analyst | J71: USA | K71: =VLOOKUP(tblSalaries[[#This Row],[Where do you work]],tblCountries[[Actual]:[Mapping]],2,FALSE) -> USA | L71: 2 to 3 hours per day
B72: ID0069 | C72: 2012-05-25T07:38:22 | D72: 50000 | E72: 50000 | F72: USD | G72: =tblSalaries[[#This Row],[clean Salary (in local currency)]]*VLOOKUP(tblSalaries[[#This Row],[Currency]],tblXrate[],2,FALSE) -> 50000 | H72: Financial Analyst II | I72: Analyst | J72: USA | K72: =VLOOKUP(tblSalaries[[#This Row],[Where do you work]],tblCountries[[Actual]:[Mapping]],2,FALSE) -> USA | L72: All the 8 hours baby, all the 8!
B73: ID0070 | C73: 2012-05-25T07:47:00 | D73: 100000 | E73: 100000 | F73: USD | G73: =tblSalaries[[#This Row],[clean Salary (in local currency)]]*VLOOKUP(tblSalaries[[#This Row],[Currency]],tblXrate[],2,FALSE) -> 100000 | H73: Mngr MI | I73: Manager | J73: RSA | K73: =VLOOKUP(tblSalaries[[#This Row],[Where do you work]],tblCountries[[Actual]:[Mapping]],2,FALSE) -> South Africa | L73: 4 to 6 hours a day
B74: ID0071 | C74: 2012-05-25T22:49:00 | D74: 57000 | E74: 57000 | F74: USD | G74: =tblSalaries[[#This Row],[clean Salary (in local currency)]]*VLOOKUP(tblSalaries[[#This Row],[Currency]],tblXrate[],2,FALSE) -> 57000 | H74: sales analyst | I74: Analyst | J74: USA | K74: =VLOOKUP(tblSalaries[[#This Row],[Where do you work]],tblCountries[[Actual]:[Mapping]],2,FALSE) -> USA | L74: 4 to 6 hours a day
B75: ID0072 | C75: 2012-05-25T22:52:28 | D75: 75000 | E75: 75000 | F75: USD | G75: =tblSalaries[[#This Row],[clean Salary (in local currency)]]*VLOOKUP(tblSalaries[[#This Row],[Currency]],tblXrate[],2,FALSE) -> 75000 | H75: Consumer Research Program Manager | I75: Manager | J75: USA | K75: =VLOOKUP(tblSalaries[[#This Row],[Where do you work]],tblCountries[[Actual]:[Mapping]],2,FALSE) -> USA | L75: All the 8 hours baby, all the 8!
B76: ID0073 | C76: 2012-05-25T22:59:05 | D76: $AUD100000 | E76: 100000 | F76: AUD | G76: =tblSalaries[[#This Row],[clean Salary (in local currency)]]*VLOOKUP(tblSalaries[[#This Row],[Currency]],tblXrate[],2,FALSE) -> 101990.9656 | H76: technical trainer | I76: Manager | J76: Australia | K76: =VLOOKUP(tblSalaries[[#This Row],[Where do you work]],tblCountries[[Actual]:[Mapping]],2,FALSE) -> Australia | L76: 4 to 6 hours a day
B77: ID0074 | C77: 2012-05-25T23:01:20 | D77: 2785 | E77: 33420 | F77: USD | G77: =tblSalaries[[#This Row],[clean Salary (in local currency)]]*VLOOKUP(tblSalaries[[#This Row],[Currency]],tblXrate[],2,FALSE) -> 33420 | H77: Process Flow Coordinator | I77: Manager | J77: United Arab Emirates | K77: =VLOOKUP(tblSalaries[[#This Row],[Where do you work]],tblCountries[[Actual]:[Mapping]],2,FALSE) -> UAE | L77: All the 8 hours baby, all the 8!
B78: ID0075 | C78: 2012-05-25T23:03:00 | D78: 59450 | E78: 59450 | F78: CAD | G78: =tblSalaries[[#This Row],[clean Salary (in local currency)]]*VLOOKUP(tblSalaries[[#This Row],[Currency]],tblXrate[],2,FALSE) -> 58460.84254 | H78: Process Improvement Specialist | I78: Specialist | J78: Canada | K78: =VLOOKUP(tblSalaries[[#This Row],[Where do you work]],tblCountries[[Actual]:[Mapping]],2,FALSE) -> Canada | L78: All the 8 hours baby, all the 8!
B79: ID0076 | C79: 2012-05-25T23:12:29 | D79: 15000 | E79: 15000 | F79: USD | G79: =tblSalaries[[#This Row],[clean Salary (in local currency)]]*VLOOKUP(tblSalaries[[#This Row],[Currency]],tblXrate[],2,FALSE) -> 15000 | H79: Excel Programmer Consultant | I79: Consultant | J79: USA | K79: =VLOOKUP(tblSalaries[[#This Row],[Where do you work]],tblCountries[[Actual]:[Mapping]],2,FALSE) -> USA | L79: All the 8 hours baby, all the 8!
B80: ID0077 | C80: 2012-05-25T23:15:34 | D80: US $60,000 | E80: 60000 | F80: USD | G80: =tblSalaries[[#This Row],[clean Salary (in local currency)]]*VLOOKUP(tblSalaries[[#This Row],[Currency]],tblXrate[],2,FALSE) -> 60000 | H80: Statistical Analyst | I80: Analyst | J80: Canada | K80: =VLOOKUP(tblSalaries[[#This Row],[Where do you work]],tblCountries[[Actual]:[Mapping]],2,FALSE) -> Canada | L80: 1 or 2 hours a day
B81: ID0078 | C81: 2012-05-25T23:18:45 | D81: 100000 | E81: 100000 | F81: GBP | G81: =tblSalaries[[#This Row],[clean Salary (in local currency)]]*VLOOKUP(tblSalaries[[#This Row],[Currency]],tblXrate[],2,FALSE) -> 157617.8272 | H81: Analyst | I81: Analyst | J81: UK | K81: =VLOOKUP(tblSalaries[[#This Row],[Where do you work]],tblCountries[[Actual]:[Mapping]],2,FALSE) -> UK | L81: 2 to 3 hours per day
B82: ID0079 | C82: 2012-05-25T23:20:46 | D82: Us$ 18000 | E82: 18000 | F82: USD | G82: =tblSalaries[[#This Row],[clean Salary (in local currency)]]*VLOOKUP(tblSalaries[[#This Row],[Currency]],tblXrate[],2,FALSE) -> 18000 | H82: Operational Analyst | I82: Analyst | J82: Saudi Arabia | K82: =VLOOKUP(tblSalaries[[#This Row],[Where do you work]],tblCountries[[Actual]:[Mapping]],2,FALSE) -> Saudi Arabia | L82: All the 8 hours baby, all the 8!
B83: ID0080 | C83: 2012-05-25T23:31:16 | D83: 50000 | E83: 50000 | F83: USD | G83: =tblSalaries[[#This Row],[clean Salary (in local currency)]]*VLOOKUP(tblSalaries[[#This Row],[Currency]],tblXrate[],2,FALSE) -> 50000 | H83: Exceler | I83: Manager | J83: USA | K83: =VLOOKUP(tblSalaries[[#This Row],[Where do you work]],tblCountries[[Actual]:[Mapping]],2,FALSE) -> USA | L83: 2 to 3 hours per day
B84: ID0081 | C84: 2012-05-25T23:33:15 | D84: 26000 | E84: 26000 | F84: USD | G84: =tblSalaries[[#This Row],[clean Salary (in local currency)]]*VLOOKUP(tblSalaries[[#This Row],[Currency]],tblXrate[],2,FALSE) -> 26000 | H84: Marketing Analyst | I84: Analyst | J84: Panama | K84: =VLOOKUP(tblSalaries[[#This Row],[Where do you work]],tblCountries[[Actual]:[Mapping]],2,FALSE) -> Panama | L84: All the 8 hours baby, all the 8!
B85: ID0082 | C85: 2012-05-25T23:49:27 | D85: Â£30000 | E85: 30000 | F85: GBP | G85: =tblSalaries[[#This Row],[clean Salary (in local currency)]]*VLOOKUP(tblSalaries[[#This Row],[Currency]],tblXrate[],2,FALSE) -> 47285.34816 | H85: Database Manager | I85: Manager | J85: UK | K85: =VLOOKUP(tblSalaries[[#This Row],[Where do you work]],tblCountries[[Actual]:[Mapping]],2,FALSE) -> UK | L85: 4 to 6 hours a day
B86: ID0083 | C86: 2012-05-26T00:00:52 | D86: 150000 | E86: 150000 | F86: USD | G86: =tblSalaries[[#This Row],[clean Salary (in local currency)]]*VLOOKUP(tblSalaries[[#This Row],[Currency]],tblXrate[],2,FALSE) -> 150000 | H86: Director | I86: CXO or Top Mgmt. | J86: USA | K86: =VLOOKUP(tblSalaries[[#This Row],[Where do you work]],tblCountries[[Actual]:[Mapping]],2,FALSE) -> USA | L86: All the 8 hours baby, all the 8!
B87: ID0084 | C87: 2012-05-26T00:05:45 | D87: 120000 | E87: 120000 | F87: USD | G87: =tblSalaries[[#This Row],[clean Salary (in local currency)]]*VLOOKUP(tblSalaries[[#This Row],[Currency]],tblXrate[],2,FALSE) -> 120000 | H87: Manager, Forecasts & Budgets | I87: Manager | J87: USA | K87: =VLOOKUP(tblSalaries[[#This Row],[Where do you work]],tblCountries[[Actual]:[Mapping]],2,FALSE) -> USA | L87: 4 to 6 hours a day
B88: ID0085 | C88: 2012-05-26T00:10:17 | D88: 500000 | E88: 500000 | F88: INR | G88: =tblSalaries[[#This Row],[clean Salary (in local currency)]]*VLOOKUP(tblSalaries[[#This Row],[Currency]],tblXrate[],2,FALSE) -> 8903.958344 | H88: Senior Consultant | I88: Consultant | J88: India | K88: =VLOOKUP(tblSalaries[[#This Row],[Where do you work]],tblCountries[[Actual]:[Mapping]],2,FALSE) -> India | L88: All the 8 hours baby, all the 8!
B89: ID0086 | C89: 2012-05-26T00:11:21 | D89: US $ 31330.00 | E89: 31330 | F89: USD | G89: =tblSalaries[[#This Row],[clean Salary (in local currency)]]*VLOOKUP(tblSalaries[[#This Row],[Currency]],tblXrate[],2,FALSE) -> 31330 | H89: VBA Analyst | I89: Analyst | J89: Brazil | K89: =VLOOKUP(tblSalaries[[#This Row],[Where do you work]],tblCountries[[Actual]:[Mapping]],2,FALSE) -> Brazil | L89: All the 8 hours baby, all the 8!
B90: ID0087 | C90: 2012-05-26T00:15:17 | D90: 110000 | E90: 110000 | F90: USD | G90: =tblSalaries[[#This Row],[clean Salary (in local currency)]]*VLOOKUP(tblSalaries[[#This Row],[Currency]],tblXrate[],2,FALSE) -> 110000 | H90: Senior Scheduling Engineer | I90: Engineer | J90: USA | K90: =VLOOKUP(tblSalaries[[#This Row],[Where do you work]],tblCountries[[Actual]:[Mapping]],2,FALSE) -> USA | L90: 2 to 3 hours per day
B91: ID0088 | C91: 2012-05-26T00:22:49 | D91: 81,000USD | E91: 81000 | F91: USD | G91: =tblSalaries[[#This Row],[clean Salary (in local currency)]]*VLOOKUP(tblSalaries[[#This Row],[Currency]],tblXrate[],2,FALSE) -> 81000 | H91: Strategy Consultant | I91: Consultant | J91: UK | K91: =VLOOKUP(tblSalaries[[#This Row],[Where do you work]],tblCountries[[Actual]:[Mapping]],2,FALSE) -> UK | L91: 4 to 6 hours a day
B92: ID0089 | C92: 2012-05-26T00:39:04 | D92: 40000 | E92: 40000 | F92: USD | G92: =tblSalaries[[#This Row],[clean Salary (in local currency)]]*VLOOKUP(tblSalaries[[#This Row],[Currency]],tblXrate[],2,FALSE) -> 40000 | H92: Admin | I92: Analyst | J92: USA | K92: =VLOOKUP(tblSalaries[[#This Row],[Where do you work]],tblCountries[[Actual]:[Mapping]],2,FALSE) -> USA | L92: 4 to 6 hours a day
B93: ID0090 | C93: 2012-05-26T00:39:28 | D93: 42000 | E93: 42000 | F93: CAD | G93: =tblSalaries[[#This Row],[clean Salary (in local currency)]]*VLOOKUP(tblSalaries[[#This Row],[Currency]],tblXrate[],2,FALSE) -> 41301.18397 | H93: IT Asset Administrator | I93: Analyst | J93: Canada | K93: =VLOOKUP(tblSalaries[[#This Row],[Where do you work]],tblCountries[[Actual]:[Mapping]],2,FALSE) -> Canada | L93: 4 to 6 hours a day
B94: ID0091 | C94: 2012-05-26T00:39:36 | D94: 125000 | E94: 125000 | F94: USD | G94: =tblSalaries[[#This Row],[clean Salary (in local currency)]]*VLOOKUP(tblSalaries[[#This Row],[Currency]],tblXrate[],2,FALSE) -> 125000 | H94: Director of Marketing | I94: CXO or Top Mgmt. | J94: USA | K94: =VLOOKUP(tblSalaries[[#This Row],[Where do you work]],tblCountries[[Actual]:[Mapping]],2,FALSE) -> USA | L94: 4 to 6 hours a day
B95: ID0092 | C95: 2012-05-26T00:39:38 | D95: 36000 | E95: 36000 | F95: USD | G95: =tblSalaries[[#This Row],[clean Salary (in local currency)]]*VLOOKUP(tblSalaries[[#This Row],[Currency]],tblXrate[],2,FALSE) -> 36000 | H95: Graphic Design Manager | I95: Manager | J95: USA | K95: =VLOOKUP(tblSalaries[[#This Row],[Where do you work]],tblCountries[[Actual]:[Mapping]],2,FALSE) -> USA | L95: 2 to 3 hours per day
B96: ID0093 | C96: 2012-05-26T00:39:54 | D96: Rs. 12,000/- | E96: 144000 | F96: INR | G96: =tblSalaries[[#This Row],[clean Salary (in local currency)]]*VLOOKUP(tblSalaries[[#This Row],[Currency]],tblXrate[],2,FALSE) -> 2564.340003 | H96: Financial Consultant | I96: Consultant | J96: India | K96: =VLOOKUP(tblSalaries[[#This Row],[Where do you work]],tblCountries[[Actual]:[Mapping]],2,FALSE) -> India | L96: 1 or 2 hours a day
B97: ID0094 | C97: 2012-05-26T00:40:00 | D97: 75000 | E97: 75000 | F97: USD | G97: =tblSalaries[[#This Row],[clean Salary (in local currency)]]*VLOOKUP(tblSalaries[[#This Row],[Currency]],tblXrate[],2,FALSE) -> 75000 | H97: Data Analyst | I97: Analyst | J97: USA | K97: =VLOOKUP(tblSalaries[[#This Row],[Where do you work]],tblCountries[[Actual]:[Mapping]],2,FALSE) -> USA | L97: 1 or 2 hours a day
B98: ID0095 | C98: 2012-05-26T00:40:20 | D98: 95000 | E98: 95000 | F98: USD | G98: =tblSalaries[[#This Row],[clean Salary (in local currency)]]*VLOOKUP(tblSalaries[[#This Row],[Currency]],tblXrate[],2,FALSE) -> 95000 | H98: CFO | I98: CXO or Top Mgmt. | J98: USA | K98: =VLOOKUP(tblSalaries[[#This Row],[Where do you work]],tblCountries[[Actual]:[Mapping]],2,FALSE) -> USA | L98: 4 to 6 hours a day
B99: ID0096 | C99: 2012-05-26T00:40:27 | D99: 24000 | E99: 24000 | F99: USD | G99: =tblSalaries[[#This Row],[clean Salary (in local currency)]]*VLOOKUP(tblSalaries[[#This Row],[Currency]],tblXrate[],2,FALSE) -> 24000 | H99: Paraeducator | I99: Manager | J99: USA | K99: =VLOOKUP(tblSalaries[[#This Row],[Where do you work]],tblCountries[[Actual]:[Mapping]],2,FALSE) -> USA | L99: 2 to 3 hours per day
B100: ID0097 | C100: 2012-05-26T00:40:31 | D100: 91,000 USD | E100: 91000 | F100: USD | G100: =tblSalaries[[#This Row],[clean Salary (in local currency)]]*VLOOKUP(tblSalaries[[#This Row],[Currency]],tblXrate[],2,FALSE) -> 91000 | H100: Channel Marketing Manager | I100: Manager | J100: USA | K100: =VLOOKUP(tblSalaries[[#This Row],[Where do you work]],tblCountries[[Actual]:[Mapping]],2,FALSE) -> USA | L100: 1 or 2 hours a day
B101: ID0098 | C101: 2012-05-26T00:40:39 | D101: 40000 | E101: 40000 | F101: USD | G101: =tblSalaries[[#This Row],[clean Salary (in local currency)]]*VLOOKUP(tblSalaries[[#This Row],[Currency]],tblXrate[],2,FALSE) -> 40000 | H101: Sales and Marketing Analyst | I101: Analyst | J101: USA | K101: =VLOOKUP(tblSalaries[[#This Row],[Where do you work]],tblCountries[[Actual]:[Mapping]],2,FALSE) -> USA | L101: 4 to 6 hours a day
B102: ID0099 | C102: 2012-05-26T00:40:40 | D102: 57000 | E102: 57000 | F102: USD | G102: =tblSalaries[[#This Row],[clean Salary (in local currency)]]*VLOOKUP(tblSalaries[[#This Row],[Currency]],tblXrate[],2,FALSE) -> 57000 | H102: Production Scheduler | I102: Manager | J102: USA | K102: =VLOOKUP(tblSalaries[[#This Row],[Where do you work]],tblCountries[[Actual]:[Mapping]],2,FALSE) -> USA | L102: 4 to 6 hours a day
B103: ID0100 | C103: 2012-05-26T00:40:41 | D103: 74000 | E103: 74000 | F103: USD | G103: =tblSalaries[[#This Row],[clean Salary (in local currency)]]*VLOOKUP(tblSalaries[[#This Row],[Currency]],tblXrate[],2,FALSE) -> 74000 | H103: Senior Consultant | I103: Consultant | J103: USA | K103: =VLOOKUP(tblSalaries[[#This Row],[Where do you work]],tblCountries[[Actual]:[Mapping]],2,FALSE) -> USA | L103: 4 to 6 hours a day
B104: ID0101 | C104: 2012-05-26T00:40:42 | D104: 80k | E104: 80000 | F104: USD | G104: =tblSalaries[[#This Row],[clean Salary (in local currency)]]*VLOOKUP(tblSalaries[[#This Row],[Currency]],tblXrate[],2,FALSE) -> 80000 | H104: financial analyst | I104: Analyst | J104: USA | K104: =VLOOKUP(tblSalaries[[#This Row],[Where do you work]],tblCountries[[Actual]:[Mapping]],2,FALSE) -> USA | L104: 4 to 6 hours a day
B105: ID0102 | C105: 2012-05-26T00:40:46 | D105: 90000 | E105: 90000 | F105: USD | G105: =tblSalaries[[#This Row],[clean Salary (in local currency)]]*VLOOKUP(tblSalaries[[#This Row],[Currency]],tblXrate[],2,FALSE) -> 90000 | H105: Product Specialist | I105: Specialist | J105: USA | K105: =VLOOKUP(tblSalaries[[#This Row],[Where do you work]],tblCountries[[Actual]:[Mapping]],2,FALSE) -> USA | L105: 4 to 6 hours a day
B106: ID0103 | C106: 2012-05-26T00:40:48 | D106: 21000 | E106: 21000 | F106: USD | G106: =tblSalaries[[#This Row],[clean Salary (in local currency)]]*VLOOKUP(tblSalaries[[#This Row],[Currency]],tblXrate[],2,FALSE) -> 21000 | H106: IT support | I106: Analyst | J106: arabian Gulf | K106: =VLOOKUP(tblSalaries[[#This Row],[Where do you work]],tblCountries[[Actual]:[Mapping]],2,FALSE) -> Arabian Gulf | L106: 1 or 2 hours a day
B107: ID0104 | C107: 2012-05-26T00:40:50 | D107: 52000 | E107: 52000 | F107: USD | G107: =tblSalaries[[#This Row],[clean Salary (in local currency)]]*VLOOKUP(tblSalaries[[#This Row],[Currency]],tblXrate[],2,FALSE) -> 52000 | H107: sr. project coordinator | I107: Manager | J107: USA | K107: =VLOOKUP(tblSalaries[[#This Row],[Where do you work]],tblCountries[[Actual]:[Mapping]],2,FALSE) -> USA | L107: 4 to 6 hours a day
B108: ID0105 | C108: 2012-05-26T00:40:52 | D108: 19200 | E108: 19200 | F108: USD | G108: =tblSalaries[[#This Row],[clean Salary (in local currency)]]*VLOOKUP(tblSalaries[[#This Row],[Currency]],tblXrate[],2,FALSE) -> 19200 | H108: Sr Administrative Assistant | I108: Analyst | J108: Mexico | K108: =VLOOKUP(tblSalaries[[#This Row],[Where do you work]],tblCountries[[Actual]:[Mapping]],2,FALSE) -> Mexico | L108: 4 to 6 hours a day
B109: ID0106 | C109: 2012-05-26T00:40:57 | D109: 36000 | E109: 36000 | F109: USD | G109: =tblSalaries[[#This Row],[clean Salary (in local currency)]]*VLOOKUP(tblSalaries[[#This Row],[Currency]],tblXrate[],2,FALSE) -> 36000 | H109: Analyst | I109: Analyst | J109: USA | K109: =VLOOKUP(tblSalaries[[#This Row],[Where do you work]],tblCountries[[Actual]:[Mapping]],2,FALSE) -> USA | L109: 4 to 6 hours a day
B110: ID0107 | C110: 2012-05-26T00:41:02 | D110: 57400 | E110: 57400 | F110: USD | G110: =tblSalaries[[#This Row],[clean Salary (in local currency)]]*VLOOKUP(tblSalaries[[#This Row],[Currency]],tblXrate[],2,FALSE) -> 57400 | H110: IT Analyst | I110: Analyst | J110: USA | K110: =VLOOKUP(tblSalaries[[#This Row],[Where do you work]],tblCountries[[Actual]:[Mapping]],2,FALSE) -> USA | L110: 4 to 6 hours a day
B111: ID0108 | C111: 2012-05-26T00:41:03 | D111: 66000 | E111: 66000 | F111: USD | G111: =tblSalaries[[#This Row],[clean Salary (in local currency)]]*VLOOKUP(tblSalaries[[#This Row],[Currency]],tblXrate[],2,FALSE) -> 66000 | H111: Analyst | I111: Analyst | J111: USA | K111: =VLOOKUP(tblSalaries[[#This Row],[Where do you work]],tblCountries[[Actual]:[Mapping]],2,FALSE) -> USA | L111: 2 to 3 hours per day
B112: ID0109 | C112: 2012-05-26T00:41:06 | D112: 35000 | E112: 35000 | F112: EUR | G112: =tblSalaries[[#This Row],[clean Salary (in local currency)]]*VLOOKUP(tblSalaries[[#This Row],[Currency]],tblXrate[],2,FALSE) -> 44463.98036 | H112: Project manager | I112: Manager | J112: Greece | K112: =VLOOKUP(tblSalaries[[#This Row],[Where do you work]],tblCountries[[Actual]:[Mapping]],2,FALSE) -> Greece | L112: 4 to 6 hours a day
B113: ID0111 | C113: 2012-05-26T00:41:16 | D113: $85,000+ | E113: 85000 | F113: USD | G113: =tblSalaries[[#This Row],[clean Salary (in local currency)]]*VLOOKUP(tblSalaries[[#This Row],[Currency]],tblXrate[],2,FALSE) -> 85000 | H113: Strategic Analyst | I113: Analyst | J113: USA | K113: =VLOOKUP(tblSalaries[[#This Row],[Where do you work]],tblCountries[[Actual]:[Mapping]],2,FALSE) -> USA | L113: 4 to 6 hours a day
B114: ID0112 | C114: 2012-05-26T00:41:22 | D114: 50000 | E114: 50000 | F114: USD | G114: =tblSalaries[[#This Row],[clean Salary (in local currency)]]*VLOOKUP(tblSalaries[[#This Row],[Currency]],tblXrate[],2,FALSE) -> 50000 | H114: Transportation Specialist | I114: Specialist | J114: USA | K114: =VLOOKUP(tblSalaries[[#This Row],[Where do you work]],tblCountries[[Actual]:[Mapping]],2,FALSE) -> USA | L114: 4 to 6 hours a day
B115: ID0113 | C115: 2012-05-26T00:41:27 | D115: $58,000 USD | E115: 58000 | F115: USD | G115: =tblSalaries[[#This Row],[clean Salary (in local currency)]]*VLOOKUP(tblSalaries[[#This Row],[Currency]],tblXrate[],2,FALSE) -> 58000 | H115: Operations Programs Support | I115: Manager | J115: USA | K115: =VLOOKUP(tblSalaries[[#This Row],[Where do you work]],tblCountries[[Actual]:[Mapping]],2,FALSE) -> USA | L115: 4 to 6 hours a day
B116: ID0114 | C116: 2012-05-26T00:41:28 | D116: 37900 | E116: 37900 | F116: USD | G116: =tblSalaries[[#This Row],[clean Salary (in local currency)]]*VLOOKUP(tblSalaries[[#This Row],[Currency]],tblXrate[],2,FALSE) -> 37900 | H116: Accounting Coordinator | I116: Accountant | J116: USA | K116: =VLOOKUP(tblSalaries[[#This Row],[Where do you work]],tblCountries[[Actual]:[Mapping]],2,FALSE) -> USA | L116: All the 8 hours baby, all the 8!
B117: ID0115 | C117: 2012-05-26T00:41:30 | D117: 4000 | E117: 48000 | F117: USD | G117: =tblSalaries[[#This Row],[clean Salary (in local currency)]]*VLOOKUP(tblSalaries[[#This Row],[Currency]],tblXrate[],2,FALSE) -> 48000 | H117: Asst.Manager Finance | I117: Manager | J117: UAE | K117: =VLOOKUP(tblSalaries[[#This Row],[Where do you work]],tblCountries[[Actual]:[Mapping]],2,FALSE) -> UAE | L117: 2 to 3 hours per day
B118: ID0116 | C118: 2012-05-26T00:41:32 | D118: 67000 | E118: 67000 | F118: USD | G118: =tblSalaries[[#This Row],[clean Salary (in local currency)]]*VLOOKUP(tblSalaries[[#This Row],[Currency]],tblXrate[],2,FALSE) -> 67000 | H118: Operations Cost Analyst | I118: Analyst | J118: USA | K118: =VLOOKUP(tblSalaries[[#This Row],[Where do you work]],tblCountries[[Actual]:[Mapping]],2,FALSE) -> USA | L118: 4 to 6 hours a day
B119: ID0117 | C119: 2012-05-26T00:41:35 | D119: 85000 | E119: 85000 | F119: USD | G119: =tblSalaries[[#This Row],[clean Salary (in local currency)]]*VLOOKUP(tblSalaries[[#This Row],[Currency]],tblXrate[],2,FALSE) -> 85000 | H119: Financial Controller | I119: Controller | J119: UAE | K119: =VLOOKUP(tblSalaries[[#This Row],[Where do you work]],tblCountries[[Actual]:[Mapping]],2,FALSE) -> UAE | L119: 4 to 6 hours a day
B120: ID0118 | C120: 2012-05-26T00:41:35 | D120: 56160 | E120: 56160 | F120: USD | G120: =tblSalaries[[#This Row],[clean Salary (in local currency)]]*VLOOKUP(tblSalaries[[#This Row],[Currency]],tblXrate[],2,FALSE) -> 56160 | H120: Utilization Analyst | I120: Analyst | J120: USA | K120: =VLOOKUP(tblSalaries[[#This Row],[Where do you work]],tblCountries[[Actual]:[Mapping]],2,FALSE) -> USA | L120: 4 to 6 hours a day
B121: ID0119 | C121: 2012-05-26T00:41:38 | D121: 2000 | E121: 24000 | F121: USD | G121: =tblSalaries[[#This Row],[clean Salary (in local currency)]]*VLOOKUP(tblSalaries[[#This Row],[Currency]],tblXrate[],2,FALSE) -> 24000 | H121: Researcher | I121: Manager | J121: Colombia | K121: =VLOOKUP(tblSalaries[[#This Row],[Where do you work]],tblCountries[[Actual]:[Mapping]],2,FALSE) -> Colombia | L121: All the 8 hours baby, all the 8!
B122: ID0120 | C122: 2012-05-26T00:41:38 | D122: 52000 | E122: 52000 | F122: USD | G122: =tblSalaries[[#This Row],[clean Salary (in local currency)]]*VLOOKUP(tblSalaries[[#This Row],[Currency]],tblXrate[],2,FALSE) -> 52000 | H122: Market Analyst | I122: Analyst | J122: USA | K122: =VLOOKUP(tblSalaries[[#This Row],[Where do you work]],tblCountries[[Actual]:[Mapping]],2,FALSE) -> USA | L122: Excel ?!? What Excel?
B123: ID0121 | C123: 2012-05-26T00:41:41 | D123: 60000 | E123: 60000 | F123: CAD | G123: =tblSalaries[[#This Row],[clean Salary (in local currency)]]*VLOOKUP(tblSalaries[[#This Row],[Currency]],tblXrate[],2,FALSE) -> 59001.69138 | H123: Web Developer | I123: Analyst | J123: Canada | K123: =VLOOKUP(tblSalaries[[#This Row],[Where do you work]],tblCountries[[Actual]:[Mapping]],2,FALSE) -> Canada | L123: Excel ?!? What Excel?
B124: ID0122 | C124: 2012-05-26T00:41:43 | D124: 70000 | E124: 70000 | F124: USD | G124: =tblSalaries[[#This Row],[clean Salary (in local currency)]]*VLOOKUP(tblSalaries[[#This Row],[Currency]],tblXrate[],2,FALSE) -> 70000 | H124: Sr. Acct | I124: Accountant | J124: USA | K124: =VLOOKUP(tblSalaries[[#This Row],[Where do you work]],tblCountries[[Actual]:[Mapping]],2,FALSE) -> USA | L124: All the 8 hours baby, all the 8!
B125: ID0123 | C125: 2012-05-26T00:41:56 | D125: 50000 | E125: 50000 | F125: USD | G125: =tblSalaries[[#This Row],[clean Salary (in local currency)]]*VLOOKUP(tblSalaries[[#This Row],[Currency]],tblXrate[],2,FALSE) -> 50000 | H125: Information Systems Specialist | I125: Specialist | J125: USA | K125: =VLOOKUP(tblSalaries[[#This Row],[Where do you work]],tblCountries[[Actual]:[Mapping]],2,FALSE) -> USA | L125: 4 to 6 hours a day
B126: ID0124 | C126: 2012-05-26T00:41:58 | D126: 2300000 | E126: 2300000 | F126: INR | G126: =tblSalaries[[#This Row],[clean Salary (in local currency)]]*VLOOKUP(tblSalaries[[#This Row],[Currency]],tblXrate[],2,FALSE) -> 40958.20838 | H126: Analytics lead | I126: Analyst | J126: India | K126: =VLOOKUP(tblSalaries[[#This Row],[Where do you work]],tblCountries[[Actual]:[Mapping]],2,FALSE) -> India | L126: 1 or 2 hours a day
B127: ID0125 | C127: 2012-05-26T00:42:00 | D127: 80000 | E127: 80000 | F127: USD | G127: =tblSalaries[[#This Row],[clean Salary (in local currency)]]*VLOOKUP(tblSalaries[[#This Row],[Currency]],tblXrate[],2,FALSE) -> 80000 | H127: Financial Analyst | I127: Analyst | J127: USA | K127: =VLOOKUP(tblSalaries[[#This Row],[Where do you work]],tblCountries[[Actual]:[Mapping]],2,FALSE) -> USA | L127: 4 to 6 hours a day
B128: ID0126 | C128: 2012-05-26T00:42:08 | D128: 128000 | E128: 128000 | F128: USD | G128: =tblSalaries[[#This Row],[clean Salary (in local currency)]]*VLOOKUP(tblSalaries[[#This Row],[Currency]],tblXrate[],2,FALSE) -> 128000 | H128: Actuary | I128: Manager | J128: USA | K128: =VLOOKUP(tblSalaries[[#This Row],[Where do you work]],tblCountries[[Actual]:[Mapping]],2,FALSE) -> USA | L128: All the 8 hours baby, all the 8!
B129: ID0127 | C129: 2012-05-26T00:42:10 | D129: US $44,000 | E129: 44000 | F129: USD | G129: =tblSalaries[[#This Row],[clean Salary (in local currency)]]*VLOOKUP(tblSalaries[[#This Row],[Currency]],tblXrate[],2,FALSE) -> 44000 | H129: School Tech Coordinator | I129: Manager | J129: USA | K129: =VLOOKUP(tblSalaries[[#This Row],[Where do you work]],tblCountries[[Actual]:[Mapping]],2,FALSE) -> USA | L129: 1 or 2 hours a day
B130: ID0128 | C130: 2012-05-26T00:42:11 | D130: 65000 | E130: 65000 | F130: USD | G130: =tblSalaries[[#This Row],[clean Salary (in local currency)]]*VLOOKUP(tblSalaries[[#This Row],[Currency]],tblXrate[],2,FALSE) -> 65000 | H130: sr accountant | I130: Accountant | J130: USA | K130: =VLOOKUP(tblSalaries[[#This Row],[Where do you work]],tblCountries[[Actual]:[Mapping]],2,FALSE) -> USA | L130: All the 8 hours baby, all the 8!
B131: ID0129 | C131: 2012-05-26T00:42:32 | D131: 36000 usd | E131: 36000 | F131: USD | G131: =tblSalaries[[#This Row],[clean Salary (in local currency)]]*VLOOKUP(tblSalaries[[#This Row],[Currency]],tblXrate[],2,FALSE) -> 36000 | H131: senior accountant | I131: Accountant | J131: Turkey | K131: =VLOOKUP(tblSalaries[[#This Row],[Where do you work]],tblCountries[[Actual]:[Mapping]],2,FALSE) -> Turkey | L131: 4 to 6 hours a day
B132: ID0130 | C132: 2012-05-26T00:42:34 | D132: 1000 | E132: 12000 | F132: USD | G132: =tblSalaries[[#This Row],[clean Salary (in local currency)]]*VLOOKUP(tblSalaries[[#This Row],[Currency]],tblXrate[],2,FALSE) -> 12000 | H132: Freelance | I132: Consultant | J132: Pakistan | K132: =VLOOKUP(tblSalaries[[#This Row],[Where do you work]],tblCountries[[Actual]:[Mapping]],2,FALSE) -> Pakistan | L132: 1 or 2 hours a day
B133: ID0131 | C133: 2012-05-26T00:42:41 | D133: 28159.2 | E133: 28159 | F133: GBP | G133: =tblSalaries[[#This Row],[clean Salary (in local currency)]]*VLOOKUP(tblSalaries[[#This Row],[Currency]],tblXrate[],2,FALSE) -> 44383.60396 | H133: Data Analyst | I133: Analyst | J133: UK | K133: =VLOOKUP(tblSalaries[[#This Row],[Where do you work]],tblCountries[[Actual]:[Mapping]],2,FALSE) -> UK | L133: All the 8 hours baby, all the 8!
B134: ID0132 | C134: 2012-05-26T00:42:46 | D134: 45000 | E134: 45000 | F134: USD | G134: =tblSalaries[[#This Row],[clean Salary (in local currency)]]*VLOOKUP(tblSalaries[[#This Row],[Currency]],tblXrate[],2,FALSE) -> 45000 | H134: DBA | I134: Analyst | J134: USA | K134: =VLOOKUP(tblSalaries[[#This Row],[Where do you work]],tblCountries[[Actual]:[Mapping]],2,FALSE) -> USA | L134: 4 to 6 hours a day
B135: ID0133 | C135: 2012-05-26T00:42:58 | D135: 54000 | E135: 54000 | F135: USD | G135: =tblSalaries[[#This Row],[clean Salary (in local currency)]]*VLOOKUP(tblSalaries[[#This Row],[Currency]],tblXrate[],2,FALSE) -> 54000 | H135: Research Analyst | I135: Analyst | J135: USA | K135: =VLOOKUP(tblSalaries[[#This Row],[Where do you work]],tblCountries[[Actual]:[Mapping]],2,FALSE) -> USA | L135: 2 to 3 hours per day
B136: ID0134 | C136: 2012-05-26T00:43:03 | D136: 70000 | E136: 70000 | F136: GBP | G136: =tblSalaries[[#This Row],[clean Salary (in local currency)]]*VLOOKUP(tblSalaries[[#This Row],[Currency]],tblXrate[],2,FALSE) -> 110332.479 | H136: Project Manager | I136: Manager | J136: UK | K136: =VLOOKUP(tblSalaries[[#This Row],[Where do you work]],tblCountries[[Actual]:[Mapping]],2,FALSE) -> UK | L136: 2 to 3 hours per day
B137: ID0135 | C137: 2012-05-26T00:43:07 | D137: 71000 | E137: 71000 | F137: USD | G137: =tblSalaries[[#This Row],[clean Salary (in local currency)]]*VLOOKUP(tblSalaries[[#This Row],[Currency]],tblXrate[],2,FALSE) -> 71000 | H137: Market Research Analyst | I137: Analyst | J137: USA | K137: =VLOOKUP(tblSalaries[[#This Row],[Where do you work]],tblCountries[[Actual]:[Mapping]],2,FALSE) -> USA | L137: 4 to 6 hours a day
B138: ID0136 | C138: 2012-05-26T00:43:08 | D138: 800000 | E138: 800000 | F138: INR | G138: =tblSalaries[[#This Row],[clean Salary (in local currency)]]*VLOOKUP(tblSalaries[[#This Row],[Currency]],tblXrate[],2,FALSE) -> 14246.33335 | H138: Manager : Accounts | I138: Manager | J138: India | K138: =VLOOKUP(tblSalaries[[#This Row],[Where do you work]],tblCountries[[Actual]:[Mapping]],2,FALSE) -> India | L138: 2 to 3 hours per day
B139: ID0137 | C139: 2012-05-26T00:43:17 | D139: 70000 | E139: 70000 | F139: CAD | G139: =tblSalaries[[#This Row],[clean Salary (in local currency)]]*VLOOKUP(tblSalaries[[#This Row],[Currency]],tblXrate[],2,FALSE) -> 68835.30661 | H139: project manager | I139: Manager | J139: canada | K139: =VLOOKUP(tblSalaries[[#This Row],[Where do you work]],tblCountries[[Actual]:[Mapping]],2,FALSE) -> Canada | L139: 4 to 6 hours a day
B140: ID0138 | C140: 2012-05-26T00:43:25 | D140: 50000 | E140: 50000 | F140: CAD | G140: =tblSalaries[[#This Row],[clean Salary (in local currency)]]*VLOOKUP(tblSalaries[[#This Row],[Currency]],tblXrate[],2,FALSE) -> 49168.07615 | H140: Inventory manger | I140: Manager | J140: Canada | K140: =VLOOKUP(tblSalaries[[#This Row],[Where do you work]],tblCountries[[Actual]:[Mapping]],2,FALSE) -> Canada | L140: 4 to 6 hours a day
B141: ID0139 | C141: 2012-05-26T00:43:27 | D141: 40000 | E141: 40000 | F141: USD | G141: =tblSalaries[[#This Row],[clean Salary (in local currency)]]*VLOOKUP(tblSalaries[[#This Row],[Currency]],tblXrate[],2,FALSE) -> 40000 | H141: Business Analyst | I141: Analyst | J141: USA | K141: =VLOOKUP(tblSalaries[[#This Row],[Where do you work]],tblCountries[[Actual]:[Mapping]],2,FALSE) -> USA | L141: 4 to 6 hours a day
B142: ID0140 | C142: 2012-05-26T00:43:34 | D142: $62,000 CND | E142: 62000 | F142: CAD | G142: =tblSalaries[[#This Row],[clean Salary (in local currency)]]*VLOOKUP(tblSalaries[[#This Row],[Currency]],tblXrate[],2,FALSE) -> 60968.41443 | H142: Process Technician | I142: Analyst | J142: Canada | K142: =VLOOKUP(tblSalaries[[#This Row],[Where do you work]],tblCountries[[Actual]:[Mapping]],2,FALSE) -> Canada | L142: 2 to 3 hours per day
B143: ID0141 | C143: 2012-05-26T00:43:36 | D143: 28000rs | E143: 336000 | F143: INR | G143: =tblSalaries[[#This Row],[clean Salary (in local currency)]]*VLOOKUP(tblSalaries[[#This Row],[Currency]],tblXrate[],2,FALSE) -> 5983.460007 | H143: MIS Team Leader | I143: Reporting | J143: India | K143: =VLOOKUP(tblSalaries[[#This Row],[Where do you work]],tblCountries[[Actual]:[Mapping]],2,FALSE) -> India | L143: 4 to 6 hours a day
B144: ID0142 | C144: 2012-05-26T00:43:36 | D144: 53000 | E144: 53000 | F144: USD | G144: =tblSalaries[[#This Row],[clean Salary (in local currency)]]*VLOOKUP(tblSalaries[[#This Row],[Currency]],tblXrate[],2,FALSE) -> 53000 | H144: Data Analyst | I144: Analyst | J144: USA | K144: =VLOOKUP(tblSalaries[[#This Row],[Where do you work]],tblCountries[[Actual]:[Mapping]],2,FALSE) -> USA | L144: 4 to 6 hours a day
B145: ID0143 | C145: 2012-05-26T00:43:49 | D145: 104000 | E145: 104000 | F145: USD | G145: =tblSalaries[[#This Row],[clean Salary (in local currency)]]*VLOOKUP(tblSalaries[[#This Row],[Currency]],tblXrate[],2,FALSE) -> 104000 | H145: Finance Director | I145: CXO or Top Mgmt. | J145: USA | K145: =VLOOKUP(tblSalaries[[#This Row],[Where do you work]],tblCountries[[Actual]:[Mapping]],2,FALSE) -> USA | L145: 2 to 3 hours per day
B146: ID0144 | C146: 2012-05-26T00:44:02 | D146: 57000 | E146: 57000 | F146: USD | G146: =tblSalaries[[#This Row],[clean Salary (in local currency)]]*VLOOKUP(tblSalaries[[#This Row],[Currency]],tblXrate[],2,FALSE) -> 57000 | H146: Industrial Engineer | I146: Engineer | J146: USA | K146: =VLOOKUP(tblSalaries[[#This Row],[Where do you work]],tblCountries[[Actual]:[Mapping]],2,FALSE) -> USA | L146: 4 to 6 hours a day
B147: ID0145 | C147: 2012-05-26T00:44:09 | D147: 45000 | E147: 45000 | F147: USD | G147: =tblSalaries[[#This Row],[clean Salary (in local currency)]]*VLOOKUP(tblSalaries[[#This Row],[Currency]],tblXrate[],2,FALSE) -> 45000 | H147: data analyst | I147: Analyst | J147: USA | K147: =VLOOKUP(tblSalaries[[#This Row],[Where do you work]],tblCountries[[Actual]:[Mapping]],2,FALSE) -> USA | L147: 2 to 3 hours per day
B148: ID0146 | C148: 2012-05-26T00:44:15 | D148: 92000 | E148: 92000 | F148: USD | G148: =tblSalaries[[#This Row],[clean Salary (in local currency)]]*VLOOKUP(tblSalaries[[#This Row],[Currency]],tblXrate[],2,FALSE) -> 92000 | H148: Senior Financial & Systems Analyst | I148: Analyst | J148: USA | K148: =VLOOKUP(tblSalaries[[#This Row],[Where do you work]],tblCountries[[Actual]:[Mapping]],2,FALSE) -> USA | L148: 4 to 6 hours a day
B149: ID0147 | C149: 2012-05-26T00:44:18 | D149: 88000 | E149: 88000 | F149: USD | G149: =tblSalaries[[#This Row],[clean Salary (in local currency)]]*VLOOKUP(tblSalaries[[#This Row],[Currency]],tblXrate[],2,FALSE) -> 88000 | H149: project manager - metrics | I149: Manager | J149: USA | K149: =VLOOKUP(tblSalaries[[#This Row],[Where do you work]],tblCountries[[Actual]:[Mapping]],2,FALSE) -> USA | L149: 4 to 6 hours a day
B150: ID0148 | C150: 2012-05-26T00:44:20 | D150: 80000 | E150: 80000 | F150: USD | G150: =tblSalaries[[#This Row],[clean Salary (in local currency)]]*VLOOKUP(tblSalaries[[#This Row],[Currency]],tblXrate[],2,FALSE) -> 80000 | H150: Informatics Research Analyst | I150: Analyst | J150: USA | K150: =VLOOKUP(tblSalaries[[#This Row],[Where do you work]],tblCountries[[Actual]:[Mapping]],2,FALSE) -> USA | L150: 2 to 3 hours per day
B151: ID0149 | C151: 2012-05-26T00:44:22 | D151: 69000 | E151: 69000 | F151: USD | G151: =tblSalaries[[#This Row],[clean Salary (in local currency)]]*VLOOKUP(tblSalaries[[#This Row],[Currency]],tblXrate[],2,FALSE) -> 69000 | H151: Business Technical Consultant | I151: Consultant | J151: USA | K151: =VLOOKUP(tblSalaries[[#This Row],[Where do you work]],tblCountries[[Actual]:[Mapping]],2,FALSE) -> USA | L151: 4 to 6 hours a day
B152: ID0150 | C152: 2012-05-26T00:44:23 | D152: 50000 | E152: 50000 | F152: USD | G152: =tblSalaries[[#This Row],[clean Salary (in local currency)]]*VLOOKUP(tblSalaries[[#This Row],[Currency]],tblXrate[],2,FALSE) -> 50000 | H152: Business Operations Reporting Analyst | I152: Analyst | J152: Mexico | K152: =VLOOKUP(tblSalaries[[#This Row],[Where do you work]],tblCountries[[Actual]:[Mapping]],2,FALSE) -> Mexico | L152: All the 8 hours baby, all the 8!
B153: ID0151 | C153: 2012-05-26T00:44:40 | D153: 35000 | E153: 35000 | F153: USD | G153: =tblSalaries[[#This Row],[clean Salary (in local currency)]]*VLOOKUP(tblSalaries[[#This Row],[Currency]],tblXrate[],2,FALSE) -> 35000 | H153: Program Services Coordinator | I153: Manager | J153: USA | K153: =VLOOKUP(tblSalaries[[#This Row],[Where do you work]],tblCountries[[Actual]:[Mapping]],2,FALSE) -> USA | L153: 2 to 3 hours per day
B154: ID0152 | C154: 2012-05-26T00:44:59 | D154: 96000 | E154: 96000 | F154: USD | G154: =tblSalaries[[#This Row],[clean Salary (in local currency)]]*VLOOKUP(tblSalaries[[#This Row],[Currency]],tblXrate[],2,FALSE) -> 96000 | H154: Specialist - Finance Planning and Analysis | I154: Analyst | J154: USA | K154: =VLOOKUP(tblSalaries[[#This Row],[Where do you work]],tblCountries[[Actual]:[Mapping]],2,FALSE) -> USA | L154: 4 to 6 hours a day
B155: ID0153 | C155: 2012-05-26T00:45:00 | D155: 65000 | E155: 65000 | F155: USD | G155: =tblSalaries[[#This Row],[clean Salary (in local currency)]]*VLOOKUP(tblSalaries[[#This Row],[Currency]],tblXrate[],2,FALSE) -> 65000 | H155: Sr Accountant | I155: Accountant | J155: USA | K155: =VLOOKUP(tblSalaries[[#This Row],[Where do you work]],tblCountries[[Actual]:[Mapping]],2,FALSE) -> USA | L155: All the 8 hours baby, all the 8!
B156: ID0154 | C156: 2012-05-26T00:45:06 | D156: 37440 | E156: 37440 | F156: USD | G156: =tblSalaries[[#This Row],[clean Salary (in local currency)]]*VLOOKUP(tblSalaries[[#This Row],[Currency]],tblXrate[],2,FALSE) -> 37440 | H156: sales analyst | I156: Analyst | J156: USA | K156: =VLOOKUP(tblSalaries[[#This Row],[Where do you work]],tblCountries[[Actual]:[Mapping]],2,FALSE) -> USA | L156: All the 8 hours baby, all the 8!
B157: ID0155 | C157: 2012-05-26T00:45:11 | D157: 15500 | E157: 15500 | F157: USD | G157: =tblSalaries[[#This Row],[clean Salary (in local currency)]]*VLOOKUP(tblSalaries[[#This Row],[Currency]],tblXrate[],2,FALSE) -> 15500 | H157: Proces auditor | I157: Accountant | J157: Mexico | K157: =VLOOKUP(tblSalaries[[#This Row],[Where do you work]],tblCountries[[Actual]:[Mapping]],2,FALSE) -> Mexico | L157: All the 8 hours baby, all the 8!
B158: ID0156 | C158: 2012-05-26T00:45:17 | D158: 90000 USD | E158: 90000 | F158: USD | G158: =tblSalaries[[#This Row],[clean Salary (in local currency)]]*VLOOKUP(tblSalaries[[#This Row],[Currency]],tblXrate[],2,FALSE) -> 90000 | H158: Senior Data Quality Analyst | I158: Analyst | J158: USA | K158: =VLOOKUP(tblSalaries[[#This Row],[Where do you work]],tblCountries[[Actual]:[Mapping]],2,FALSE) -> USA | L158: 2 to 3 hours per day
B159: ID0157 | C159: 2012-05-26T00:45:46 | D159: 66500 | E159: 66500 | F159: USD | G159: =tblSalaries[[#This Row],[clean Salary (in local currency)]]*VLOOKUP(tblSalaries[[#This Row],[Currency]],tblXrate[],2,FALSE) -> 66500 | H159: Sr Business Analyst | I159: Analyst | J159: USA | K159: =VLOOKUP(tblSalaries[[#This Row],[Where do you work]],tblCountries[[Actual]:[Mapping]],2,FALSE) -> USA | L159: All the 8 hours baby, all the 8!
B160: ID0158 | C160: 2012-05-26T00:45:49 | D160: 100000 | E160: 100000 | F160: USD | G160: =tblSalaries[[#This Row],[clean Salary (in local currency)]]*VLOOKUP(tblSalaries[[#This Row],[Currency]],tblXrate[],2,FALSE) -> 100000 | H160: COST ACCOUNTANT | I160: Accountant | J160: USA | K160: =VLOOKUP(tblSalaries[[#This Row],[Where do you work]],tblCountries[[Actual]:[Mapping]],2,FALSE) -> USA | L160: All the 8 hours baby, all the 8!
B161: ID0159 | C161: 2012-05-26T00:45:51 | D161: Â£32250 | E161: 32250 | F161: GBP | G161: =tblSalaries[[#This Row],[clean Salary (in local currency)]]*VLOOKUP(tblSalaries[[#This Row],[Currency]],tblXrate[],2,FALSE) -> 50831.74927 | H161: project Support | I161: Manager | J161: UK | K161: =VLOOKUP(tblSalaries[[#This Row],[Where do you work]],tblCountries[[Actual]:[Mapping]],2,FALSE) -> UK | L161: 4 to 6 hours a day
B162: ID0160 | C162: 2012-05-26T00:45:53 | D162: 420000 | E162: 420000 | F162: INR | G162: =tblSalaries[[#This Row],[clean Salary (in local currency)]]*VLOOKUP(tblSalaries[[#This Row],[Currency]],tblXrate[],2,FALSE) -> 7479.325009 | H162: managerial | I162: Manager | J162: India | K162: =VLOOKUP(tblSalaries[[#This Row],[Where do you work]],tblCountries[[Actual]:[Mapping]],2,FALSE) -> India | L162: 1 or 2 hours a day
B163: ID0161 | C163: 2012-05-26T00:46:00 | D163: 75000 | E163: 75000 | F163: USD | G163: =tblSalaries[[#This Row],[clean Salary (in local currency)]]*VLOOKUP(tblSalaries[[#This Row],[Currency]],tblXrate[],2,FALSE) -> 75000 | H163: Program Analyst | I163: Analyst | J163: USA | K163: =VLOOKUP(tblSalaries[[#This Row],[Where do you work]],tblCountries[[Actual]:[Mapping]],2,FALSE) -> USA | L163: 1 or 2 hours a day
B164: ID0162 | C164: 2012-05-26T00:46:25 | D164: 58 | E164: 58000 | F164: USD | G164: =tblSalaries[[#This Row],[clean Salary (in local currency)]]*VLOOKUP(tblSalaries[[#This Row],[Currency]],tblXrate[],2,FALSE) -> 58000 | H164: Team Lead - Computer Discounts | I164: Manager | J164: Canada | K164: =VLOOKUP(tblSalaries[[#This Row],[Where do you work]],tblCountries[[Actual]:[Mapping]],2,FALSE) -> Canada | L164: 1 or 2 hours a day
B165: ID0163 | C165: 2012-05-26T00:46:29 | D165: 55000 | E165: 55000 | F165: USD | G165: =tblSalaries[[#This Row],[clean Salary (in local currency)]]*VLOOKUP(tblSalaries[[#This Row],[Currency]],tblXrate[],2,FALSE) -> 55000 | H165: Change Architect | I165: Manager | J165: USA | K165: =VLOOKUP(tblSalaries[[#This Row],[Where do you work]],tblCountries[[Actual]:[Mapping]],2,FALSE) -> USA | L165: 2 to 3 hours per day
B166: ID0164 | C166: 2012-05-26T00:47:42 | D166: 60000 | E166: 60000 | F166: USD | G166: =tblSalaries[[#This Row],[clean Salary (in local currency)]]*VLOOKUP(tblSalaries[[#This Row],[Currency]],tblXrate[],2,FALSE) -> 60000 | H166: Telecom Technician | I166: Analyst | J166: USA | K166: =VLOOKUP(tblSalaries[[#This Row],[Where do you work]],tblCountries[[Actual]:[Mapping]],2,FALSE) -> USA | L166: 4 to 6 hours a day
B167: ID0165 | C167: 2012-05-26T00:47:45 | D167: Rs. 1300000 | E167: 1300000 | F167: INR | G167: =tblSalaries[[#This Row],[clean Salary (in local currency)]]*VLOOKUP(tblSalaries[[#This Row],[Currency]],tblXrate[],2,FALSE) -> 23150.29169 | H167: Manager | I167: Manager | J167: India | K167: =VLOOKUP(tblSalaries[[#This Row],[Where do you work]],tblCountries[[Actual]:[Mapping]],2,FALSE) -> India | L167: 4 to 6 hours a day
B168: ID0166 | C168: 2012-05-26T00:47:50 | D168: 107000 | E168: 107000 | F168: CAD | G168: =tblSalaries[[#This Row],[clean Salary (in local currency)]]*VLOOKUP(tblSalaries[[#This Row],[Currency]],tblXrate[],2,FALSE) -> 105219.683 | H168: Manager, Asset Optimization | I168: Manager | J168: Canada | K168: =VLOOKUP(tblSalaries[[#This Row],[Where do you work]],tblCountries[[Actual]:[Mapping]],2,FALSE) -> Canada | L168: 2 to 3 hours per day
B169: ID0167 | C169: 2012-05-26T00:47:57 | D169: 145000 | E169: 145000 | F169: USD | G169: =tblSalaries[[#This Row],[clean Salary (in local currency)]]*VLOOKUP(tblSalaries[[#This Row],[Currency]],tblXrate[],2,FALSE) -> 145000 | H169: Financialcontroller | I169: Controller | J169: Switzerland | K169: =VLOOKUP(tblSalaries[[#This Row],[Where do you work]],tblCountries[[Actual]:[Mapping]],2,FALSE) -> Switzerland | L169: All the 8 hours baby, all the 8!
B170: ID0168 | C170: 2012-05-26T00:48:04 | D170: 22880 | E170: 22880 | F170: USD | G170: =tblSalaries[[#This Row],[clean Salary (in local currency)]]*VLOOKUP(tblSalaries[[#This Row],[Currency]],tblXrate[],2,FALSE) -> 22880 | H170: Accounting | I170: Accountant | J170: USA | K170: =VLOOKUP(tblSalaries[[#This Row],[Where do you work]],tblCountries[[Actual]:[Mapping]],2,FALSE) -> USA | L170: 4 to 6 hours a day
B171: ID0169 | C171: 2012-05-26T00:48:07 | D171: 80000 | E171: 80000 | F171: USD | G171: =tblSalaries[[#This Row],[clean Salary (in local currency)]]*VLOOKUP(tblSalaries[[#This Row],[Currency]],tblXrate[],2,FALSE) -> 80000 | H171: Consultant, HR Services & Governance | I171: Consultant | J171: USA | K171: =VLOOKUP(tblSalaries[[#This Row],[Where do you work]],tblCountries[[Actual]:[Mapping]],2,FALSE) -> USA | L171: 4 to 6 hours a day
B172: ID0170 | C172: 2012-05-26T00:48:11 | D172: Rs 5 lakh | E172: 500000 | F172: INR | G172: =tblSalaries[[#This Row],[clean Salary (in local currency)]]*VLOOKUP(tblSalaries[[#This Row],[Currency]],tblXrate[],2,FALSE) -> 8903.958344 | H172: QA Executive | I172: Analyst | J172: India | K172: =VLOOKUP(tblSalaries[[#This Row],[Where do you work]],tblCountries[[Actual]:[Mapping]],2,FALSE) -> India | L172: 2 to 3 hours per day
B173: ID0171 | C173: 2012-05-26T00:48:46 | D173: 90000 | E173: 90000 | F173: CAD | G173: =tblSalaries[[#This Row],[clean Salary (in local currency)]]*VLOOKUP(tblSalaries[[#This Row],[Currency]],tblXrate[],2,FALSE) -> 88502.53707 | H173: Senior Actuarial Analyst | I173: Analyst | J173: Canada | K173: =VLOOKUP(tblSalaries[[#This Row],[Where do you work]],tblCountries[[Actual]:[Mapping]],2,FALSE) -> Canada | L173: 4 to 6 hours a day
B174: ID0172 | C174: 2012-05-26T00:48:48 | D174: 180000 | E174: 180000 | F174: INR | G174: =tblSalaries[[#This Row],[clean Salary (in local currency)]]*VLOOKUP(tblSalaries[[#This Row],[Currency]],tblXrate[],2,FALSE) -> 3205.425004 | H174: Sr. Associate | I174: Analyst | J174: India | K174: =VLOOKUP(tblSalaries[[#This Row],[Where do you work]],tblCountries[[Actual]:[Mapping]],2,FALSE) -> India | L174: 4 to 6 hours a day
B175: ID0173 | C175: 2012-05-26T00:48:48 | D175: 46584 | E175: 46584 | F175: USD | G175: =tblSalaries[[#This Row],[clean Salary (in local currency)]]*VLOOKUP(tblSalaries[[#This Row],[Currency]],tblXrate[],2,FALSE) -> 46584 | H175: Budget Analyst | I175: Analyst | J175: USA | K175: =VLOOKUP(tblSalaries[[#This Row],[Where do you work]],tblCountries[[Actual]:[Mapping]],2,FALSE) -> USA | L175: 4 to 6 hours a day
B176: ID0174 | C176: 2012-05-26T00:48:48 | D176: 67000 | E176: 67000 | F176: USD | G176: =tblSalaries[[#This Row],[clean Salary (in local currency)]]*VLOOKUP(tblSalaries[[#This Row],[Currency]],tblXrate[],2,FALSE) -> 67000 | H176: B.I. Data Analyst II | I176: Analyst | J176: USA | K176: =VLOOKUP(tblSalaries[[#This Row],[Where do you work]],tblCountries[[Actual]:[Mapping]],2,FALSE) -> USA | L176: 4 to 6 hours a day
B177: ID0175 | C177: 2012-05-26T00:48:57 | D177: Rd. 11 lakhs | E177: 1100000 | F177: INR | G177: =tblSalaries[[#This Row],[clean Salary (in local currency)]]*VLOOKUP(tblSalaries[[#This Row],[Currency]],tblXrate[],2,FALSE) -> 19588.70836 | H177: Asst manager investor relations and business analytics | I177: Manager | J177: India | K177: =VLOOKUP(tblSalaries[[#This Row],[Where do you work]],tblCountries[[Actual]:[Mapping]],2,FALSE) -> India | L177: 4 to 6 hours a day
B178: ID0176 | C178: 2012-05-26T00:49:18 | D178: 92000 | E178: 92000 | F178: USD | G178: =tblSalaries[[#This Row],[clean Salary (in local currency)]]*VLOOKUP(tblSalaries[[#This Row],[Currency]],tblXrate[],2,FALSE) -> 92000 | H178: Industrial Engineer (Fed) | I178: Engineer | J178: USA | K178: =VLOOKUP(tblSalaries[[#This Row],[Where do you work]],tblCountries[[Actual]:[Mapping]],2,FALSE) -> USA | L178: 4 to 6 hours a day
B179: ID0177 | C179: 2012-05-26T00:49:21 | D179: 75000 | E179: 75000 | F179: USD | G179: =tblSalaries[[#This Row],[clean Salary (in local currency)]]*VLOOKUP(tblSalaries[[#This Row],[Currency]],tblXrate[],2,FALSE) -> 75000 | H179: Informatics specialist | I179: Specialist | J179: USA | K179: =VLOOKUP(tblSalaries[[#This Row],[Where do you work]],tblCountries[[Actual]:[Mapping]],2,FALSE) -> USA | L179: All the 8 hours baby, all the 8!
B180: ID0178 | C180: 2012-05-26T00:49:35 | D180: 180000 | E180: 180000 | F180: INR | G180: =tblSalaries[[#This Row],[clean Salary (in local currency)]]*VLOOKUP(tblSalaries[[#This Row],[Currency]],tblXrate[],2,FALSE) -> 3205.425004 | H180: Sr. Associate | I180: Analyst | J180: India | K180: =VLOOKUP(tblSalaries[[#This Row],[Where do you work]],tblCountries[[Actual]:[Mapping]],2,FALSE) -> India | L180: 4 to 6 hours a day
B181: ID0179 | C181: 2012-05-26T00:49:48 | D181: 18500 | E181: 18500 | F181: GBP | G181: =tblSalaries[[#This Row],[clean Salary (in local currency)]]*VLOOKUP(tblSalaries[[#This Row],[Currency]],tblXrate[],2,FALSE) -> 29159.29803 | H181: Trainee Management Accountant | I181: Manager | J181: UK | K181: =VLOOKUP(tblSalaries[[#This Row],[Where do you work]],tblCountries[[Actual]:[Mapping]],2,FALSE) -> UK | L181: All the 8 hours baby, all the 8!
B182: ID0180 | C182: 2012-05-26T00:49:50 | D182: 40000 | E182: 40000 | F182: USD | G182: =tblSalaries[[#This Row],[clean Salary (in local currency)]]*VLOOKUP(tblSalaries[[#This Row],[Currency]],tblXrate[],2,FALSE) -> 40000 | H182: Senior analyst | I182: Analyst | J182: USA | K182: =VLOOKUP(tblSalaries[[#This Row],[Where do you work]],tblCountries[[Actual]:[Mapping]],2,FALSE) -> USA | L182: All the 8 hours baby, all the 8!
B183: ID0181 | C183: 2012-05-26T00:49:59 | D183: 111680 | E183: 111680 | F183: USD | G183: =tblSalaries[[#This Row],[clean Salary (in local currency)]]*VLOOKUP(tblSalaries[[#This Row],[Currency]],tblXrate[],2,FALSE) -> 111680 | H183: Director of Analytics | I183: Analyst | J183: USA | K183: =VLOOKUP(tblSalaries[[#This Row],[Where do you work]],tblCountries[[Actual]:[Mapping]],2,FALSE) -> USA | L183: 2 to 3 hours per day
B184: ID0182 | C184: 2012-05-26T00:50:11 | D184: 41.406 | E184: 41406 | F184: USD | G184: =tblSalaries[[#This Row],[clean Salary (in local currency)]]*VLOOKUP(tblSalaries[[#This Row],[Currency]],tblXrate[],2,FALSE) -> 41406 | H184: Executive Assistant | I184: Analyst | J184: Canada | K184: =VLOOKUP(tblSalaries[[#This Row],[Where do you work]],tblCountries[[Actual]:[Mapping]],2,FALSE) -> Canada | L184: 1 or 2 hours a day
B185: ID0183 | C185: 2012-05-26T00:50:15 | D185: 70000 | E185: 70000 | F185: USD | G185: =tblSalaries[[#This Row],[clean Salary (in local currency)]]*VLOOKUP(tblSalaries[[#This Row],[Currency]],tblXrate[],2,FALSE) -> 70000 | H185: Project Speciast | I185: Manager | J185: USA | K185: =VLOOKUP(tblSalaries[[#This Row],[Where do you work]],tblCountries[[Actual]:[Mapping]],2,FALSE) -> USA | L185: 4 to 6 hours a day
B186: ID0184 | C186: 2012-05-26T00:50:31 | D186: 40700 | E186: 40700 | F186: USD | G186: =tblSalaries[[#This Row],[clean Salary (in local currency)]]*VLOOKUP(tblSalaries[[#This Row],[Currency]],tblXrate[],2,FALSE) -> 40700 | H186: Sales Coordinator & Analytical Support | I186: Analyst | J186: USA | K186: =VLOOKUP(tblSalaries[[#This Row],[Where do you work]],tblCountries[[Actual]:[Mapping]],2,FALSE) -> USA | L186: 1 or 2 hours a day
B187: ID0185 | C187: 2012-05-26T00:50:32 | D187: 40000 | E187: 40000 | F187: USD | G187: =tblSalaries[[#This Row],[clean Salary (in local currency)]]*VLOOKUP(tblSalaries[[#This Row],[Currency]],tblXrate[],2,FALSE) -> 40000 | H187: analyst | I187: Analyst | J187: USA | K187: =VLOOKUP(tblSalaries[[#This Row],[Where do you work]],tblCountries[[Actual]:[Mapping]],2,FALSE) -> USA | L187: 4 to 6 hours a day
B188: ID0186 | C188: 2012-05-26T00:50:38 | D188: 60000 | E188: 60000 | F188: USD | G188: =tblSalaries[[#This Row],[clean Salary (in local currency)]]*VLOOKUP(tblSalaries[[#This Row],[Currency]],tblXrate[],2,FALSE) -> 60000 | H188: Senior Staff Accountant | I188: Accountant | J188: USA | K188: =VLOOKUP(tblSalaries[[#This Row],[Where do you work]],tblCountries[[Actual]:[Mapping]],2,FALSE) -> USA | L188: 4 to 6 hours a day
B189: ID0187 | C189: 2012-05-26T00:50:41 | D189: 92000 | E189: 92000 | F189: CAD | G189: =tblSalaries[[#This Row],[clean Salary (in local currency)]]*VLOOKUP(tblSalaries[[#This Row],[Currency]],tblXrate[],2,FALSE) -> 90469.26012 | H189: Consultant - Retail Mkts | I189: Consultant | J189: Canada | K189: =VLOOKUP(tblSalaries[[#This Row],[Where do you work]],tblCountries[[Actual]:[Mapping]],2,FALSE) -> Canada | L189: All the 8 hours baby, all the 8!
B190: ID0188 | C190: 2012-05-26T00:50:43 | D190: 13636.36 | E190: 13636 | F190: USD | G190: =tblSalaries[[#This Row],[clean Salary (in local currency)]]*VLOOKUP(tblSalaries[[#This Row],[Currency]],tblXrate[],2,FALSE) -> 13636 | H190: Process Manager | I190: Manager | J190: India | K190: =VLOOKUP(tblSalaries[[#This Row],[Where do you work]],tblCountries[[Actual]:[Mapping]],2,FALSE) -> India | L190: All the 8 hours baby, all the 8!
B191: ID0189 | C191: 2012-05-26T00:50:43 | D191: 80000 | E191: 80000 | F191: USD | G191: =tblSalaries[[#This Row],[clean Salary (in local currency)]]*VLOOKUP(tblSalaries[[#This Row],[Currency]],tblXrate[],2,FALSE) -> 80000 | H191: Project Manager (Process Owner) | I191: Manager | J191: USA | K191: =VLOOKUP(tblSalaries[[#This Row],[Where do you work]],tblCountries[[Actual]:[Mapping]],2,FALSE) -> USA | L191: 2 to 3 hours per day
B192: ID0190 | C192: 2012-05-26T00:51:00 | D192: 60000 CAD$ | E192: 60000 | F192: CAD | G192: =tblSalaries[[#This Row],[clean Salary (in local currency)]]*VLOOKUP(tblSalaries[[#This Row],[Currency]],tblXrate[],2,FALSE) -> 59001.69138 | H192: Demographer | I192: Analyst | J192: Canada | K192: =VLOOKUP(tblSalaries[[#This Row],[Where do you work]],tblCountries[[Actual]:[Mapping]],2,FALSE) -> Canada | L192: 2 to 3 hours per day
B193: ID0192 | C193: 2012-05-26T00:51:43 | D193: 28000 | E193: 28000 | F193: USD | G193: =tblSalaries[[#This Row],[clean Salary (in local currency)]]*VLOOKUP(tblSalaries[[#This Row],[Currency]],tblXrate[],2,FALSE) -> 28000 | H193: Administrative Assistant | I193: Analyst | J193: USA | K193: =VLOOKUP(tblSalaries[[#This Row],[Where do you work]],tblCountries[[Actual]:[Mapping]],2,FALSE) -> USA | L193: 4 to 6 hours a day
B194: ID0193 | C194: 2012-05-26T00:51:55 | D194: 60000 | E194: 60000 | F194: USD | G194: =tblSalaries[[#This Row],[clean Salary (in local currency)]]*VLOOKUP(tblSalaries[[#This Row],[Currency]],tblXrate[],2,FALSE) -> 60000 | H194: Accounting/Financial Analyst | I194: Analyst | J194: USA | K194: =VLOOKUP(tblSalaries[[#This Row],[Where do you work]],tblCountries[[Actual]:[Mapping]],2,FALSE) -> USA | L194: 4 to 6 hours a day
B195: ID0194 | C195: 2012-05-26T00:51:59 | D195: 96000 | E195: 96000 | F195: USD | G195: =tblSalaries[[#This Row],[clean Salary (in local currency)]]*VLOOKUP(tblSalaries[[#This Row],[Currency]],tblXrate[],2,FALSE) -> 96000 | H195: Business Process Specialist | I195: Specialist | J195: USA | K195: =VLOOKUP(tblSalaries[[#This Row],[Where do you work]],tblCountries[[Actual]:[Mapping]],2,FALSE) -> USA | L195: 2 to 3 hours per day
B196: ID0195 | C196: 2012-05-26T00:52:21 | D196: 67000 | E196: 67000 | F196: USD | G196: =tblSalaries[[#This Row],[clean Salary (in local currency)]]*VLOOKUP(tblSalaries[[#This Row],[Currency]],tblXrate[],2,FALSE) -> 67000 | H196: Financial Analyst | I196: Analyst | J196: USA | K196: =VLOOKUP(tblSalaries[[#This Row],[Where do you work]],tblCountries[[Actual]:[Mapping]],2,FALSE) -> USA | L196: 4 to 6 hours a day
B197: ID0196 | C197: 2012-05-26T00:52:25 | D197: 70000 | E197: 70000 | F197: USD | G197: =tblSalaries[[#This Row],[clean Salary (in local currency)]]*VLOOKUP(tblSalaries[[#This Row],[Currency]],tblXrate[],2,FALSE) -> 70000 | H197: Sr Financial Analyst | I197: Analyst | J197: USA | K197: =VLOOKUP(tblSalaries[[#This Row],[Where do you work]],tblCountries[[Actual]:[Mapping]],2,FALSE) -> USA | L197: 4 to 6 hours a day
B198: ID0197 | C198: 2012-05-26T00:52:30 | D198: 233000 | E198: 233000 | F198: INR | G198: =tblSalaries[[#This Row],[clean Salary (in local currency)]]*VLOOKUP(tblSalaries[[#This Row],[Currency]],tblXrate[],2,FALSE) -> 4149.244588 | H198: Asst. Manager (MIS) | I198: Manager | J198: India | K198: =VLOOKUP(tblSalaries[[#This Row],[Where do you work]],tblCountries[[Actual]:[Mapping]],2,FALSE) -> India | L198: All the 8 hours baby, all the 8!
B199: ID0198 | C199: 2012-05-26T00:52:37 | D199: US$ 99000 | E199: 99000 | F199: USD | G199: =tblSalaries[[#This Row],[clean Salary (in local currency)]]*VLOOKUP(tblSalaries[[#This Row],[Currency]],tblXrate[],2,FALSE) -> 99000 | H199: Business Controller | I199: Controller | J199: USA | K199: =VLOOKUP(tblSalaries[[#This Row],[Where do you work]],tblCountries[[Actual]:[Mapping]],2,FALSE) -> USA | L199: 4 to 6 hours a day
B200: ID0200 | C200: 2012-05-26T00:53:00 | D200: 90000 | E200: 90000 | F200: USD | G200: =tblSalaries[[#This Row],[clean Salary (in local currency)]]*VLOOKUP(tblSalaries[[#This Row],[Currency]],tblXrate[],2,FALSE) -> 90000 | H200: Project Manager | I200: Manager | J200: USA | K200: =VLOOKUP(tblSalaries[[#This Row],[Where do you work]],tblCountries[[Actual]:[Mapping]],2,FALSE) -> USA | L200: 2 to 3 hours per day
B201: ID0201 | C201: 2012-05-26T00:53:02 | D201: Rs. 275000 | E201: 275000 | F201: INR | G201: =tblSalaries[[#This Row],[clean Salary (in local currency)]]*VLOOKUP(tblSalaries[[#This Row],[Currency]],tblXrate[],2,FALSE) -> 4897.177089 | H201: low level monitoring | I201: Analyst | J201: India | K201: =VLOOKUP(tblSalaries[[#This Row],[Where do you work]],tblCountries[[Actual]:[Mapping]],2,FALSE) -> India | L201: 2 to 3 hours per day
B202: ID0202 | C202: 2012-05-26T00:53:18 | D202: INR 16000 | E202: 192000 | F202: INR | G202: =tblSalaries[[#This Row],[clean Salary (in local currency)]]*VLOOKUP(tblSalaries[[#This Row],[Currency]],tblXrate[],2,FALSE) -> 3419.120004 | H202: Administrative | I202: Analyst | J202: India | K202: =VLOOKUP(tblSalaries[[#This Row],[Where do you work]],tblCountries[[Actual]:[Mapping]],2,FALSE) -> India | L202: All the 8 hours baby, all the 8!
... 1686 more rows

Sheet mapping
B1: Mapping Sheet | G1: Source: Xrates on 6/21/2012 | H1: and xe.com
B2: Currency Mapping | L2: Country Mapping
B3: Currency | C3: in USD | G3: Value of 1 American Dollar | L3: Actual | M3: Mapping
B4: USD | C4: 1 | G4: Argentine Peso | H4: 4.49273 | I4: ARS | L4: Albania | M4: Albania
B5: EUR | C5: =1/INDEX($H$4:$H$64,MATCH(tblXrate[[#This Row],[Currency]],$I$4:$I$64,0)) -> 1.270399439 | G5: Australian Dollar | H5: 0.980479 | I5: AUD | L5: arabian Gulf | M5: Arabian Gulf
B6: PKR | C6: =1/INDEX($H$4:$H$64,MATCH(tblXrate[[#This Row],[Currency]],$I$4:$I$64,0)) -> 0.01061408872 | G6: Botswana Pula | H6: 7.65697 | I6: BWP | L6: Argentina | M6: Argentina
B7: INR | C7: =1/INDEX($H$4:$H$64,MATCH(tblXrate[[#This Row],[Currency]],$I$4:$I$64,0)) -> 0.01780791669 | G7: Brazilian Real | H7: 2.02314 | I7: BRL | L7: Armenia | M7: Armenia
B8: GBP | C8: =1/INDEX($H$4:$H$64,MATCH(tblXrate[[#This Row],[Currency]],$I$4:$I$64,0)) -> 1.576178272 | G8: British Pound | H8: 0.634446 | I8: GBP | L8: Aruba | M8: Aruba
B9: AUD | C9: =1/INDEX($H$4:$H$64,MATCH(tblXrate[[#This Row],[Currency]],$I$4:$I$64,0)) -> 1.019909656 | G9: Brunei dollar | H9: 1.2687 | I9: BND | L9: Asia | M9: Asia
B10: CAD | C10: =1/INDEX($H$4:$H$64,MATCH(tblXrate[[#This Row],[Currency]],$I$4:$I$64,0)) -> 0.983361523 | G10: Bulgarian Lev | H10: 1.53952 | I10: BGN | L10: Australia | M10: Australia
B11: PHP | C11: =1/INDEX($H$4:$H$64,MATCH(tblXrate[[#This Row],[Currency]],$I$4:$I$64,0)) -> 0.02370505226 | G11: Canadian Dollar | H11: 1.01692 | I11: CAD | L11: Austria | M11: Austria
B12: AED | C12: =1/INDEX($H$4:$H$64,MATCH(tblXrate[[#This Row],[Currency]],$I$4:$I$64,0)) -> 0.2722192127 | G12: Chilean Peso | H12: 497.268 | I12: CLP | L12: Azerbaijan | M12: Azerbaijan
B13: MXN | C13: =1/INDEX($H$4:$H$64,MATCH(tblXrate[[#This Row],[Currency]],$I$4:$I$64,0)) -> 0.07304655257 | G13: Chinese Yuan | H13: 6.36091 | I13: CNY | L13: Baltic | M13: Baltic
B14: SEK | C14: =1/INDEX($H$4:$H$64,MATCH(tblXrate[[#This Row],[Currency]],$I$4:$I$64,0)) -> 0.1436552504 | G14: Colombian Peso | H14: 1769.79 | I14: COP | L14: Bangladesh | M14: Bangladesh
B15: BDT | C15: =1/INDEX($H$4:$H$64,MATCH(tblXrate[[#This Row],[Currency]],$I$4:$I$64,0)) -> 0.01222084534 | G15: Croatian Kuna | H15: 5.93671 | I15: HRK | L15: Belgium | M15: Belgium
B16: COSTARICAN | C16: =1/INDEX($H$4:$H$64,MATCH(tblXrate[[#This Row],[Currency]],$I$4:$I$64,0)) -> 0.002007830539 | G16: Danish Krone | H16: 5.85123 | I16: DKK | L16: Bermuda | M16: Bermuda
B17: ZAR | C17: =1/INDEX($H$4:$H$64,MATCH(tblXrate[[#This Row],[Currency]],$I$4:$I$64,0)) -> 0.1219217799 | G17: Euro | H17: 0.787154 | I17: EUR | L17: Bhutan | M17: Bhutan
B18: NZD | C18: =1/INDEX($H$4:$H$64,MATCH(tblXrate[[#This Row],[Currency]],$I$4:$I$64,0)) -> 0.7975880936 | G18: Hong Kong Dollar | H18: 7.75889 | I18: HKD | L18: Bolivia | M18: Bolivia
B19: CNY | C19: =1/INDEX($H$4:$H$64,MATCH(tblXrate[[#This Row],[Currency]],$I$4:$I$64,0)) -> 0.1572102105 | G19: Hungarian Forint | H19: 225.874 | I19: HUF | L19: Brasil | M19: Brazil
B20: EGYPT | C20: =1/INDEX($H$4:$H$64,MATCH(tblXrate[[#This Row],[Currency]],$I$4:$I$64,0)) -> 0.1652619402 | G20: Iceland Krona | H20: 124.697 | I20: ISK | L20: Brazil | M20: Brazil
B21: NAIRA | C21: =1/INDEX($H$4:$H$64,MATCH(tblXrate[[#This Row],[Currency]],$I$4:$I$64,0)) -> 0.006163328197 | G21: Indian Rupee | H21: 56.1548 | I21: INR | L21: BRA | M21: Brazil
B22: AED | C22: =1/INDEX($H$4:$H$64,MATCH(tblXrate[[#This Row],[Currency]],$I$4:$I$64,0)) -> 0.2722192127 | G22: Indonesian Rupiah | H22: 9443.81 | I22: IDR | L22: Bulgaria | M22: Bulgaria
B23: BRL | C23: =1/INDEX($H$4:$H$64,MATCH(tblXrate[[#This Row],[Currency]],$I$4:$I$64,0)) -> 0.4942811669 | G23: Israeli New Shekel | H23: 3.86721 | I23: ILS | L23: Cambodia | M23: Cambodia
B24: RON | C24: =1/INDEX($H$4:$H$64,MATCH(tblXrate[[#This Row],[Currency]],$I$4:$I$64,0)) -> 0.2846132391 | G24: Japanese Yen | H24: 78.9043 | I24: JPY | L24: Canada | M24: Canada
B25: USD | C25: 1 | G25: Kazakhstani Tenge | H25: 148.88 | I25: KZT | L25: Canad | M25: Canada
B26: MYR | C26: =1/INDEX($H$4:$H$64,MATCH(tblXrate[[#This Row],[Currency]],$I$4:$I$64,0)) -> 0.3168005677 | G26: Kuwaiti Dinar | H26: 0.2794 | I26: KWD | L26: CEE | M26: CEE
B27: LKR | C27: =1/INDEX($H$4:$H$64,MATCH(tblXrate[[#This Row],[Currency]],$I$4:$I$64,0)) -> 0.007524058176 | G27: Latvian Lat | H27: 0.548489 | I27: LVL | L27: Continental Europe | M27: CEE
B28: SGD | C28: =1/INDEX($H$4:$H$64,MATCH(tblXrate[[#This Row],[Currency]],$I$4:$I$64,0)) -> 0.7888239424 | G28: Libyan Dinar | H28: 1.9324 | I28: LYD | L28: Central America | M28: Central America
B29: GBP | C29: =1/INDEX($H$4:$H$64,MATCH(tblXrate[[#This Row],[Currency]],$I$4:$I$64,0)) -> 1.576178272 | G29: Lithuanian Litas | H29: 2.71788 | I29: LTL | L29: china | M29: China
B30: DOP | C30: =1/INDEX($H$4:$H$64,MATCH(tblXrate[[#This Row],[Currency]],$I$4:$I$64,0)) -> 0.02567394095 | G30: Malaysian Ringgit | H30: 3.15656 | I30: MYR | L30: Colombia | M30: Colombia
B31: PLN | C31: =1/INDEX($H$4:$H$64,MATCH(tblXrate[[#This Row],[Currency]],$I$4:$I$64,0)) -> 0.3003147298 | G31: Mauritius Rupee | H31: 30.7159 | I31: MUR | L31: Colombia - South America | M31: Colombia
B32: KENYA | C32: =1/INDEX($H$4:$H$64,MATCH(tblXrate[[#This Row],[Currency]],$I$4:$I$64,0)) -> 0.0119760479 | G32: Mexican Peso | H32: 13.6899 | I32: MXN | L32: Costa Rica | M32: Costa Rica
B33: DKK | C33: =1/INDEX($H$4:$H$64,MATCH(tblXrate[[#This Row],[Currency]],$I$4:$I$64,0)) -> 0.1709042372 | G33: Nepalese Rupee | H33: 89.65 | I33: NPR | L33: Croatia | M33: Croatia
B34: IDR | C34: =1/INDEX($H$4:$H$64,MATCH(tblXrate[[#This Row],[Currency]],$I$4:$I$64,0)) -> 0.0001058894662 | G34: New Zealand Dollar | H34: 1.25378 | I34: NZD | L34: europe/Croatia | M34: Croatia
B35: MONGOLIAN | C35: =1/INDEX($H$4:$H$64,MATCH(tblXrate[[#This Row],[Currency]],$I$4:$I$64,0)) -> 0.000756429652 | G35: Norwegian Kroner | H35: 5.90838 | I35: NOK | L35: Czech Republic | M35: Czech Republic
B36: JPY | C36: =1/INDEX($H$4:$H$64,MATCH(tblXrate[[#This Row],[Currency]],$I$4:$I$64,0)) -> 0.01267358053 | G36: Omani Rial | H36: 0.3845 | I36: OMR | L36: Denmark | M36: Denmark
B37: SAR | C37: =1/INDEX($H$4:$H$64,MATCH(tblXrate[[#This Row],[Currency]],$I$4:$I$64,0)) -> 0.2666666667 | G37: Pakistan Rupee | H37: 94.2144 | I37: PKR | L37: DK | M37: Denmark
B38: MAD | C38: =1/INDEX($H$4:$H$64,MATCH(tblXrate[[#This Row],[Currency]],$I$4:$I$64,0)) -> 0.1145475372 | G38: Philippine Peso | H38: 42.1851 | I38: PHP | L38: Dominican Republic | M38: Dominican Republic
B39: MUR | C39: =1/INDEX($H$4:$H$64,MATCH(tblXrate[[#This Row],[Currency]],$I$4:$I$64,0)) -> 0.03255642843 | G39: Qatari Rial | H39: 3.64 | I39: QAR | L39: Dubai | M39: Dubai
B40: NOK | C40: =1/INDEX($H$4:$H$64,MATCH(tblXrate[[#This Row],[Currency]],$I$4:$I$64,0)) -> 0.1692511314 | G40: Romanian Leu | H40: 3.51354 | I40: RON | L40: Egypt | M40: Egypt
B41: CHF | C41: =1/INDEX($H$4:$H$64,MATCH(tblXrate[[#This Row],[Currency]],$I$4:$I$64,0)) -> 1.057873062 | G41: Russian Ruble | H41: 32.5458 | I41: RUB | L41: Estonia | M41: Estonia
B42: ETB | C42: =1/INDEX($H$4:$H$64,MATCH(tblXrate[[#This Row],[Currency]],$I$4:$I$64,0)) -> 0.05656108597 | G42: Saudi Riyal | H42: 3.75 | I42: SAR | L42: Ethiopia | M42: Ethiopia
G43: Singapore Dollar | H43: 1.26771 | I43: SGD | L43: Europe | M43: Europe
G44: South African Rand | H44: 8.20198 | I44: ZAR | L44: mainland Europe (Euro zone) | M44: Europe
G45: South Korean Won | H45: 1151.09 | I45: KRW | L45: EU | M45: Europe
G46: Sri Lanka Rupee | H46: 132.907 | I46: LKR | L46: Finland | M46: Finland
G47: Swedish Krona | H47: 6.96111 | I47: SEK | L47: France | M47: France
G48: Swiss Franc | H48: 0.945293 | I48: CHF | L48: FR | M48: France
G49: Taiwan Dollar | H49: 29.8594 | I49: TWD | L49: Germany | M49: Germany
G50: Thai Baht | H50: 31.5003 | I50: THB | L50: Ghana | M50: Ghana
G51: Trinidad/Tobago Dollar | H51: 6.39122 | I51: TTD | L51: Greece | M51: Greece
G52: Turkish Lira | H52: 1.79447 | I52: TRY | L52: Guyana | M52: Guyana
G53: Venezuelan Bolivar | H53: 4.29402 | I53: VEF | L53: Hong Kong | M53: Hong Kong
G54: UAE Dirham | H54: 3.67351 | I54: AED | L54: Hungary | M54: Hungary
G55: Bangladesh Takha | H55: 81.8274 | I55: BDT | L55: Iceland | M55: Iceland
G56: Costarican CRC | H56: 498.05 | I56: Costarican | L56: India | M56: India
G57: Egyptian Pound | H57: 6.051 | I57: Egypt | L57: Indonesia | M57: Indonesia
G58: Nigerian Naira | H58: 162.25 | I58: NAIRA | L58: Inonesia | M58: Indonesia
G59: Dominican Peso | H59: 38.95 | I59: DOP | L59: iran | M59: Iran
G60: Polish Zloty | H60: 3.32984 | I60: PLN | L60: Ireland | M60: Ireland
G61: Kenyan Shilling | H61: 83.5 | I61: Kenya | L61: Israel | M61: Israel
G62: Mongolian Tughrik | H62: 1322 | I62: Mongolian | L62: italy | M62: Italy
G63: Moroccan Dirham | H63: 8.73 | I63: MAD | L63: Japan | M63: Japan
G64: Ethiopian Birr | H64: 17.68 | I64: ETB | L64: Kenya | M64: Kenya
L65: Kuwait | M65: Kuwait
L66: Kuwait | M66: Kuwait
L67: Latin America | M67: Latin America
L68: Lesotho | M68: Lesotho
L69: Libya | M69: Libya
L70: Lithuania | M70: Lithuania
L71: malaysia | M71: Malaysia
L72: MYS | M72: Malaysia
L73: Mauritius | M73: Mauritius
L74: Mexico | M74: Mexico
L75: MÃ©xico | M75: Mexico
L76: Mongolia | M76: Mongolia
L77: Montenegro | M77: Montenegro
L78: Morocco | M78: Morocco
L79: mozambique | M79: Mozambique
L80: Myanmar | M80: Myanmar
L81: Myanmar [Burma] | M81: Myanmar
L82: Netherlands | M82: Netherlands
L83: The Netherlands | M83: Netherlands
L84: NL | M84: Netherlands
L85: New Zealand | M85: New Zealand
L86: nz | M86: New Zealand
L87: New Zealand | M87: New Zealand
L88: nld | M88: New Zealand
L89: Nigeria | M89: Nigeria
L90: Norway | M90: Norway
L91: Oman | M91: Oman
L92: Pakistan | M92: Pakistan
L93: Pakistan, Angola | M93: Pakistan
L94: Panama | M94: Panama
L95: Paraguay | M95: Paraguay
L96: Peru | M96: Peru
L97: Philippines | M97: Philippines
L98: Poland | M98: Poland
L99: Portugal | M99: Portugal
L100: Qatar | M100: Qatar
L101: Republic of Georgia | M101: Republic of Georgia
L102: Republica Dominicana | M102: Dominican Republic
L103: Romania | M103: Romania
L104: Russia | M104: Russia
L105: Saudi Arabia | M105: Saudi Arabia
L106: Saudi Arabai | M106: Saudi Arabia
L107: Kingdom of Saudi Arabia | M107: Saudi Arabia
L108: self-employed | M108: self-employed
L109: Singapore | M109: Singapore
L110: Slovakia | M110: Slovakia
L111: Slovenia | M111: Slovenia
L112: Somalia | M112: Somalia
L113: South Africa | M113: South Africa
L114: SouthAfrica | M114: South Africa
L115: RSA | M115: South Africa
L116: Spain | M116: Spain
L117: Sri Lanka | M117: Sri Lanka
L118: srilanka | M118: Sri Lanka
L119: Sweden | M119: Sweden
L120: Switzerland | M120: Switzerland
L121: Thailand | M121: Thailand
L122: bangkok | M122: Thailand
L123: Tunisia | M123: Tunisia
L124: Turkey | M124: Turkey
L125: UAE | M125: UAE
L126: United Arab Emirates | M126: UAE
L127: United Arab Emriate | M127: UAE
L128: Uganda | M128: Uganda
L129: UK | M129: UK
L130: Ukraine | M130: Ukraine
L131: Uruguay | M131: Uruguay
L132: USA | M132: USA
L133: ksa | M133: USA
L134: Viet Nam | M134: Vietnam
L135: Vietnam | M135: Vietnam
L136: Zambia | M136: Zambia
L137: Zimbabwe | M137: Zimbabwe
